Workbook

Sheet Inicio
F29: Datos e información documental
F30: Los datos utilizados en este libro de trabajo han sido desarrollados por Ecoversa, así como la información documental disponible. Por lo tanto, la información contenida en estas pestañas refleja la información introducida inicialmente por el Ministerio.
F32: Disclaimer
F33: Este libro de trabajo ha sido elaborado por Ricardo Energy & Environment (Ricardo). No se hace ninguna representación, garantía o compromiso (expresa o implícita) en relación con él. Ricardo no asume ni acepta ninguna responsabilidad por la idoneidad, integridad o precisión del libro de trabajo o las suposiciones en las que se basa, y por lo tanto, se excluye expresamente toda responsabilidad. Ricardo no acepta responsabilidad alguna ante terceros por cualquier pérdida o daño que surja de cualquier interpretación o uso de la información contenida en este libro de trabajo, o de la confianza en las opiniones expresadas en el mismo.

Sheet Guía (hidden)

Sheet Soportes Meta X4 (hidden)
D2: Soporte Meta X4
D3: Esta hoja proporciona la estructura para poder ser replicada e incluir mas metas el el modelo
D5: 1. Informacion relevante disponible para el costeo de la Meta X4
D6: Estas tablas incluyen información relevante que se ha recolectado y utilizado para realizar el ejercicio de costeo de la meta 0, debidamente referenciada
D8: Desglose de acciones
D10: Unidad: Valores monetarios en pesos constantes 2020
D12: Acción | E12: Componente de costo | F12: Unidad | G12: Costo unitario promedio $ 2020 | H12: Cantidades requerida para la meta | I12: Periodicidad del gasto | J12: Total (pesos 2020) | K12: Supuestos utilizados/comentarios | L12: Fuente de Información
D17: Componente de costo X
D19: Elaboración propia con base en información de …
D20: NOTA: Los datos de …
D21: Fuente: …
D22: Unidad: Valores monetarios en pesos constantes 2020
E24: Datos de la Fuente | H24: Elaboración Consultoría
D25: Descripción | E25: Duración estimada del contrato (número) | F25: Duración estimada del contrato (intervalo: días, meses, años) | G25: Valor total estimado | H25: Valor estimado para 12 meses
G26: 1
G27: 2
G28: 1
G29: 1.333333333
G30: 1.333333333
G31: 1.333333333
G32: 1.333333333
G33: 1.333333333
G34: 1.333333333
G35: 1.333333333
G36: 1.333333333
G37: 1.333333333
G38: 1.333333333
G39: 1.333333333
G40: 1.333333333
G41: 1.333333333
G42: 1.333333333
G43: 1.333333333
G44: 1.333333333
D45: TOTAL | H45: =SUM(H26:H44) -> 0
F47: Numero total | H47: 1
F48: Costo unitario | H48: =+H45/H47 -> 0
D50: Evaluación de la información existente para estimar la adecuación de los datos
D51: Cuando se cuenta con una serie de datos para la definición de un parámetro, se proponen tres chequeos estadísticos para evaluar la adecuación de los datos disponibles, y determinar si son suficientes como para ser usados en la estimación de costos.
D52: A grandes rasgos, mediante el testeo se comprueba si existen valores atípicos (“outliers”), y en caso de haberlos, se evalúa si son dominantes.
D53: En caso de que alguno de los chequeos resulte dentro del rango de “VERIFICAR”, se recomienda quitar las observaciones atípicas, mínimos o máximos.
D55: Promedio | E55: =AVERAGE(G26:G44) -> 1.333333333 | G55: Minimo | H55: =MIN(G26:G44) -> 1 | J55: Q1 | K55: =_xlfn.QUARTILE.INC(G26:G44,1) -> 1.333333333 | M55: Desv estand | N55: =_xlfn.STDEV.S(G26:G44) -> 0.1924500897
D56: Int_bajo | E56: =E55-N55*N57/(N56)^0.5 -> 1.246797219 | G56: Maximo | H56: =MAX(I68:I85) -> 0 | J56: Q3 | K56: =_xlfn.QUARTILE.INC(G26:G44,3) -> 1.333333333 | M56: N_muestra | N56: =COUNT(G26:G44) -> 19
D57: Int_alto | E57: =E55+N55*N57/(N56)^0.5 -> 1.419869447 | G57: Check | H57: =IF(E55/H55+H56/E55<10,"OK","VERIFICAR") -> OK | J57: IQR | K57: =K56-K55 -> 0 | M57: Z | N57: 1.96
D58: Mediana | E58: =MEDIAN(G26:G44) -> 1.333333333 | J58: Check | K58: =IF(AND(H55>K55-1.5*K57,H56<K56+1.5*K57),"OK","VERIFICAR") -> VERIFICAR
D59: Check | E59: =IF(AND(E58>E56,E58<E57),"OK","VERIFICAR") -> OK
D61: Componente de costo Y
D63: Fuente: …
D64: Notas aclaratorias: …
D65: Unidad: Valores monetarios en pesos constantes 2020
D67: Descripción | E67: Duración estimada del contrato (número) | F67: Duración estimada del contrato (intervalo: días, meses, años) | G67: Valor total estimado | H67: Valor estimado para 12 meses
D70: TOTAL | H70: =SUM(H68:H69) -> 0
D73: Coordinación de la inversión
D75: Unidad: Valores monetarios en pesos constantes 2020
D77: Concepto | E77: Valor | F77: año | G77: Fuente
D83: Calculo detallado
D85: Unidad: Valores monetarios en pesos constantes 2020
D87: Concepto | E87: Costo acompañamiento técnico | F87: Fuente | G87: Notas | H87: Fuente

Sheet Meta X4 (hidden)
D2: Ejercicio de costeo de la Meta X4 - Template | H2: .
D3: Esta hoja es una plantilla para incorporar mas metas en el costeo
D5: Estimación de costos
D6: En esta hoja se desagregan los componentes de costo de la meta y se especifican los costes unitarios y todos los demás supuestos utilizados. De este modo, se presenta la estimación de costos para todas las acciones necesarias para implementar la meta. Adicionalmente, se facilita un cronograma de implementación que contiene los hitos temporales a cumplir.
D9: Componentes de costo de la meta
D11: Unidad: Valores monetarios en pesos constantes 2020
O12: Costo fijo (Millones de $ 2020) | R12: Costo variable (Millones de $ 2020)
D13: COD_Meta | E13: Meta | F13: Acción | G13: Componente de costo | H13: Descripción | I13: Tipo Costo | J13: Fijo/variable | K13: Ámbito geográfico de intervención | L13: Variable costo unitario | M13: Variación por tipo de unidad de aplicación | N13: Tasa de descuento | O13: Promedio | P13: Rango superior | Q13: Rango inferior | R13: Promedio | S13: Rango superior | T13: Rango inferior | U13: Periodicidad de inversión | V13: Fuente de información para costeo
D14: Ejemplo 1 | I14: 1. Inversión | J14: 0. Fijo | K14: 4. Nacional | N14: Tasa de descuento (real) - Inversiones Ambientales
D21: Otros parámetros
D23: Unidad: Valores monetarios en pesos constantes 2020
D25: COD_Meta | E25: Meta | F25: Parámetro | G25: Descripción | H25: Unidad | I25: Valor | J25: Fuente de información
D44: Cronograma de implementación de la meta
D46: Unidad: Valores monetarios en pesos constantes 2020
H48: TOTAL | I48: 2020 | J48: 2021 | K48: 2022 | L48: 2023 | M48: 2024 | N48: 2025 | O48: 2026 | P48: 2027 | Q48: 2028 | R48: 2029 | S48: 2030
D58: Estimación de costos
D60: Unidad: Valores monetarios en pesos constantes 2020
D61: VPN Cifras en millones de pesos de 2020
D62: Tasa de descuento
D63: Tasa de descuento (real) - Inversiones Ambientales | G63: =+IF(D63='Supuestos generales'!D139,'Supuestos generales'!F139,IF('Meta X4'!D63='Supuestos generales'!D140,'Supuestos generales'!F140,0)) -> 0.064
I65: Requerimiento Promedio | U65: Requerimiento Máximo | AG65: Requerimiento Mínimo
D66: Componente de costo | E66: Promedio | F66: Límite superior | G66: Límite inferior | I66: 2020 | J66: 2021 | K66: 2022 | L66: 2023 | M66: 2024 | N66: 2025 | O66: 2026 | P66: 2027 | Q66: 2028 | R66: 2029 | S66: 2030 | U66: 2020 | V66: 2021 | W66: 2022 | X66: 2023 | Y66: 2024 | Z66: 2025 | AA66: 2026 | AB66: 2027 | AC66: 2028 | AD66: 2029 | AE66: 2030 | AG66: 2020 | AH66: 2021 | AI66: 2022 | AJ66: 2023 | AK66: 2024 | AL66: 2025 | AM66: 2026 | AN66: 2027 | AO66: 2028 | AP66: 2029 | AQ66: 2030
D78: TOTAL | E78: =SUM(E67:E77) -> 0 | F78: =SUM(F67:F77) -> 0 | G78: =SUM(G67:G77) -> 0 | J78: =SUM(J67:J77) -> 0 | K78: =SUM(K67:K77) -> 0 | L78: =SUM(L67:L77) -> 0 | M78: 0 | N78: 0 | O78: 0 | P78: 0 | Q78: 0 | R78: 0 | S78: 0 | U78: =SUM(U67:U76) -> 0 | V78: 0 | W78: 0 | X78: 0 | Y78: 0 | Z78: 0 | AA78: 0 | AB78: 0 | AC78: 0 | AD78: 0 | AE78: 0 | AG78: =SUM(AG67:AG76) -> 0 | AH78: 0 | AI78: 0 | AJ78: 0 | AK78: 0 | AL78: 0 | AM78: 0 | AN78: 0 | AO78: 0 | AP78: 0 | AQ78: 0
D81: Tabla Auxiliar - Unidades de intervencion
D83: Unidad: Valores monetarios en pesos constantes 2020

Sheet Soportes Meta X3 (hidden)
D2: Soporte Meta X3
D3: Esta hoja proporciona la estructura para poder ser replicada e incluir mas metas el el modelo
D5: 1. Informacion relevante disponible para el costeo de la Meta X3
D6: Estas tablas incluyen información relevante que se ha recolectado y utilizado para realizar el ejercicio de costeo de la meta 0, debidamente referenciada
D8: Desglose de acciones
D10: Unidad: Valores monetarios en pesos constantes 2020
D12: Acción | E12: Componente de costo | F12: Unidad | G12: Costo unitario promedio $ 2020 | H12: Cantidades requerida para la meta | I12: Periodicidad del gasto | J12: Total (pesos 2020) | K12: Supuestos utilizados/comentarios | L12: Fuente de Información
D17: Componente de costo X
D19: Elaboración propia con base en información de …
D20: NOTA: Los datos de …
D21: Fuente: …
D22: Unidad: Valores monetarios en pesos constantes 2020
E24: Datos de la Fuente | H24: Elaboración Consultoría
D25: Descripción | E25: Duración estimada del contrato (número) | F25: Duración estimada del contrato (intervalo: días, meses, años) | G25: Valor total estimado | H25: Valor estimado para 12 meses
G26: 1
G27: 2
G28: 1
G29: 1.333333333
G30: 1.333333333
G31: 1.333333333
G32: 1.333333333
G33: 1.333333333
G34: 1.333333333
G35: 1.333333333
G36: 1.333333333
G37: 1.333333333
G38: 1.333333333
G39: 1.333333333
G40: 1.333333333
G41: 1.333333333
G42: 1.333333333
G43: 1.333333333
G44: 1.333333333
D45: TOTAL | H45: =SUM(H26:H44) -> 0
F47: Numero total | H47: 1
F48: Costo unitario | H48: =+H45/H47 -> 0
D50: Evaluación de la información existente para estimar la adecuación de los datos
D51: Cuando se cuenta con una serie de datos para la definición de un parámetro, se proponen tres chequeos estadísticos para evaluar la adecuación de los datos disponibles, y determinar si son suficientes como para ser usados en la estimación de costos.
D52: A grandes rasgos, mediante el testeo se comprueba si existen valores atípicos (“outliers”), y en caso de haberlos, se evalúa si son dominantes.
D53: En caso de que alguno de los chequeos resulte dentro del rango de “VERIFICAR”, se recomienda quitar las observaciones atípicas, mínimos o máximos.
D55: Promedio | E55: =AVERAGE(G26:G44) -> 1.333333333 | G55: Minimo | H55: =MIN(G26:G44) -> 1 | J55: Q1 | K55: =_xlfn.QUARTILE.INC(G26:G44,1) -> 1.333333333 | M55: Desv estand | N55: =_xlfn.STDEV.S(G26:G44) -> 0.1924500897
D56: Int_bajo | E56: =E55-N55*N57/(N56)^0.5 -> 1.246797219 | G56: Maximo | H56: =MAX(I68:I85) -> 0 | J56: Q3 | K56: =_xlfn.QUARTILE.INC(G26:G44,3) -> 1.333333333 | M56: N_muestra | N56: =COUNT(G26:G44) -> 19
D57: Int_alto | E57: =E55+N55*N57/(N56)^0.5 -> 1.419869447 | G57: Check | H57: =IF(E55/H55+H56/E55<10,"OK","VERIFICAR") -> OK | J57: IQR | K57: =K56-K55 -> 0 | M57: Z | N57: 1.96
D58: Mediana | E58: =MEDIAN(G26:G44) -> 1.333333333 | J58: Check | K58: =IF(AND(H55>K55-1.5*K57,H56<K56+1.5*K57),"OK","VERIFICAR") -> VERIFICAR
D59: Check | E59: =IF(AND(E58>E56,E58<E57),"OK","VERIFICAR") -> OK
D61: Componente de costo Y
D63: Fuente: …
D64: Notas aclaratorias: …
D65: Unidad: Valores monetarios en pesos constantes 2020
D67: Descripción | E67: Duración estimada del contrato (número) | F67: Duración estimada del contrato (intervalo: días, meses, años) | G67: Valor total estimado | H67: Valor estimado para 12 meses
D70: TOTAL | H70: =SUM(H68:H69) -> 0
D73: Coordinación de la inversión
D75: Unidad: Valores monetarios en pesos constantes 2020
D77: Concepto | E77: Valor | F77: año | G77: Fuente
D83: Calculo detallado
D85: Unidad: Valores monetarios en pesos constantes 2020
D87: Concepto | E87: Costo acompañamiento técnico | F87: Fuente | G87: Notas | H87: Fuente

Sheet Meta X3 (hidden)
D2: Ejercicio de costeo de la Meta X3 - Template | H2: .
D3: Esta hoja es una plantilla para incorporar mas metas en el costeo
D5: Estimación de costos
D6: En esta hoja se desagregan los componentes de costo de la meta y se especifican los costes unitarios y todos los demás supuestos utilizados. De este modo, se presenta la estimación de costos para todas las acciones necesarias para implementar la meta. Adicionalmente, se facilita un cronograma de implementación que contiene los hitos temporales a cumplir.
D9: Componentes de costo de la meta
D11: Unidad: Valores monetarios en pesos constantes 2020
O12: Costo fijo (Millones de $ 2020) | R12: Costo variable (Millones de $ 2020)
D13: COD_Meta | E13: Meta | F13: Acción | G13: Componente de costo | H13: Descripción | I13: Tipo Costo | J13: Fijo/variable | K13: Ámbito geográfico de intervención | L13: Variable costo unitario | M13: Variación por tipo de unidad de aplicación | N13: Tasa de descuento | O13: Promedio | P13: Rango superior | Q13: Rango inferior | R13: Promedio | S13: Rango superior | T13: Rango inferior | U13: Periodicidad de inversión | V13: Fuente de información para costeo
D14: Ejemplo 1 | I14: 1. Inversión | J14: 0. Fijo | K14: 4. Nacional | N14: Tasa de descuento (real) - Inversiones Ambientales
D21: Otros parámetros
D23: Unidad: Valores monetarios en pesos constantes 2020
D25: COD_Meta | E25: Meta | F25: Parámetro | G25: Descripción | H25: Unidad | I25: Valor | J25: Fuente de información
D44: Cronograma de implementación de la meta
D46: Unidad: Valores monetarios en pesos constantes 2020
H48: TOTAL | I48: 2020 | J48: 2021 | K48: 2022 | L48: 2023 | M48: 2024 | N48: 2025 | O48: 2026 | P48: 2027 | Q48: 2028 | R48: 2029 | S48: 2030
D58: Estimación de costos
D60: Unidad: Valores monetarios en pesos constantes 2020
D61: VPN Cifras en millones de pesos de 2020
D62: Tasa de descuento
D63: Tasa de descuento (real) - Inversiones Ambientales | G63: =+IF(D63='Supuestos generales'!D139,'Supuestos generales'!F139,IF('Meta X3'!D63='Supuestos generales'!D140,'Supuestos generales'!F140,0)) -> 0.064
I65: Requerimiento Promedio | U65: Requerimiento Máximo | AG65: Requerimiento Mínimo
D66: Componente de costo | E66: Promedio | F66: Límite superior | G66: Límite inferior | I66: 2020 | J66: 2021 | K66: 2022 | L66: 2023 | M66: 2024 | N66: 2025 | O66: 2026 | P66: 2027 | Q66: 2028 | R66: 2029 | S66: 2030 | U66: 2020 | V66: 2021 | W66: 2022 | X66: 2023 | Y66: 2024 | Z66: 2025 | AA66: 2026 | AB66: 2027 | AC66: 2028 | AD66: 2029 | AE66: 2030 | AG66: 2020 | AH66: 2021 | AI66: 2022 | AJ66: 2023 | AK66: 2024 | AL66: 2025 | AM66: 2026 | AN66: 2027 | AO66: 2028 | AP66: 2029 | AQ66: 2030
D78: TOTAL | E78: =SUM(E67:E77) -> 0 | F78: =SUM(F67:F77) -> 0 | G78: =SUM(G67:G77) -> 0 | J78: =SUM(J67:J77) -> 0 | K78: =SUM(K67:K77) -> 0 | L78: =SUM(L67:L77) -> 0 | M78: 0 | N78: 0 | O78: 0 | P78: 0 | Q78: 0 | R78: 0 | S78: 0 | U78: =SUM(U67:U76) -> 0 | V78: 0 | W78: 0 | X78: 0 | Y78: 0 | Z78: 0 | AA78: 0 | AB78: 0 | AC78: 0 | AD78: 0 | AE78: 0 | AG78: =SUM(AG67:AG76) -> 0 | AH78: 0 | AI78: 0 | AJ78: 0 | AK78: 0 | AL78: 0 | AM78: 0 | AN78: 0 | AO78: 0 | AP78: 0 | AQ78: 0
D81: Tabla Auxiliar - Unidades de intervencion
D83: Unidad: Valores monetarios en pesos constantes 2020

Sheet Meta X2 (hidden)
D2: Ejercicio de costeo de la Meta X2 - Template | H2: .
D3: Esta hoja es una plantilla para incorporar mas metas en el costeo
D5: Estimación de costos
D6: En esta hoja se desagregan los componentes de costo de la meta y se especifican los costes unitarios y todos los demás supuestos utilizados. De este modo, se presenta la estimación de costos para todas las acciones necesarias para implementar la meta. Adicionalmente, se facilita un cronograma de implementación que contiene los hitos temporales a cumplir.
D9: Componentes de costo de la meta
D11: Unidad: Valores monetarios en pesos constantes 2020
O12: Costo fijo (Millones de $ 2020) | R12: Costo variable (Millones de $ 2020)
D13: COD_Meta | E13: Meta | F13: Acción | G13: Componente de costo | H13: Descripción | I13: Tipo Costo | J13: Fijo/variable | K13: Ámbito geográfico de intervención | L13: Variable costo unitario | M13: Variación por tipo de unidad de aplicación | N13: Tasa de descuento | O13: Promedio | P13: Rango superior | Q13: Rango inferior | R13: Promedio | S13: Rango superior | T13: Rango inferior | U13: Periodicidad de inversión | V13: Fuente de información para costeo
D14: Ejemplo 1 | I14: 1. Inversión | J14: 0. Fijo | K14: 4. Nacional | N14: Tasa de descuento (real) - Inversiones Ambientales
D21: Otros parámetros
D23: Unidad: Valores monetarios en pesos constantes 2020
D25: COD_Meta | E25: Meta | F25: Parámetro | G25: Descripción | H25: Unidad | I25: Valor | J25: Fuente de información
D44: Cronograma de implementación de la meta
D46: Unidad: Valores monetarios en pesos constantes 2020
H48: TOTAL | I48: 2020 | J48: 2021 | K48: 2022 | L48: 2023 | M48: 2024 | N48: 2025 | O48: 2026 | P48: 2027 | Q48: 2028 | R48: 2029 | S48: 2030
D58: Estimación de costos
D60: Unidad: Valores monetarios en pesos constantes 2020
D61: VPN Cifras en millones de pesos de 2020
D62: Tasa de descuento
D63: Tasa de descuento (real) - Inversiones Ambientales | G63: =+IF(D63='Supuestos generales'!D139,'Supuestos generales'!F139,IF('Meta X2'!D63='Supuestos generales'!D140,'Supuestos generales'!F140,0)) -> 0.064
I65: Requerimiento Promedio | U65: Requerimiento Máximo | AG65: Requerimiento Mínimo
D66: Componente de costo | E66: Promedio | F66: Límite superior | G66: Límite inferior | I66: 2020 | J66: 2021 | K66: 2022 | L66: 2023 | M66: 2024 | N66: 2025 | O66: 2026 | P66: 2027 | Q66: 2028 | R66: 2029 | S66: 2030 | U66: 2020 | V66: 2021 | W66: 2022 | X66: 2023 | Y66: 2024 | Z66: 2025 | AA66: 2026 | AB66: 2027 | AC66: 2028 | AD66: 2029 | AE66: 2030 | AG66: 2020 | AH66: 2021 | AI66: 2022 | AJ66: 2023 | AK66: 2024 | AL66: 2025 | AM66: 2026 | AN66: 2027 | AO66: 2028 | AP66: 2029 | AQ66: 2030
D78: TOTAL | E78: =SUM(E67:E77) -> 0 | F78: =SUM(F67:F77) -> 0 | G78: =SUM(G67:G77) -> 0 | J78: =SUM(J67:J77) -> 0 | K78: =SUM(K67:K77) -> 0 | L78: =SUM(L67:L77) -> 0 | M78: 0 | N78: 0 | O78: 0 | P78: 0 | Q78: 0 | R78: 0 | S78: 0 | U78: =SUM(U67:U76) -> 0 | V78: 0 | W78: 0 | X78: 0 | Y78: 0 | Z78: 0 | AA78: 0 | AB78: 0 | AC78: 0 | AD78: 0 | AE78: 0 | AG78: =SUM(AG67:AG76) -> 0 | AH78: 0 | AI78: 0 | AJ78: 0 | AK78: 0 | AL78: 0 | AM78: 0 | AN78: 0 | AO78: 0 | AP78: 0 | AQ78: 0
D81: Tabla Auxiliar - Unidades de intervencion
D83: Unidad: Valores monetarios en pesos constantes 2020

Sheet Soportes Meta X2 (hidden)
D2: Soporte Meta X2
D3: Esta hoja proporciona la estructura para poder ser replicada e incluir mas metas el el modelo
D5: 1. Informacion relevante disponible para el costeo de la Meta X2
D6: Estas tablas incluyen información relevante que se ha recolectado y utilizado para realizar el ejercicio de costeo de la meta 0, debidamente referenciada
D8: Desglose de acciones
D10: Unidad: Valores monetarios en pesos constantes 2020
D12: Acción | E12: Componente de costo | F12: Unidad | G12: Costo unitario promedio $ 2020 | H12: Cantidades requerida para la meta | I12: Periodicidad del gasto | J12: Total (pesos 2020) | K12: Supuestos utilizados/comentarios | L12: Fuente de Información
D17: Componente de costo X
D19: Elaboración propia con base en información de …
D20: NOTA: Los datos de …
D21: Fuente: …
D22: Unidad: Valores monetarios en pesos constantes 2020
E24: Datos de la Fuente | H24: Elaboración Consultoría
D25: Descripción | E25: Duración estimada del contrato (número) | F25: Duración estimada del contrato (intervalo: días, meses, años) | G25: Valor total estimado | H25: Valor estimado para 12 meses
G26: 1
G27: 2
G28: 1
G29: 1.333333333
G30: 1.333333333
G31: 1.333333333
G32: 1.333333333
G33: 1.333333333
G34: 1.333333333
G35: 1.333333333
G36: 1.333333333
G37: 1.333333333
G38: 1.333333333
G39: 1.333333333
G40: 1.333333333
G41: 1.333333333
G42: 1.333333333
G43: 1.333333333
G44: 1.333333333
D45: TOTAL | H45: =SUM(H26:H44) -> 0
F47: Numero total | H47: 1
F48: Costo unitario | H48: =+H45/H47 -> 0
D50: Evaluación de la información existente para estimar la adecuación de los datos
D51: Cuando se cuenta con una serie de datos para la definición de un parámetro, se proponen tres chequeos estadísticos para evaluar la adecuación de los datos disponibles, y determinar si son suficientes como para ser usados en la estimación de costos.
D52: A grandes rasgos, mediante el testeo se comprueba si existen valores atípicos (“outliers”), y en caso de haberlos, se evalúa si son dominantes.
D53: En caso de que alguno de los chequeos resulte dentro del rango de “VERIFICAR”, se recomienda quitar las observaciones atípicas, mínimos o máximos.
D55: Promedio | E55: =AVERAGE(G26:G44) -> 1.333333333 | G55: Minimo | H55: =MIN(G26:G44) -> 1 | J55: Q1 | K55: =_xlfn.QUARTILE.INC(G26:G44,1) -> 1.333333333 | M55: Desv estand | N55: =_xlfn.STDEV.S(G26:G44) -> 0.1924500897
D56: Int_bajo | E56: =E55-N55*N57/(N56)^0.5 -> 1.246797219 | G56: Maximo | H56: =MAX(I68:I85) -> 0 | J56: Q3 | K56: =_xlfn.QUARTILE.INC(G26:G44,3) -> 1.333333333 | M56: N_muestra | N56: =COUNT(G26:G44) -> 19
D57: Int_alto | E57: =E55+N55*N57/(N56)^0.5 -> 1.419869447 | G57: Check | H57: =IF(E55/H55+H56/E55<10,"OK","VERIFICAR") -> OK | J57: IQR | K57: =K56-K55 -> 0 | M57: Z | N57: 1.96
D58: Mediana | E58: =MEDIAN(G26:G44) -> 1.333333333 | J58: Check | K58: =IF(AND(H55>K55-1.5*K57,H56<K56+1.5*K57),"OK","VERIFICAR") -> VERIFICAR
D59: Check | E59: =IF(AND(E58>E56,E58<E57),"OK","VERIFICAR") -> OK
D61: Componente de costo Y
D63: Fuente: …
D64: Notas aclaratorias: …
D65: Unidad: Valores monetarios en pesos constantes 2020
D67: Descripción | E67: Duración estimada del contrato (número) | F67: Duración estimada del contrato (intervalo: días, meses, años) | G67: Valor total estimado | H67: Valor estimado para 12 meses
D70: TOTAL | H70: =SUM(H68:H69) -> 0
D73: Coordinación de la inversión
D75: Unidad: Valores monetarios en pesos constantes 2020
D77: Concepto | E77: Valor | F77: año | G77: Fuente
D83: Calculo detallado
D85: Unidad: Valores monetarios en pesos constantes 2020
D87: Concepto | E87: Costo acompañamiento técnico | F87: Fuente | G87: Notas | H87: Fuente

Sheet Factibilidad (hidden)

Sheet Guía de como usar el modelo (hidden)
B2: ⌂ | C2: Guía de como usar el modelo
C3: Esta hoja explica los pasos a llevar a cabo para la implementación de las metas de adaptación
C27: Acción clave 1 - Preparar el terreno para la adaptación
C28: Preparar el terreno para la adaptación. Revisar el panorama actual de las políticas de adaptación para identificar si el proceso de Plan Nacional de Adaptación ya está en marcha y qué acciones se proponen, incluyendo el nivel al que se implementará cada acción (nacional, regional, ciudad), los sectores implicados en cada acción, la contribución relativa de estas acciones para mejorar la resiliencia, y las implicaciones directas e indirectas de estas acciones para cumplir los ODSs.
C30: Acción clave 2 - Evaluación de riesgos y vulnerabilidades al cambio climático
C31: Consiste en: 1. Realizar un inventario en el que se identifique la información disponible sobre los impactos del cambio climático, la vulnerabilidad y la capacidad de adaptación ante ellos. 2. Evaluar de manera integral e iterativa las necesidades de desarrollo. 3. Incorporar actividades adicionales o mejoradas en el proceso. Si un proceso de adaptación ya está en marcha, revisar si la meta ya ha sido abordada o si se puede extender el proceso en curso para incorporarla.
C33: i. Efectividad | E33: <<II. Efectividad>> | G33: Impacto de las metas en la capacidad de adaptación
D34: =HYPERLINK("#'"&$E34&"'!A1","Go to") -> Go to | E34: Riesgos y vulnerabilidades | G34: Esta hoja presenta la matriz de evaluacion de riesgos y vulnerabilidades correspondiente a cada sector
C36: Acción clave 3 - Identificar opciones de adaptación
C37: Consiste en: 1. Se trata de identificar cómo se está integrando, o se integrará, la meta en el conjunto de objetivos y en un contexto económico más amplio. 2. Identificar la contribución de la meta. 3. Involucrar a todas las partes interesadas en la preparación de planes de adaptación que basados en estrategias sectoriales, subnacionales y nacionales que sean consistentes entre sí.
C39: Actualizar el listado de metas: unificar y describir las metas según la información recogida en las fichas.
C40: << I. Revisión de metas >> <Revisión de metas> Actualizar el listado de metas: unificar y describir las metas según la información recogida en las fichas (ver Tabla 2‑1 para más información).
C42: Revisión de metas | E42: << I. Revisión de metas >> | G42: Revisión de las metas
D43: =HYPERLINK("#'"&$E43&"'!A1","Go to") -> Go to | E43: Revisión de metas | G43: En esta hoja se revisa el alcance de las metas según la información de las fichas
C45: Acción clave 4 - Evaluar las opciones de adaptación
C46: Consiste en: 1. Efectividad: Impacto en capacidad de adaptación 2. Factibilidad, teniendo en cuenta el costo estimado y las fuentes de financiación disponibles. 3. Co-beneficios generados.
C48: En el paso 4 ("Evaluar las opciones de adaptación") que es el foco principal de este modelo, se explican los conceptos relevantes para la correcta ejecución del ejercicio de evaluación.
C50: Paso 4.1 EFECTIVIDAD
C51: Se debería focalizar los esfuerzos en aquellas metas o acciones relativas a sectores/subsectores con potencial de impacto en la capacidad de adaptación a cambios en el clima. Para poder comparar entre diferentes metas y/o acciones hay que delinear primero el alcance de la acción (en cuanto a los sectores mas importantes).
C53: i. Efectividad | E53: <<II. Efectividad>> | G53: Impacto de las metas en la capacidad de adaptación
D54: =HYPERLINK("#'"&$E54&"'!A1","Go to") -> Go to | E54: Riesgos y vulnerabilidades | G54: Esta hoja presenta la matriz de evaluacion de riesgos y vulnerabilidades correspondiente a cada meta para cada sector
C56: Paso 4.2 FACTIBILIDAD
C57: El criterio de priorización tiene que garantizar que las metas o acciones escogidas sean factibles, para garantizar el buen uso de los limitados fondos públicos. Por supuesto tiene que haber presupuesto disponible o acceso a financiación suficiente para garantizar la implementación completa de la meta, pero además habrá que comprobar que esté en línea con los planes existentes en el sector o país, que exista en marco legal/regulatorio que posibilite su implementación, que los actores relevantes deberán poder estar involucrados en el proceso y que el país cuenta con las destrezas técnicas y de personal para poder llevarlo a cabo. Los factores a tener en cuenta son: • Responsabilidades – viene de la Ficha • Estado actual – viene de la Ficha • Presupuesto / financiación – Viene de costeo • Recursos disponibles – Aquí incluimos la parte de Financiación (fuentes)
C59: Paso 4.2.1 Costeo
C60: La metodología de costeo empleada se basa en un ajuste de metodologías existentes empleadas para ejercicios similares tanto en Colombia como en otros países.
C62: << III.2 Datos y supuestos >> <Supuestos generales> Actualizar los supuestos generales en cuanto a (1) Listas de categorización de variables en el modelo y (2) Inflación, tasa de cambio, remuneraciones y comisiones de servicio.
C63: << I. Revisión de metas >> <Revisión de metas> Clasificar las metas en función de la disponibilidad de datos de referencia que sirvan de punto de partida para el ejercicio de costeo (ver Figura 2‑4 para más información).
C65: ii. Factibilidad | E65: << III.1 Costeo >>
D66: =HYPERLINK("#'"&$E66&"'!A1","Go to") -> Go to | E66: Meta 0 - Template | G66: Esta hoja se trata de un formato estandar para el ejercicio de costeo de Metas de adaptacion climatica adicionales
C68: Paso 4.2.2 Datos y supuestos
C69: Para poder comparar entre diferentes metas y/o acciones hay que delinear primero el alcance sectorial, temporal y geográfico de la acción. Luego hay que establecer un escenario que sirva como punto de referencia a confrontar con cada uno de los posibles escenarios de adaptación. Hay que cuantificar los efectos esperados, la metodología aplicada ha de ser transparente y han de enunciarse los supuestos aplicados ya que los resultados del ejercicio dependerán de ello.
C71: Diseñar el proceso participativo (de acuerdo al punto anterior). Diseñar el proceso participativo de los actores involucrados (incluyendo los expertos correspondientes).
E73: << III.2 Datos y supuestos >> | G73: Desglose de acciones que componen las metas
D74: =HYPERLINK("#'"&$E74&"'!A1","Go to") -> Go to | E74: Supuestos generales | G74: Esta hoja proporciona los supuestos generales del modelo
D75: Go to | E75: Soportes Meta 0 - Template | G75: Esta hoja incluye un borrador que proporciona la estructura para incluir las referencias que soporten los supuestos utilizados en el costeo de una nueva Meta
C77: Paso 4.2.3 Financiacion
C78: Para poder llevar a cabo la implementación de las metas de adaptación es necesario tener acceso a los recursos financieros necesarios para poder sufragar los gastos a incurrir. Las fuentes más inmediatas son fondos públicos o evaluar la disponibilidad de fuentes de financiación privadas. Adicionalmente, se facilita un listado de recursos útiles para acceder a financiación para proyectos de adaptación.
E80: << III.3 Financiación >> | G80: Financiación disponible
D81: =HYPERLINK("#'"&$E81&"'!A1","Go to") -> Go to | E81: Subvenciones y otros | G81: Subvenciones y otras fuentes de financiacion ventajosa disponibles
C83: Paso 4.3 CO-BENEFICIOS
C84: Las acciones climáticas no tienen por qué limitarse a cumplir con su objetivo de partida, sino que podrían provocar externalidades positivas y sinergias con otras áreas. Un análisis riguroso ha de tener en cuenta los efectos generados en todas las áreas de acción en la lucha contra el cambio climático.
C86: Co-beneficios otras metas | E86: <<IV. Co-beneficios>> | G86: Co-beneficios generados en otras areas de NDC adaptación
D87: =HYPERLINK("#'"&$E87&"'!A1","Go to") -> Go to | E87: Evaluación co-beneficios | G87: Esta hoja contiene una matriz de evaluacion de co-beneficios para cada una de las metas analizadas
C90: Paso 4 - Evaluar las opciones de adaptación - RESULTADOS
C91: Se exponen los resultados del ejercicio realizado para el 'Paso 4 - Evaluar las opciones de adaptación'
C93: Resultados | E93: << V. Resultados >> | G93: Resultados generales del modelo
D94: =HYPERLINK("#'"&$E94&"'!A1","Go to") -> Go to | E94: Resultados generales | G94: Esta hoja contiene gráficas y tablas que presentan de forma completa y detallada los resultados obtenidos
C96: Acción clave 5 - Implementar el plan
C97: El proceso de actualización de las metas de NDC culmina con la elaboración de una hoja de ruta en dónde se recoja la secuencia de pasos efectuados hasta el momento (Acción clave 5), así como las conclusiones más relevantes obtenidas en cada uno de los pasos; y se defina la estrategia a seguir en el futuro con los hitos propuestos para conseguir que la meta fijada se lleve a cabo de forma efectiva. Como recoge el modelo adjunto a este informe, y basándonos en la experiencia adquirida en proyectos similares, se sugiere realizar un proceso de seguimiento.
C99: Pasos ulteriores | E99: << VI. Pasos ulteriores >> | G99: Pasos posteriores a la actualizacion de las metas NDC
D100: =HYPERLINK("#'"&$E100&"'!A1","Go to") -> Go to | E100: Hoja de ruta | G100: En esta hoja se incluye una plantilla para disenar la hoja de ruta y posterior monitoreo
C103: Acción clave 6 - Monitoreo y evaluación periódica
C104: Una vez finalizado el proceso de actualización de las metas es importante supervisar el proceso de implementación de la meta para corroborar que todas las acciones necesarias están teniendo lugar, que se están llevando a cabo correctamente, identificar los problemas que puedan surgir en una etapa temprana y evaluar si el grado de efectividad obtenido es el esperado (Acción clave 6). Para ello, hay que definir una estrategia de monitoreo específica para cada una de las metas implementadas, que incluya la periodicidad de monitoreo, la autoridad a la que se reporta, la entidad encargada de reportar, la metodología de evaluación, así como el protocolo para ajustar las acciones futuras en función de lo aprendido para maximizar la efectividad de resultados
C106: Pasos ulteriores | E106: << VI. Pasos ulteriores >> | G106: Pasos posteriores a la actualizacion de las metas NDC
D107: =HYPERLINK("#'"&$E107&"'!A1","Go to") -> Go to | E107: Monitoreo | G107: En esta hoja se incluye una plantilla para disenar la hoja de ruta y posterior monitoreo

Sheet Título (hidden)
C4: Colombia NDC Adaptación - Costeo
C8: Clasificación de seguridad
C9: NO PARA CIRCULACIÓN GENERAL. CONFIDENCIAL DEL CLIENTE
C11: Título y breve descripción del libro de trabajo
C12: Este libro contiene la metodología para la priorización de metas de adaptación del NDC de Colombia.
C14: Contenido
C15: La herramienta se compone de las siguientes secciones:
E17: Las hojas con este color se refieren a las partes descriptivas del modelo, como por ejemplo esta hoja.
E20: Las hojas con este color sintetizan los resultados del ejercicio de costeo.
E23: Las hojas con este color contienen la revision de las metas de acuerdo con la informacion disponible en las fichas.
E26: Las hojas con este color contienen la evaluacion de riesgos, vulnerabilidades y de impacto.
E29: Las hojas con este color contienen el ejercicio de costeo.
E32: Las hojas con este color contienen el desglose de las acciones para todas las metas.
E35: Las hojas con este color contienen una relacion de fuentes de financiación ventajosa disponibles.
E38: Las hojas con este color contienen la evaluacion de co-beneficios.
E41: Esta sección contiene resúmenes del análisis, como gráficos, tablas, y figuras, que muestran los resultados generales.
E44: En esta sección se incluye la hoja de ruta y posterior plan de monitoreo.
C49: Datos e información documental
C50: Los datos utilizados en este libro de trabajo han sido desarrollados por Ecoversa, así como la información documental disponible. Por lo tanto, la información contenida en estas pestañas refleja la información introducida inicialmente por el Ministerio.
C52: Disclaimer
C53: Este libro de trabajo ha sido elaborado por Ricardo Energy & Environment (Ricardo). No se hace ninguna representación, garantía o compromiso (expresa o implícita) en relación con él. Ricardo no asume ni acepta ninguna responsabilidad por la idoneidad, integridad o precisión del libro de trabajo o las suposiciones en las que se basa, y por lo tanto, se excluye expresamente toda responsabilidad. Ricardo no acepta responsabilidad alguna ante terceros por cualquier pérdida o daño que surja de cualquier interpretación o uso de la información contenida en este libro de trabajo, o de la confianza en las opiniones expresadas en el mismo.
C55: Copyright
C56: Este libro tiene los derechos de autor de Ricardo y ha sido preparado bajo contrato. El contenido de este libro de trabajo no puede reproducirse total o parcialmente, ni transmitirse a ninguna organización o persona sin el permiso previo específico por escrito del Gerente Comercial de Ricardo.
C59: Control de versiones
C60: Numero versión | D60: Fecha | E60: Usuario | F60: Descripción cambios realizados | I60: Otras observaciones
C61: v01 | D61: 2020-11-30 | E61: BF | F61: Template, y las 5 primeras metas
C62: v02 | D62: 2020-12-05 | E62: BF | F62: Metas consolidadas | I62: Faltaria: Ima
C63: v03 | D63: 2020-12-09 | E63: BF | F63: Formateo de supuestos, soportes y Metas | I63: Falta links externos, incluir funcionalidad de anadir metas
C64: v03_qa_is | D64: 2020-12-11 | E64: IS | F64: QA
C65: v04 | D65: 2020-12-11 | E65: BF | F65: Resolver comentarios de QA
C66: v05/6 | D66: 2020-12-11 | E66: RA | F66: Chequear costeo
C67: v07 | D67: 2020-12-17 | E67: BF | F67: Finalizar estructura
C68: VFinal2 | D68: 2020-12-17 | E68: BF | F68: Finalizar formato, chequeo links - QA ok
C70: Gobernanza
E71: Detalles de la última versión del libro | F71: Valor
E72: Autor / propietario del libro de trabajo | F72: BF
E73: Revisor de control de calidad | F73: IS
E74: Fecha de la última revisión del libro | F74: 2020-12-11
E75: Oficial superior responsable (SRO) | F75: BF
E76: Gerente de proyecto (PM) | F76: BF
E77: Referencia de proyecto | F77: ED14247
E78: Organización del cliente | F78: World Bank
E79: Cliente (s) (si corresponde) | F79: Ministerio de Ambiente y Desarrollo Sostenible, Departamento Nacional de Planeación y el Ministerio de Hacienda y Crédito Público
E80: Requisito de control de calidad de Ricardo | F80: Level 1
E81: Puntuación de Ricardo QA | F81: 1

Sheet Mapa (hidden)
B2: ⌂ | C2: Mapa: navegación alrededor del modelo y clave
C3: Esta hoja proporciona una lista de hojas de libro
C5: 1. Tabla de contenidos
C6: Esta tabla enumera todas las hojas del libro de trabajo y describe la información clave registrada. Ademas proporciona un mapa del libro de trabajo, una lista de hojas y una clave de color
C8: Seccion | D8: Link | E8: Nombre Hoja | G8: Descripcion
C10: Guía del modelo | D10: =HYPERLINK("#'"&$E10&"'!A1","Go to") -> Go to | E10: Título | G10: Esta hoja proporciona una primera introducción al libro de trabajo
D11: Go to | E11: Guía de como usar el modelo | G11: Esta hoja contiene informacion conceptual para entender la lógica del modelo
D12: =HYPERLINK("#'"&$E12&"'!A1","Go to") -> Go to | E12: Mapa | G12: Esta hoja proporciona una primera introducción al libro de trabajo
C14: Análisis Consolidado | D14: =HYPERLINK("#'"&$E14&"'!A1","Go to") -> Go to | E14: << Análisis Consolidado >> | G14: Análisis consolidado de los resultados de costeo
D15: =HYPERLINK("#'"&$E15&"'!A1","Go to") -> Go to | E15: Análisis Consolidado - Costes | G15: Esta hoja resumen los principales resultados del ejercicio de costeo
C17: Revisión de metas | D17: Go to | E17: << I. Revisión >> | G17: Revisión de las metas
D18: =HYPERLINK("#'"&$E18&"'!A1","Go to") -> Go to | E18: Revisión de metas | G18: En esta hoja se revisa el alcance de las metas según la información de las fichas
C20: i. Efectividad | D20: Go to | E20: << II. Efectividad >> | G20: Impacto de las metas en la capacidad de adaptación
D21: =HYPERLINK("#'"&$E21&"'!A1","Go to") -> Go to | E21: Riesgos y vulnerabilidades | G21: Esta hoja presenta la matriz de evaluacion de riesgos y vulnerabilidades correspondiente a cada meta
C23: ii. Factibilidad | D23: Go to | E23: << III.1 Costeo >>
D24: Go to | E24: Meta 0 - Template | G24: Esta hoja se trata de un borrador guiar el ejercicio de costeo de Metas de adaptacion climatica adicionales
D25: Go to | E25: Meta 26 - Estaciones IDEAM | G25: Esta hoja ilustra el ejercicio de costeo realizado para la Meta 26: Estaciones IDEAM, la estimación de costos unitarios por componente y los supuestos utilizados
D26: =HYPERLINK("#'"&$E26&"'!A1","Go to") -> Go to | E26: Meta 2 - Cuencas | G26: Esta hoja ilustra el ejercicio de costeo realizado para la Meta 2: Cuencas, la estimación de costos unitarios por componente y los supuestos utilizados
D27: =HYPERLINK("#'"&$E27&"'!A1","Go to") -> Go to | E27: Meta 3.2.1 - Transporte | G27: Esta hoja ilustra el ejercicio de costeo realizado para la Meta 3.2.1: Transporte
D28: =HYPERLINK("#'"&$E28&"'!A1","Go to") -> Go to | E28: Meta 3.3 - Industria y Comercio | G28: Esta hoja ilustra el ejercicio de costeo realizado para la Meta 3.3 - Inustria y comercio
D29: Go to | E29: Meta 3.4.3 - Energia | G29: Esta hoja ilustra el ejercicio de costeo realizado para la Meta 3.4.3 - Energia
D30: =HYPERLINK("#'"&$E30&"'!A1","Go to") -> Go to | E30: Meta 3.5.2 - Salud | G30: Esta hoja ilustra el ejercicio de costeo realizado para la Meta 3.5.2 - Salud
D31: =HYPERLINK("#'"&$E31&"'!A1","Go to") -> Go to | E31: Meta 3.6.3 - Vivienda SAVER | G31: Esta hoja ilustra el ejercicio de costeo realizado para la Meta 3.6.3: Vivienda SAVER, la estimación de costos unitarios por componente y los supuestos utilizados
D32: =HYPERLINK("#'"&$E32&"'!A1","Go to") -> Go to | E32: Meta 4 - Páramos | G32: Esta hoja ilustra el ejercicio de costeo realizado para la Meta 4: Páramos, la estimación de costos unitarios por componente y los supuestos utilizados
D33: Go to | E33: Meta 5.2 Restauración PNN | G33: Esta hoja ilustra el ejercicio de costeo realizado para la Meta 5.2:Restauración PNN, la estimación de costos unitarios por componente y los supuestos utilizados
D34: Go to | E34: Meta 7 - Agricultura | G34: Esta hoja ilustra el ejercicio de costeo realizado para la Meta 7: Sector agricola
E35: … | G35: Se irán añadiendo hojas análogas a medida que se vayan incluyendo metas adicionales
D37: Go to | E37: << III.2 Datos y supuestos >> | G37: Desglose de acciones que componen las metas
D38: Go to | E38: Supuestos generales | G38: Esta hoja proporciona los supuestos generales del modelo
D39: Go to | E39: Soportes Meta 0 - Template | G39: Esta hoja incluye un borrador que proporciona la estructura para incluir las referencias que soporten los supuestos utilizados en el costeo de una nueva Meta
D40: Go to | E40: Soportes Meta 26 | G40: Esta hoja incluye las referencias que soportan los supuestos utilizados en el costeo de la Meta 26
D41: Go to | E41: Soportes Meta 2 | G41: Esta hoja incluye las referencias que soportan los supuestos utilizados en el costeo de la Meta 2
D42: Go to | E42: Soportes Meta 3.2.1 | G42: Esta hoja incluye las referencias que soportan los supuestos utilizados en el costeo de la Meta 3.2.1
D43: Go to | E43: Soportes Meta 3.3 | G43: Esta hoja incluye las referencias que soportan los supuestos utilizados en el costeo de la Meta 3.3
D44: Go to | E44: Soportes Meta 3.4.3 | G44: Esta hoja incluye las referencias que soportan los supuestos utilizados en el costeo de la Meta 3.4.3
D45: Go to | E45: Soportes Meta 3.5.2 | G45: Esta hoja incluye las referencias que soportan los supuestos utilizados en el costeo de la Meta 3.5.2
D46: Go to | E46: Soportes Meta 3.6.3 | G46: Esta hoja incluye las referencias que soportan los supuestos utilizados en el costeo de la Meta 3.6.3
D47: Go to | E47: Soportes Meta 4 | G47: Esta hoja incluye las referencias que soportan los supuestos utilizados en el costeo de la Meta 4
D48: Go to | E48: Soportes Meta 5.2 | G48: Esta hoja incluye las referencias que soportan los supuestos utilizados en el costeo de la Meta 5.2
D49: Go to | E49: Soportes Meta 7 | G49: Esta hoja incluye las referencias que soportan los supuestos utilizados en el costeo de la Meta 7
E50: … | G50: Se irán añadiendo hojas análogas a medida que se vayan incluyendo metas adicionales
D52: Go to | E52: << III.3 Financiación >> | G52: Financiación disponible
D53: =HYPERLINK("#'"&$E53&"'!A1","Go to") -> Go to | E53: Subvenciones y otros | G53: Subvenciones y otras fuentes de financiacion ventajosa disponibles
C55: Co-beneficios otras metas | D55: =HYPERLINK("#'"&$E55&"'!A1","Go to") -> Go to | E55: <<IV. Co-beneficios>> | G55: Co-beneficios generados en otras areas de NDC adaptación
D56: =HYPERLINK("#'"&$E56&"'!A1","Go to") -> Go to | E56: Evaluación co-beneficios | G56: Esta hoja contiene una matriz de evaluacion de co-beneficios para cada una de las metas analizadas
C58: Resultados | D58: =HYPERLINK("#'"&$E58&"'!A1","Go to") -> Go to | E58: << V. Resultados >> | G58: Resultados generales del modelo
D59: =HYPERLINK("#'"&$E59&"'!A1","Go to") -> Go to | E59: Resultados generales | G59: Esta hoja contiene gráficas y tablas que presentan de forma completa y detallada los resultados obtenidos
C61: Pasos ulteriores | D61: =HYPERLINK("#'"&$E61&"'!A1","Go to") -> Go to | E61: << VI. Pasos ulteriores >> | G61: Pasos posteriores a la actualizacion de las metas NDC
D62: =HYPERLINK("#'"&$E62&"'!A1","Go to") -> Go to | E62: Hoja de ruta | G62: En esta hoja se incluye una plantilla para disenar la hoja de ruta y posterior monitoreo
D63: =HYPERLINK("#'"&$E63&"'!A1","Go to") -> Go to | E63: Monitoreo | G63: En esta hoja se incluye una plantilla para disenar la hoja de ruta y posterior monitoreo

Sheet << Análisis Consolidado >> (hidden)
B2: Análisis Consolidado

Sheet << I. Revisión de metas >> (hidden)
B2: Revisión de las metas segun la información de la fichas

Sheet Revisión de metas (hidden)
D2: Metas: listado e informacion general de metas
D3: Esta hoja proporciona la informacion existente sobre las metas
D4: Fuente: Fichas metas NDC Colombia y elaboracion propia
D6: 1. Listado de Metas
D7: Metas segun las fichas Colombia NDC Adaptacion
D9: COD_Meta | E9: Nombre acortado | F9: Sector | G9: Meta | H9: Descripccion de la meta | I9: Objetivo | J9: Entidad responsible | K9: Dependencia de la entidad responsible | L9: Otras instituciones / entidades | M9: Supuestos | N9: Indicador | O9: Punto de referencia del indicador | P9: Hitos de cumplimiento de la meta | Q9: Documentos soportes | R9: Instrumento/ sistema de reporte del indicador | S9: Periodicidad del reporte | T9: Necesidades para el cumplimiento de la meta | U9: Medios de implementación | V9: Avances | W9: Requerimientos | X9: Fuentes | Y9: Relacion NDC previo | Z9: Clasificacion de meta | AA9: Seleccion en ejercicio de costeo
D10: 1 | E10: Vivienda (Instrumentos): 5 | F10: Vivienda | G10: Viceministerio de Vivienda * Incorporación de adaptación al cambio climático en los instrumentos sectoriales, a través de desarrollo de lineamientos, herramientas y criterios que orienten la gestión de la adaptación en el sector. | H10: La meta se enfoca en las medidas establecidad en el PIGCCS que son las siguientes: 1) Lineamientos de adaptación ante el cambio climático articulados con la gestión del riesgo, para ser incorporados en los POT La definición de lineamientos de adaptación ante el cambio climático y su correspondiente articulación con los ya existentes en materia para la gestión del riesgo de desastres en el país, constituyen una oportunidad para avanzar en la generación de acuerdos conceptuales y metodológicos integradores que permitan incorporar estos elementos en los POT. Lo anterior, según los escenarios de cambios climáticos, sus características físicas, ambientales y sociales, así como, su capacidad administrativa y financiera para la formulación e implementación de estrategias y medidas a corto, mediano y largo plazo. 2) Lineamientos de adaptación de asentamientos en zonas de alto riesgo mitigable Los lineamientos de adaptación de asentamientos en zonas de alto riesgo mitigable tienen como objetivo brindar a los municipios herramientas para la formulación de estrategias a corto, medianos y largo plazo que permita avanzar a la consolidación de asentamiento más resilientes en las zonas más vulnerables del municipio. 3) Herramientas jurídicas y técnicas para la liberación y protección de áreas con condición de alto riesgo no mitigable La definición de herramientas jurídicas y técnicas para la liberación y protección de áreas con condición de riesgo alto no mitigable que permitan prevenir la generación de riesgos asociados al cambio climático y consolidar áreas que aumenten la capacidad de adaptación de los municipios. Lo anterior, en articulación, con los proyectos planteados en el Plan Nacional de Gestión del Riesgo de Desastres 2015-2025. 4) Criterios de adaptación ante el cambio climático aplicables a edificaciones nuevas La formulación de criterios de adaptación ante el cambio climático aplicables a edificaciones nuevas tiene como finalidad que desde la etapa de diseño se generen medidas que tengan en cuenta la variabilidad local de las condiciones climáticas futuras y cuyo análisis se vea reflejado en su etapa de diseño y construcción; medida, que debe articularse y promoverse con la banca nacional, permitiendo la generación de tasas preferenciales para las viviendas que se construyan o adquieran con criterios de adaptación. | I10: Fortalecer los procesos de planeación territorial y construcción de viviendas a través de la generación de lineamientos, criterios y herramientas para reducir la vulnerabilidad del sector vivienda. Descrip meta: 4 temas: lineamientos a POT , a asentamientos en riesgo, herramientas jurídicas, criterios para edificaciones nuevas | J10: Minvivienda | K10: Viceministerio de Vivienda - Dirección de Espacio Urbano y Territorial | L10: La UNGRD, Minambiente, Corporaciones Autónomas Regionales y las diferentes entidades territoriales de orden local y regional. | M10: 1. El Ministerio de Vivienda, Ciudad y Territorio en el marco de lo establecido en el Decreto 3571 de 2011 busca “orientar el proceso de formulación de las políticas y regulaciones sobre zonificación y uso adecuado del suelo para adelantar procesos de urbanización, así como de urbanismo y construcción sostenible que incorporen las directrices de prevención, mitigación y adaptación al cambio climático fijadas por el Ministerio de Ambiente y Desarrollo Sostenible". 2. El PIGCCS es un instrumento dinámico, razon por la cual, tanto las líneas estratégicas como las medidas, pueden varias en cada actualización de dicho documento. 3. El MVCT a través del sector vivienda, ciudad y territorio gestionará la consecución de recursos técnicos y financieros para el desarrollo de las medidas, herramientas y criterios de adaptación plateadas en el PIGCCS. | N10: - Lineamientos para la incorporación de cambio climático articulados con la gestión del riesgo, para ser incorporados en los POT. - Lineamientos de adaptación para los asentamientos en zonas de alto riesgo mitigable - Herramientas jurídicas y técnicas para la liberación y protección de áreas con condición de alto riesgo no mitigable - Criterios de adaptación ante el cambio climático aplicables a edificaciones nuevas | O10: Actualmente no existe ningún: - Lineamiento para la incorporación de cambio climático articulados con la gestión del riesgo, para ser incorporados en los POT. - Lineamiento de adaptación para los asentamientos en zonas de alto riesgo mitigable - Herramienta jurídicas y técnicas para la liberación y protección de áreas con condición de alto riesgo no mitigable - Criterio de adaptación ante el cambio climático aplicables a edificaciones nuevas | P10: A 2025 se generarán: -lineamientos para la incorporación de cambio climático articulados con la gestión del riesgo, para ser incorporados en los POT. - lineamientos de adaptación para los asentamientos en zonas de alto riesgo mitigable - herramientas jurídicas y técnicas para la liberación y protección de áreas con condición de alto riesgo no mitigable - criterios de adaptación ante el cambio climático aplicables a edificaciones nuevas | Q10: CONPES 3700 de 2011. Define la estrategia institucional para la articulación de políticas y acciones en materia de cambio climático en Colombia. Decreto 3571 de 2011. En su artículo 11 define “Orientar el proceso de formulación de las políticas y regulaciones sobre zonificación y uso adecuado del suelo para adelantar procesos de urbanización, así como de urbanismo y construcción sostenible que incorporen las directrices de prevención, mitigación y adaptación al cambio climático fijadas por el Ministerio de Ambiente y Desarrollo Sostenible”. Ley 1523 de 2012 “Por la cual se adopta la política nacional de gestión del riesgo de desastres y se establece el Sistema Nacional de Gestión del Riesgo de Desastres y se dictan otras disposiciones”. Decreto 1807 de 2014. “Por el cual se reglamenta el artículo 189 del Decreto Ley 019 de 2012 en lo relativo a la incorporación del riesgo en los planes de ordenamiento territorial”. Decreto 1077 de 2015. Decreto Único Reglamentario del Sector Vivienda, Ciudad y Territorio "Por medio del cual se expide el Decreto Único Reglamentario del Sector Vivienda, Ciudad y Territorio. CONPES 3918 DE 2018. “Estrategia Para La Implementación De Los Objetivos De Desarrollo Sostenible (ODS) En Colombia”. Busca Definir la estrategia de implementación de los ODS en Colombia, estableciendo el esquema de seguimiento, reporte y rendición de cuentas, el plan de fortalecimiento estadístico, la estrategia de implementación territorial y el mecanismo de interlocución con actores no gubernamentales. | R10: Matriz de seguimiento de las medidas del Plan Integral de Gestión del Cambio Climatico Sectorial. Matriz de reporte de metas del Ministerio de Vivienda, Ciudad y Territorio. | S10: Anual | T10: Fortalecimiento técnico del equipo humano del MVCT respecto al sector vIvienda, ciudad y territorio, siendo constituido un equipo transversal de trabajo para los temas que son responsabilidad de este sector de acuerdo con sus funciones delegadas en las normas y el PIGCCS. Es necesaria la financiación a través de fuentes nacionales y/o internacionales para el desarrollo de las consultorias o convenios interadminitrativos necesarios para la formulación de los lineamientos requeridos en el cumplimiento de las metas establecidas en el PIGCCS. Revisión de experiencias adquiridas por parte de las Corporaciones Autónomas Regionales, nodos regionales y las diferentes entidades territoriales de orden local y regional. | U10: 1, 2, 3, 4, 5 | V10: 1. N/A. 2. N/A 3. N/A 4. Formulación del PIGCCS. 5. N/A | W10: 1. Capacitación a los equipos del sector vivienda, ciudad y territorio en el conocimiento e impacto del cambio climático en sus actividades misionales y como este deberá incorporarse en sus proyectos de ejecución. 2. Desarrollo de consultorias y/o suscripción de convenios interadministrativos relacionados con el cumplimiento de la meta. 3. Definición de mecanismos de financiación para la implementación del PIGCCS. 4. Apoyo para la implementación del Plan de Acción del PIGCCS. 5. Fortalecimiento de los recursos fisicos disponibles del MVCT en cuanto a equipos para el procesamiento de información geografica y estadistica. Financiamiento del equipo técnico en el sector vivienda, ciudad y territorio requerido para la implementación del PIGCCS Consolidación del equipo de cambio climático del sector vivienda, ciudad y territorio. | Z10: Meta tipo 2.2 - referencia indiracta | AA10: Si
D11: 2 | E11: Vivienda (Cuencas) 1 | F11: Vivienda | G11: Viceministerio de Agua y Saneamiento * Desarrollar acciones de protección y conservación en 24 cuencas abastecedoras de acueductos en los municipios susceptibles al desabastecimiento por temporada de bajas precipitaciones y temporada de lluvia. | H11: Promover las intervenciones de conservación, protección y manejo de las cuencas y fuentes abastecedoras de acueductos prioritarias, a través de las actividades reglamentadas por el decreto 1007 de 2018: • Pago por servicies ambientales de regulación y calidad hídrica • Pago por servicios ambientales para la conservación de la biodiversidad • Pago por servicios ambientales de reducción y captura de gases efecto invernadero • Pago por servicios ambientales culturales, espirituales y de recreación | I11: Desarrollar intervenciones multisectoriales de conservación, protección y manejo en las cuencas y fuentes abastecedoras de acueductos prioritarias definidas por el MVCT | J11: Minvivienda | K11: Viceministerio de Agua y Saneamiento Básico, Dirección de Desarrollo Sectorial, Grupo de Desarrollo Sostenible | L11: MVCT, IDEAM, Minambiente, CRA, SSPD, Gobernaciones, Empresas Prestadoras de Servicios Público, Corporaciones Autónomas Regionales, Instituto Geográfico Agustín Codazzi, ONGs, Academia, Consejo Nacional del Agua | M11: Los supuestos para el correcto desarrollo de esta meta son: • Las líneas estrategicas identificadas en el PIGCCS están articuladas con la Politica Nacional de Cambio Climático y demás estrategías a nivel nacional con un horizonte de cumplimiento a 2030 • La estructuración técnica y financiera de las medidas de adaptación al cambio climático están validadas por el VASB, los prestadores y demás actores del sector, por lo que serán las acciones definitivas a implementar • Se articulará el seguimiento del sector con los lineamientos para realizar el monitoreo y evaluación de la implementación de las medidas de adaptación de la política nacional de cambio climático • Las medida identificadas tendrán que desarrollarse de manera interinstitucional que permitán su adecuada ejecución | N11: (Número de intervenciones realizadas por cuenca priorizada / 24 cuencas priorizadas )*100 | O11: La línea base del indicador es 0% | P11: 2024 - Mapear costos de oportunidad y costos de operación para la implementación de acciones de protección y conservación de las cuencas prioritarias. 2030 - Implementar acción de conservación y protección en las 24 cuencas priorizadas 2030 - Generar la estrategia de monitoreo de las acciones implementadas de conservación y protección de las 24 cuencas priorizadas | Q11: Estructuración técnica y financiera de la medida: desarrollo de una estrategia de protección y conservación de las cuencas y fuentes abastecedoras de acueductos priorizadas, ajustada a los diferentes escenarios climatológicos actuales y futuros de cada región | R11: El PIGCCS cuenta con la matriz de operatividad donde se identifican las medidas en cumplimiento de la meta y adicionalmente se desarrollaron las acciones especificas dentro de la estructuración técnica para cada medida | S11: Anual | T11: • Reglamentación del Decreto 1207 de 2018 en relación con la incorporación de los costos de inversiones ambientales en la tarifa de acueducto con base en la Resolución 0874 de 2018. (MVCT – CRA) • Intercambios de conocimiento, tecnología y experiencias exitosas con otros países en materia de adaptación al cambio climático para el sector de agua y saneamiento básico • Estudios para la identificación de costos ambientales asociados a la prestación de los servicios de alcantarillado y aseo y su incorporación en la formula tarifaria • Intercambios de conocimiento, tecnología y experiencias exitosas con otros países en materia de adaptación al cambio climático para el sector de agua y saneamiento básico | U11: 3, 4 | V11: 4. Identificación de 11 medidas de adaptación al cambio climático en el Plan Integral de Gestión de Cambio Climático para el sector de agua potable y saneamiento básico | W11: 3. Se requiere de la identificación de las fuente de financiación y metodologías necesarias para acceder a ellas y poder implementar las medidas de adaptación identificadas en el Plan Integral de Gestión de Cambio Climático para el sector de agua potable y saneamiento básico | AA11: No
D12: 3 | E12: Vivienda (Gestión del riesgo) 2 | F12: Vivienda | G12: Viceministerio de Agua y Saneamiento * Desarrollar acciones estructurales y no estructurales, de gestión del riesgo para la adaptación al cambio climático en el 30% de los municipios priorizados por susceptibilidad al desabastecimiento por temporada seca y temporada de lluvias (2030) | H12: La meta busca desarrollar acciones en al menos 117 municipios de los 391 municipios priorizados (la priorización de municipios varía año a año dependiendo de las afectaciones) susceptibles a desabastecimiento en el territorio nacional por bajas precipitaciones y/o temporada de lluvias, resultado de los los análisis de afectaciones en el sector de agua y saneamiento por eventos extremos, y la recurrencia, con implementación de medidas de adaptación identificadas estructurales (construcciones que ayudan a reducir el impacto) y no estructurales (políticas, concienciación, desarrollo del conocimiento, reglas de operación, mecanismos de participación pública e información a la población), para el desarrollo de la línea estratégica de gestión del riesgo para la adaptación buscando generar información que soporte la toma de decisiones, mejorar la gestión de los riesgos asociados a un clima cambiante, así como favorecer la construcción y fortalecimiento de capacidades de los actores del sector como los entes territoriales y empresas de servicios públicos domiciliarios | I12: Fortalecer la resiliencia y la capacidad de adaptación a los riesgos relacionados con el clima que afectan el sector. A través de la implementación de acciones estructurales y no estructurales en el 30% municipios priorizados por susceptibilidad al desabastecimiento por temporada seca y temporada de lluvia | J12: Minvivienda | K12: Viceministerio de Agua y Saneamiento Básico, Dirección de Desarrollo Sectorial, Grupo de Desarrollo Sostenible | L12: DNP, Minambiente, Minvivienda, Mintic, Mintransporte, Mincultura,Minsalud, Minminas, Mineducación, CRA, IDEAM e Institutos de Investigación, Gobernaciones y alcaldías, empresas de servicios públicos, Empresas particulares, Autoridades ambientales regionales y urbanas, nodos regionales de cambio climático. | M12: Los supuestos para el correcto desarrollo de esta meta son: • Las líneas estrategicas identificadas en el PIGCCS están articuladas con la Politica Nacional de Cambio Climático y demás estrategías a nivel nacional con un horizonte de cumplimiento a 2030 • La estructuración técnica y financiera de las medidas de adaptación al cambio climático están validadas por el VASB, los prestadores y demás actores del sector, por lo que serán las acciones definitivas a implementar • Se articulará el seguimiento del sector con los lineamientos para realizar el monitoreo y evaluación de la implementación de las medidas de adaptación de la política nacional de cambio climático • Las medida identificadas tendrán que desarrollarse de manera interinstitucional que permitán su adecuada ejecución • Los 391 municipios priorizados por susceptibilidad al desabastecimiento por temporada seca y temporada de lluvias en el año 2019 | N12: * Porcentaje de municipios con acciones estructurales y no estructurales de gestión del riesgo para la adaptación al cambio climático priorizados por desabastecimiento por temporada seca y temporada lluvia | O12: La línea base del indicador son los 391 municipios priorizados por susceptibilidad al desabastecimiento por temporada seca y temporada de lluvias en el año 2019. | P12: 2022 - Actualización de instrumentos normativos y técnicos 2023 - Desarrollo de una estrategia de asistencia técnica enfocada a la socialización de los instrumentos normativos y técnicos 2024 - Desarrollo de una estrategia interinstitucional que permita dinamizar y potencializar los sistemas de alerta temprana 2027 - Promoción de estrategias de transferencia del riesgo e instrumentos 2030 - Desarrollo de una estrategia que permita incentivar el desarrollo de SUDS 2030 - Desarrollo de una estrategia que promueva la inversión de actores públicos y privados 2030 - Fortalecer la gestión del conocimiento en adaptación al cambio climático de los prestadores de los servicios públicos de acueducto, alcantarillado y aseo y entidades territoriales mediante la generación de información técnica a un mayor detalle de cambio climático relacionada con el sector 2030 - Desarrollo de una estrategia de educación con el fin de incrementar el conocimiento sobre adaptación al cambio climático sectorial | Q12: Estructuración técnica y financiera de las medidas: -Estrategia de asistencia técnica -Gestión del conocimiento -Estrategia de educación sobre adaptación al cambio climático sectorial -Promover la inversión de actores públicos y privados -Sistemas de alerta temprana -Desarrollo de SUDS (Sistemas Urbanos de Drenaje Sostenible) -Transferencia del riesgo e instrumentos financieros | R12: El PIGCCS cuenta con la matriz de operatividad donde se identifican las medidas en cumplimiento de la meta y adicionalmente se desarrollaron las acciones especificas dentro de la estructuración técnica para cada medida | S12: Anual | T12: • Implementación de tecnología e infraestructura resiliente al clima • Identificación de criterios de cambio climático dentro de instrumentos sectoriales junto con las propuestas de modificación • Intercambios de conocimiento, tecnología y experiencias exitosas con otros países en materia de adaptación al cambio climático para el sector de agua y saneamiento básico • Lineamientos o criterios para el diseño, construcción y operación de infraestructura nueva y existente resiliente al clima | U12: 3, 4 | V12: 4. Identificación de 11 medidas de adaptación al cambio climático en el Plan Integral de Gestión de Cambio Climático para el sector de agua potable y saneamiento básico | W12: 3. Se requiere de la identificación de las fuente de financiación y metodologías necesarias para acceder a ellas y poder implementar las medidas de adaptación identificadas en el Plan Integral de Gestión de Cambio Climático para el sector de agua potable y saneamiento básico | AA12: No
D13: 4 | E13: Vivienda (Tratamiento aguas residuales) 3 | F13: Residuos | G13: Viceministerio de Agua y Saneamiento *Alcanzar 68 % del tratamiento de aguas residuales urbanas domésticas (2030) (Por ajustar) | H13: Generar conocimiento y reducción del riesgo climático de los posibles impactos (positivos y negativos) del cambio climático sobre los parámetros de cobertura, calidad y continuidad que deben asegurar los prestadores del servicio público de alcantarillado, como insumo para la definición de lineamientos en el diseño, construcción u optimización y operación de sistemas sostenibles para el tratamiento de aguas residuales domésticas. A través de componentes de innovación tecnología, ajuste y desarrollo de normatividad sectorial y fortalecer los protocolos de formulación y aprobación de proyectos en aguas residuales domesticas con la incorporación de parámetros de adaptación al cambio climático. | I13: Aumentar la cobertura y calidad en el tratamiento del caudal de aguas residuales a fin de proteger la cuencas y fuentes abastecedoras de acueductos más contamindados fortaleciendo con criterios de adaptación al cambio climático los procesos involucrados en la ejecución del programa SAVER | J13: Minvivienda | K13: Viceministerio de Agua y Saneamiento Básico, Dirección de Desarrollo Sectorial, Grupo de Desarrollo Sostenible | L13: MVCT, Minambiente, SSPD, UNGRD, DANE, Autoridades Ambientales, Fondo de Adaptación, Agremiaciones del sector, Planes Departamentales de Agua, Empresas Prestadoras de Servicios Públicos | M13: Los supuestos para el correcto desarrollo de esta meta son: • Las líneas estrategicas identificadas en el PIGCCS están articuladas con la Politica Nacional de Cambio Climático y demás estrategías a nivel nacional con un horizonte de cumplimiento a 2030 • La estructuración técnica y financiera de las medidas de adaptación al cambio climático están validadas por el VASB, los prestadores y demás actores del sector, por lo que serán las acciones definitivas a implementar • Se articulará el seguimiento del sector con los lineamientos para realizar el monitoreo y evaluación de la implementación de las medidas de adaptación de la política nacional de cambio climático • Las medidas identificadas tendrán que desarrollarse de manera interinstitucional que permitán su adecuada ejecución • Las 10 cuencas priorizadas en el programa SAVER cuentan con esquemas de financiación. | N13: * Porcentaje de cobertura de tratamiento de las aguas residuales domésticas tratadas | O13: La línea base del indicador es 42.85% | P13: 2023 - Elaborar estudios técnicos y económicos que identifiquen los impactos y oportunidades 2025 - Evaluación y actualización de instrumentos normativos, técnicos y de planificación sectorial 2028 - Sensibilización sobre la importancia de integrar la adaptación al cambio climático en la planificación sectorial 2030 - Optimización de los Sistemas de Tratamiento de Aguas Residuales Municipales actuales y proyectados con lineamientos de infraestructura sostenible capaz de afrontar los retos de la variabilidad y el cambio climático presente y futuro | Q13: Estructuración técnica y financiera de la medida: desarrollo de una estrategia que potencialice el reúso de las aguas residuales domesticas tratadas en las zonas con estrés hídrico. | R13: El PIGCCS cuenta con la matriz de operatividad donde se identifican las medidas en cumplimiento de la meta y adicionalmente se desarrollaron las acciones especificas dentro de la estructuración técnica para cada medida | S13: Anual | T13: • Trabajo conjunto con Minambiente para la articulación normativa asociada a los vertimientos domésticos • Generación de habilitantes en la gestión de las agua residuales mediante la agenda interministerial • Actualización del Plan de Manejo de Aguas residuales Domésticas (PMAR) • Intercambios de conocimiento, tecnología y experiencias exitosas con otros países en materia de adaptación al cambio climático para el sector de agua y saneamiento básico | U13: 3, 4 | V13: 4. Identificación de 11 medidas de adaptación al cambio climático en el Plan Integral de Gestión de Cambio Climático para el sector de agua potable y saneamiento básico | W13: 3. Se requiere de la identificación de las fuente de financiación y metodologías necesarias para acceder a ellas y poder implementar las medidas de adaptación identificadas en el Plan Integral de Gestión de Cambio Climático para el sector de agua potable y saneamiento básico | Z13: Meta tipo 2.3 - referencia similar | AA13: Si
D14: 5 | E14: Vivienda (Reuso) 4 | F14: Vivienda | G14: Viceministerio de Agua y Saneamiento * Reusar el 10% de las aguas residuales domésticas tratadas por parte de los prestadores del servicio público de acueducto (2030) | H14: Esta meta propone la creación de condiciones habilitantes que permitan la modificación de la normativa actual del reúso del agua residual tratada, la generación de conocimiento sobre los benéficos económicos y ambientales de la implementación en zonas de escasez hídrica, la implementación de pilotos que permitan evaluar los costos a corto y largo plazo que podrían asumir los prestadores (trámites administrativos, inversión en tecnología y operación) al implementar el reúso de aguas tratadas, impulsar la transferencia de tecnologías y promover políticas de reconocimiento de incentivos a las empresas que adelanten este tipo de actividades | I14: Proponer acciones intersectoriales que contribuyan a generar una reglamentación sobre el reúso de agua residual tratada teniendo en cuenta criterios e información técnica aportada por los diferentes sectores (Agricultura, Minas y Energía, Industria, Ambiente y Vivienda), y generar incentivos para que los usuarios del recurso hídrico apliquen esta práctica, obteniendo beneficios económicos y al mismo tiempo generando beneficios ambientales. | J14: Minvivienda | K14: Viceministerio de Agua y Saneamiento Básico, Dirección de Desarrollo Sectorial, Grupo de Desarrollo Sostenible | L14: Minambiente , Corporaciones Autónomas Regionales , Empresas Prestadoras de Servicios Públicos, MVCT, DNP – SGT, Comisión Intersectorial de Cambio Climático, Academia, Comisión de Regulación de Agua Potable y Saneamiento Básico | M14: Los supuestos para el correcto desarrollo de esta meta son: • Las líneas estrategicas identificadas en el PIGCCS están articuladas con la Politica Nacional de Cambio Climático y demás estrategías a nivel nacional con un horizonte de cumplimiento a 2030 • La estructuración técnica y financiera de las medidas de adaptación al cambio climático están validadas por el VASB, los prestadores y demás actores del sector, por lo que serán las acciones definitivas a implementar • Se articulará el seguimiento del sector con los lineamientos para realizar el monitoreo y evaluación de la implementación de las medidas de adaptación de la política nacional de cambio climático • Las medida identificadas tendrán que desarrollarse de manera interinstitucional que permitán su adecuada ejecución | N14: * Porcentaje de agua residual tratada en acciones de reúso por parte de los prestadores del servicio público de acueducto | O14: La línea base del indicador es 0% | P14: 2022 - Modificación normativa 2024 - Incio de desarrollo de proyectos pilotos 2024 - Promover los ajustes normativos pertinentes en los marcos tarifarios de prestadores de servicios públicos que incentiven la actividad de reúso de aguas residuales tratadas. 2025 - Fortalecer instancias intersectoriales a nivel nacional y regional como el “PAP-PDA, CICC, Nodos Regionales, Consejos Ambientales Regionales de Cuencas”, que orienten la construcción de políticas sectoriales con una visión compartida para el uso eficiente del agua | Q14: Estructuración técnica y financiera de la medida: desarrollo de una estrategia que potencialice el reúso de las aguas residuales domesticas tratadas en las zonas con estrés hídrico. | R14: El PIGCCS cuenta con la matriz de operatividad donde se identifican las medidas en cumplimiento de la meta y adicionalmente se desarrollaron las acciones especificas dentro de la estructuración técnica para cada medida | S14: Anual | T14: • Ajuste del Decreto 1207 de 2014 sobre reúso de las aguas residuales tratadas (MADS – MVCT) • Mejorar el conocimiento sobre los potenciales en el reúso de las aguas residuales domestica (MADS – MVCT) • Intercambios de conocimiento, tecnología y experiencias exitosas con otros países en materia de adaptación al cambio climático para el sector de agua y saneamiento básico • Establecer los lineamientos de monitoreo y evaluación de manera articulada con los sectores que hacen parte del SISCLIMA • Establecer un marco reglamentario y regulatorio asociado a temas de reúso | U14: 3, 4 | V14: 4. Identificación de 11 medidas de adaptación al cambio climático en el Plan Integral de Gestión de Cambio Climático para el sector de agua potable y saneamiento básico | W14: 3. Se requiere de la identificación de las fuente de financiación y metodologías necesarias para acceder a ellas y poder implementar las medidas de adaptación identificadas en el Plan Integral de Gestión de Cambio Climático para el sector de agua potable y saneamiento básico | Z14: Meta tipo 2.2 - referencia indiracta | AA14: No
D15: 6 | E15: Salud (prevención de enferemedades): 1 | F15: Salud | G15: A 2030 se formularán acciones de adaptación en prevención de la enfermedad y promoción de la salud, que aporten a reducir los casos de enfermedades sensibles al clima en el 100% de las Entidades Territoriales en el sector salud, del nivel departamental, distrital y municipal de categoria 1, 2 y 3, y estarán implementadas en un 40% de éstas. | H15: Debido a la variabilidad climática y el cambio climático, las enfermedades en Colombia han ido aumentando, al igual que en ocasiones, los brotes epidémicos, producto de la ocurrencia de eventos climáticos extremos. Por tal razón, es necesario contar con el conocimiento que permita describir el comportamiento de las enfermedades sensibles al clima (definidas como todas aquellas enfermedades que pueden incrementarse debido a la variación anormal de factores climáticos y con ello aumentar la carga de la enfermedad causando problemas de salud pública), logrando formular e implementar acciones de adaptación específicas para cada territorio del país. Para ello, es fundamental el rol que cumplen las diferentes autoridades sanitarias y ambientales en el país. Para la meta propuesta, el Ministerio de Salud y Protección Social, desde la Dirección de Promoción y Prevencion será el encargado de reportar el avance de la meta y brindar apoyo a las Direcciones Territoriales de Salud, junto con el apoyo del Instituto Nacional de Salud, como institución encargada de la vigilancia en salud pública, quienes se encargarán de apoyar al Ministerio y a las Direcciones Territoriales de Salud en lo concerniente a la vigilancia epidemiológica y ambiental de los eventos en salud relacionados con la variabilidad y el cambio climático. Es importante aclarar que las competencias de las Entidades Territoriales y Direcciones Territoriales de Salud, se enmarca en lo que define la Ley 715 de 2001 y en cuanto a las categorías de los municipios se tiene en cuenta lo que establece la Ley 617 del 2000 y considernando la re-categorización que exista a la fecha en que se realice el reporte de avance de la meta. De igual manera, las acciones no se realizarán en el 100% de los municipios del país, sino que esto dependerá de la priorización que cada Entidad Territorial realicé sobre sus municipios; razón por la cual, el número de municipios sobre los cuales se formularán e implementarán acciones, dependerá de los recursos y prioridades que tenga cada Entidad Territorial. | I15: Formular e implementar acciones de adaptación dirigidas a fortalecer la resiliencia de las personas y comunidades frente a la variabilidad y el cambio cimático y disminuir los casos de enfermedades sensibles al clima por medio de estrategias de prevención de la enfermedad y promoción de la salud en todas las entidades territoriales del sector salud del país. | J15: Minsalud | K15: Dirección de Promoción y Prevención, con apoyo de la Oficina Asesora de Planeación y Asuntos Sectoriales y la Dirección de Epidemiología y Demografía del MSPS. | L15: Entidades territoriales departamentales y distritales y municipios de categoria 1, 2 y 3 en cabeza de la Dirección Territorial de Salud. INS IDEAM | M15: Para dar cumplimiento a la meta propuesta, se debe considerar lo siguiente: 1. Cada Entidad Territorial departamental, distrital y municipal de categoría 1, 2 y 3 cuente con un Plan Territorial de Adaptación al Cambio Climático desde el componente de salud ambiental para articular las acciones de prevención de la enfermedad y promoción de la salud, establecido bajo la meta 24 de la dimensión de salud ambiental del PDSP 2012 - 2021. 2. El Ministerio de Salud y Protección Social es el encargado de dar los lineamientos para la formulación e implementación de acciones. 3. Son las Entidades Territoriales del sector salud las encargadas de la formulación e implementación de las acciones. 4. La priorización de los municipios en los cuales se implementarán las acciones es competencia de cada Entidad Territorial. | N15: (# de Entidades Territoriales departamentales, distritales y municipios categoría 1, 2 y 3 que formulan acciones de adaptación al cambio climático desde la promoción de la salud y prevención de las enfermedades sensibles al clima/Total de la Entidades Territoriales departamentales, distritales y municipios categoría 1, 2 y 3)*100 (# de Entidades Territoriales departamentales, distritales y municipales categoría 1, 2 y 3 que implementan acciones de adaptación al cambio climático desde la promoción de la salud y prevención de las enfermedades sensibles al clima/Total de la Entidades Territoriales departamentales, distritales y municipios categoría 1, 2 y 3)*100 | O15: A la fecha, no se cuenta con un diagnóstico actualizado de las Direcciones Territoriales que han formulado el Plan Territorial de Adaptación al Cambio Climático desde el componente de salud ambiental, debido a que existen algunas en las que el Plan ya está formulado, pero no se ha iniciado su implementación, mientras que en otras aún no se ha priorizado y no se cuenta con su formulación. Por ésta razón desde la Subdirección de Salud Ambiental del Ministerio de Salud y Protección Social se está solicitando la información a cada Dirección Territorial de Salud del avance en su formulación e implementación, enmarcado en el cumplimiento de la meta 24 del PDSP 2012-2021 y de ésta manera poder contar con el dato real actualizado. Se espera contar con la línea base real, para el primer trimestre de 2021. | P15: A 2023 se contará con la formulación de acciones de adaptación en un 20% de las entidades territoriales departamentales, distritales y categorías 1,2 y 3 del país, en cabeza de las Direcciones Territoriales de Salud. A 2027 se contará con la formulación de acciones de adaptación desde promoción y prevención en al menos el 45% de las entidades territoriales departamentales, distritales y categorías 1, 2 y 3. A 2028 se contará con la implementación de acciones de adaptación desde promoción y prevencion en un 15% de las entidades territoriales departamentales, distritales y categorías 1, 2 y 3. A 2030 se contará con la formulación de acciones de adaptación desde promoción y prevención en 100% de las entidades territoriales departamentales, distritales y categorías 1, 2 y 3 A 2030 se contará con la implementación de acciones de adaptación desde promoción y prevencion en el 40% de las entidades territoriales | Q15: Plan Decenal de Salud Pública 2012 - 2021 (Resolución 1841 de 2013). Disponible en: https://www.minsalud.gov.co/sites/rid/Lists/BibliotecaDigital/RIDE/DE/DIJ/resolucion-1841-de-2013.pdf Análisis de Situación en Salud (ASIS) Colombia, 2019. Disponible en: https://www.minsalud.gov.co/sites/rid/Lists/BibliotecaDigital/RIDE/VS/ED/PSP/asis-2019-colombia.pdf Plan Integral de Cambio Climático del sector Salud (PIGCCS). Se encuentra en: C:\Users\dmorenoh\Documents\InformacionMSPS\Salud Ambiental 2020\CAMBIO CLIMÁTICO\PIGCCS\Adaptación. | R15: Se elaborará desde la Dirección de Promoción y Prevención por medio de una matriz para el reporte de cada indicador, la cual será compartida con el/la responsable del Ministerio de Ambiente y Desarrollo Sostenible. | S15: Anual | T15: *Contar con recursos económicos e instrumentos financieros para la implementación de las acciones de adaptación al cambio climático desde el sector salud. * Priorizar las acciones por parte de gobernadores, alcaldes y por las Secretarías de Planeación y de Salud en la formulación de sus Planes Territoriales de Salud. * Recibir apoyo por parte del sector ambiente, educación y planeación para la articulación de las acciones a los Planes y políticas existentes. *Las Entidades Territoriales deben comprender el efecto de la variabilidad y el cambio climático, sobre la salud y la necesidad de implementar acciones de adaptación desde el sector salud. | U15: 1, 2, 3, 4, 5 | V15: 1. Se elabora mensualmente el boletín de clima y salud en donde se divulgan los posibles efectos en salud a partir de las predicciones climáticas, para las cinco (5) regiones del país. Se cuenta con un lineamiento sectorial para la formulación e implementación de los Planes Territoriales de Adaptación al Cambio Climático desde el componente de salud ambiental. 2. Se está recibiendo apoyo por parte de la Organización Mundial de la Salud, por medio de la iniciativa : "A Study of the Health Co-benefits of Emissions Reductions from NDC Implementation in Colombia"; al igual que por el International Research Institute for Climate and Society de la Universidad de Columbia en el "Análisis exploratorio de la posible relación entre variables climáticas y casos de desnutrición en 5 departamentos de Colombia". Se han realizado fortalecimiento de capacidades del equipo de profesionales de la mesa de variabilidad y cambio climático de la Conasa, mediante el apoyo del International Research Institute for Climate and Society, además de participar en talleres organizados por Ministerio de Ambiente y Desarrollo Sostenible. 3. N/A 4. Se cuenta con un Plan Integral de Cambio Cimático del sector salud, cuyo componente de adaptación se encuentra en su fase final de formulación. Se cuenta con un lineamiento sectorial para la formulación e implementación de los Planes Territoriales de Adaptación al Cambio Climático desde el componente de salud ambiental. | W15: 1. Se requiere articular las acciones adelantadas con los Planes Integrales de Gestión de Cambio Climático Territoriales (PIGCCT) de cada Departamento. Mayor articulación con sectores clave, como Ambiente y Educación, para materializar acciones conjuntas en el territorio. Se requiere la formulación e implementación de un programa de fortalecimiento de capacidades de los profesionales de la salud en clima y salud. Se requiere el apoyo para el fortalecimiento de capacidades de los funcionarios del Ministerio de Salud y Protección Social y sus Instituciones adscritas, en el tema de clima y salud. 2. Se hace necesario mantener el apoyo por parte del Ministerio de Ambiente y Desarrollo Sostenible. Se requiere de articulación con el sector Agropecuario. 3. Se requiere de instrumentos financieros para implementar acciones de adaptación al cambio climático desde el sector salud. Se requiere continuar promoviendo el apoyo del Departamento Nacional de Planeación y el Ministerio de Ambiente y Desarrollo Sostenible en los procesos de Cooperación internacional para fortalecer las acciones de educación, sensibilización, comunicación del riesgo e investigación en variabilidad y cambio climático y sus efectos sobre la salud. 4. Se requiere incluir acciones de adaptación al cambio climático, en los Planes Territoriales de Salud. Se requiere incidir en la planeación del próximo Plan Decenal de Salud Pública, para incluir metas de adaptación a la variabilidad y el cambio climático. 5. *Construir una guía técnica dirigida a los profesionales de salud | X15: Interaccion con diferentes entidades dentro de Minsalud, y estructura de costo de informes pasados realizados por OPS, BM, UNGRD y Bolet'in de Salud y Clima (Iniciativa conjunta de IDEAM con Minsalud) | Z15: Meta tipo 2.3 - referencia similar | AA15: Si
D16: 7 | E16: Salud (adaptación en IPS): 2 | F16: Salud | G16: A 2030 el 40% de las Instituciones Prestadoras de servicios de salud del sector público implementarán acciones de adaptación ante los posibles eventos asociados por variabilidad y cambio climático. | H16: El cambio climático ya es evidente en todo el planeta, y Colombia ha demostrado ser vulnerable a los impactos de fenómenos climáticos. Tanto el Fenómeno El Niño y La Niña; como los eventos climáticos extremos, tales como inundaciones y sequias, afectan gravemente el desarrollo territorial, sectorial, el bienestar social y la salud de la población. Dichos fenómenos, muchas veces interfieren en el funcionamiento normal y en la continuidad de la prestación de los servicios de salud en el municipio que se vea afectado, dado que la infraestructura en salud puede verse afectada por las Inundaciones, o remoción en masa producto de la variabilidad climática y la prestación del servicio también se puede ver afectada. Las manifestaciones de la variabilidad climática y el cambio climático constituyen, sin lugar a duda, un desafío para la capacidad de respuesta del sector Salud, de tal forma que se asegure el mantenimiento del derecho fundamental a la salud y en general el mantenimiento del bienestar humano. Por consiguiente, la presente meta refleja la necesidad de identificar aquellas Instituciones Prestadoras de Servicios de Salud que presentan una mayor vulnerabilidad ante la ocurrencia de eventos climáticos extremos y lograr la gestión de alternativas adecuadas para la preparación y acción, que permitan enfrentar los posibles impactos de la variabilidad y el cambio climático, aumentando la capacidad adaptativa y reduciendo su vulnerabilidad. Por tal razón, el Ministerio de Salud y Protección Social identificará las IPS públicas con mayor vulnerabilidad, con base en los reportes entregados por cada Dirección Territorial de Salud; de igual manera, la UNGRD junto con cada Entidad Territorial, apoyarán en la priorización de acciones de adaptación sobre la infraestructura en salud y acciones que permitan la continuidad en la prestación del servicio de salud ante la ocurrencia de cualquier evento climático extremo. La respuesta en salud y desde gestión del riesgo, se llevará a cabo segun lo dispuesto en la Ley 1523 de 2012, teniendo en cuenta las diferentes instancias de orientación y coordinación nacionales, departamentales y municipales. | I16: Disminuir los efectos de la variablidad y cambio climático en el sector salud a través de la formulación e implementación de acciones de adaptación en Instituciones Prestadoras de servicios de salud del sector público | J16: Minsalud | K16: Oficina de Gestión Territorial, Emergencias y Desastres / Dirección de Prestación de Servicios y Atención Primaria | L16: Instituciones Prestadoras de Salud Públicas Unidad Nacional para la Gestion del Riesgo Bomberos de Colombia Cruz Roja Defensa Civil Alcaldías y Gobernaciones Direcciones Territoriales de Salud INS IDEAM | M16: Para dar cumplimiento a la meta propuesta, se debe considerar lo siguiente: 1. El Ministerio de Salud y Protección Social es el encargado de dar los lineamientos para la implementación de acciones de adaptación al cambio climático, para el sector salud. 2. Las Instituciones Prestadoras de Servicios de Salud son las encargadas de implementar de las acciones, de acuerdo a la priorización que realice cada Entidad Territorial. | N16: (# de Instituciones Prestadoras de Servicio de Salud públicas que implementan acciones de adaptación al cambio climático dirigidas a reducir su vulnerabilidad ante los eventos climáticos extremos/Total de Instituciones Prestadoras de Servicios de Salud públicas del país) * 100 | O16: A la fecha no se cuenta con un diagnóstico actualizado de las IPS, de acuerdo a su vulnerabilidad, ni tampoco aquellas que han llevado a cabo acciones de adaptación. Por otra parte, la identificación de la vulnerabilidad de las IPS públicas ante los eventos climáticos extremos forma parte de uno de los hitos de la presente meta proyectados a 2023 y 2026. | P16: A 2023 se contará con la identificación de las IPS públicas que posean alto grado de vulnerabilidad por la posible ocurrencia de eventos climáticos extremos, en el 25% de los departamentos del país. A 2026 se contará con la identificación de las IPS que poseen alto grado de vulnerabilidad por la posible ocurrencia de eventos climáticos extremos en el 100% de los departamentos del país A 2026 se implementarán acciones de adaptación en el 15 % de la IPS priorizadas. A 2030 se implementarán acciones de adaptación en el 40 % de la IPS priorizadas. | Q16: Plan Decenal de Salud Pública 2012 - 2021 (Resolución 1841 de 2013). Disponible en: https://www.minsalud.gov.co/sites/rid/Lists/BibliotecaDigital/RIDE/DE/DIJ/resolucion-1841-de-2013.pdf Plan Nacional de Gestión del Riesgo de Desastres 2015-2025 (Decreto 308 de 2016 y Decreto 1081 de 2015). Disponible en: https://repositorio.gestiondelriesgo.gov.co/bitstream/handle/20.500.11762/756/PNGRD-2016.pdf?sequence=27&isAllowed=y Programa Hospitales seguros frente a desastres. Información disponible en: https://www.paho.org/col/index.php?option=com_docman&view=download&alias=87-dia-mundial-2009-resolucion&category_slug=boletines&Itemid=688 https://www.minsalud.gov.co/sites/rid/Lists/BibliotecaDigital/RIDE/DE/GT/guia-hospitalaria-gestion-riesgo-desastres.pdf Plan Integral de Cambio Climático del sector Salud (PIGCCS). Se encuentra en: C:\Users\dmorenoh\Documents\InformacionMSPS\Salud Ambiental 2020\CAMBIO CLIMÁTICO\PIGCCS\Adaptación. | R16: El reporte se realizará por medio de una matriz, la cual será compartida con el/la responsable del Ministerio de Ambiente y Desarrollo Sostenible por parte de la Oficina Asesora de Planeación y Estudios Sectoriales, con apoyo de la Dirección de Promoción y Prevención, la Dirección de Prestación de Servicios de Salud y Atención Primaria y la Oficina de Gestión Territorial, Emergencias y Desastres. | S16: Anual | AA16: Si
D17: 8 | E17: Energía (instrumento planificación): 1 | F17: Energía | G17: Línea estrategica de infraestructura resiliente A 2025 un instrumento de planificación sectorial de hidrocarburos, uno de minería de carbón y uno de energía eléctrica cuentan con lineamientos de cambio climático orientados al aseguramiento de las condiciones operatividad integral bajo nuevos escenarios de demandas operativas y ambientales | H17: La meta se basa en la la línea estratégica de infraestructura resiliente del PIGCCme la cual integra la gestión del riesgo del cambio climático y la variabilidad climática, que pueden afectar la seguridad energética del país, en particular el transporte de hidrocarburos, carbón e insumos para la actividad minero energética en las carreteras del país y la transmisión de electricidad, la cual busca fortalecer los sistemas de transporte de los energéticos del país, asegurando la provisión del servicio y el acceso a los recursos minero-energéticos. Desde la planificación del sector minero energético, es necesario el fortalecimiento de los instrumentos técnicos, regulatorios y/o normativos para asegurar que la operación y mantenimiento de la infraestructura de importancia para el sector, considere los posbibles impactos del clima cambiante. | I17: Contribuir a la transformación energética del país, de tal manera que se garantice la competitividad de las industrias minero energéticas ante los escenarios del clima cambiante. | J17: Minenergía | K17: Oficina de Asuntos Ambientales y Sociales | L17: UPME, EMPRESAS DE TRANSMISIÓN , EMPRESAS DE TRANSPORTE DE HIDROCARBUROS, UNGRD, MINCOMERCIO (Organismo Nacional de Normalización) , UPME, MINTRANSPORTE, EMPRESAS DEL SECTOR MINERO Y DE HIDROCARBUROS, ANI | M17: • Los instrumentos sectoriales cuentan con las ventanas pertinentes para la inclusión de elementos de gestión de riesgos climáticos. • Se cuenta con un proceso previo de socialización y apropiación por parte de los usuarios (diferentes a aquellos del sector minero energético) de la infraestructura, de las estrategias, objetivos y metas de gestión del riesgo climático en la infraestructura. • Continuidad del Plan Integral de Gestión de Cambio Climático del sector minero energético como lineamiento estratégico del Ministerio de Minas y Energía. • Existencia de intereses comunes intersectoriales, para asegurar la integralidad de la gestión del riesgo climático con énfasis en la infraestructura. | N17: No. de Instrumentos de planificación de transporte de energéticos con lineamientos de cambio climático | O17: (2019) - 0 | P17: 2020 - Instrumento de planificación de transporte de hidrocarburos con lineamientos de cambio climático 2022 - Instrumento de planificación de transporte de energía eléctrica con lineamientos de cambio climático 2024 - Instrumento de planificación de transporte de mineroa con lineamientos de cambio climático | Q17: Cada instrumento será un documento actualizado (en desarrollo) | R17: Sistema M&E del PIGCCme (en desarrollo) | S17: Anual | AA17: Si
D18: 9 | E18: Energía (Análisis de riesgos): 2 | F18: Energía | G18: Línea estrategica de información para la adaptación A 2025 contar con una metodología de análisis de riesgos climáticos actualizada, junto con una estrategia de actualización de manera periódica a nivel nacional y empresarial | H18: La meta se basa en la la línea estratégica de infraestructura resiliente del PIGCCme la cual se enfoca en la generación de informaciób actualizada y precisa sobre las amenazas y los impactos de nuevas tecnologías, mediante la generación de información para la toma de decisiones a corto y largo plazo. La metodología de análisis de riesgos climáticos con la que cuenta el Ministerio de Minas y Energía ha sido actualizada de manera periódica, pero requiere del fortalecimiento de diferentes componentes y en especial de su pertinencia a nivel empresarial. | I18: Contribuir a la transformación energética del país, de tal manera que se garantice la competitividad de las industrias minero energéticas ante los escenarios del clima cambiante. | J18: Minenergía | K18: Oficina de Asuntos Ambientales y Sociales | L18: UPME , COLCIENCIAS, ACADEMIA, ANM, IPSE, ACP | M18: • Se cuentan con índices empresariales de sensibilidad y capacidad de adaptación que alimentan indicadores de vulnerabilidad del sector minero energético. • Las empresas han apropiado la cartilla virtual desarrollada bajo el componente de gobernanza del PIGCCme. • Se cuenta con un sistema M&E del sector minero energético, que se encuentra relacionado con las variables de mercado del sector. • Continuidad del Plan Integral de Gestión de Cambio Climático del sector minero energético como lineamiento estratégico del Ministerio de Minas y Energía. | N18: No. de metodologías de análisis de riesgos climáticos actualizada | O18: (2019) - 1 | P18: 2020 - Definición de una estrategia metodológica para la actualización del análisis de vulnerabilidad ante el cambio climático del sector minero energético. 2022 - Alineación de la metodología de riesgos actualizada con la guía virtual empresarial, de tal manera que las empresas del sector cuenten con una metodología actualizada y ajustada a las necesidades empresariales. 2025 - Metodología de análisis de riesgos climáticos actualizada, junto con una estrategia de actualización de manera periódica a nivel nacional y empresarial. | Q18: Metodología de Análisis de Riesgos Climáticos del sector minero energético | R18: Sistema M&E del PIGCCme (en desarrollo) | S18: Anual | AA18: Si
D19: 10 | E19: Energía (Proyecto AbE sector eléctrico): 3 | F19: Energía | G19: Línea estrategica de gestión de entorno A 2025 contar con un proyecto de adaptación basado en ecosistemas para el sector eléctrico que ayude a las empresas del sector asegurar el cumplimiento de sus objetivos estratégicos. | H19: La meta se basa en la la línea estratégica de gestión del entorno del PIGCCme la cual se enfoca en fortalecer la gobernanza territorial ante los posibles eventos climáticos adversos, entendiendo al sector como un actor del territorio, y los beneficios conjuntos de reducción de vulnerabilidad territorial y sectorial. | I19: Contribuir a la transformación energética del país, de tal manera que se garantice la competitividad de las industrias minero energéticas ante los escenarios del clima cambiante. | J19: Minenergía | K19: Oficina de Asuntos Ambientales y Sociales | L19: ANM, CAR´S, UPME, EMPRESAS DEL SECTOR ELÉCTRICO, EMPRESAS DEL SECTOR DE MINERÍA, EMPRESAS DEL SECTOR DE HIDROCARBUROS, AUTORIDADES LOCALES, COLCIENCIAS, INSTITUTOS DE INVESTIGACIÓN DEL SINA, AUTORIDADES | M19: • Se cuentan con índices empresariales de sensibilidad y capacidad de adaptación relacionados con los servicios ecosistémicos, que alimentan indicadores de vulnerabilidad del sector minero energético. • Se cuenta con un sistema M&E del sector minero energético, que se encuentra relacionado con las variables de mercado del sector. • Continuidad del Plan Integral de Gestión de Cambio Climático del sector minero energético como lineamiento estratégico del Ministerio de Minas y Energía. • Existencia de intereses comunes intersectoriales, para asegurar la integralidad de la gestión del riesgo climático con énfasis en la gestión de ecosistemas. • Existencia de intereses comunes intersectoriales, para asegurar la integralidad de la gestión del riesgo climático con énfasis en la gestión de ecosistemas. | N19: No. de medidas de adaptación basada en ecosistemas implementadas para el sector de energía eléctrica | O19: (2019) - 0 | P19: 2020 - Definición y estructuración de un proyecto piloto para el sector de energía eléctrica. 2022 - Implementación del proyecto piloto, de manera conjunta con empresas del sector eléctrico y autoridades ambientales 2025 - Sistema de monitoreo del aumento de resiliencia del sector, gracias a las medidas de adaptación implementaadas. | Q19: Plan Integral de Gestión de Cambio Climático del sector minero energético (Implementación) | R19: Sistema M&E del PIGCCme (en desarrollo) | S19: Anual | T19: Avanzar en la optimización de las inversiones, programas y proyectos existentes del sector, y una respuesta efectiva frente a los objetivos trazados en este Plan. | U19: 1, 2, 5 | V19: 1. • Cartilla virtual empresarial para la generación de Planes de Gestión de Cambio Climático empresarial 2. Identificación de un portafolio de medidas de adaptación basada en ecosistemas para el sector hidrocarburos (Piloto en Paz de Ariporo) 5. Desarrollo de mesas de cambio climático, en estos espacios el Ministerio de Minas y Energía, las entidades adscritas y las empresas del sector minero energético coordinan sus acciones de cambio climático. | W19: 1. • Apropiación por parte de las empresas del sector, de los beneficios de las medidas AbE para asegurar 2. • Cuantificación de los servicios ecosistémicos para el sector minero energético 5. Se requiere un trabajo intersectorial, principalmente con el Ministerio de Ambiente y Desarrollo Sostenible y autoridades sostenibles | AA19: Si
D20: 11 | E20: Industria: 1 | F20: Industria | G20: 10% de pequeñas, medianas y grandes empresas de los sectores priorizados han implementado estrategias, acciones o proyectos de adaptación al cambio climático. *Este porcentaje debe ser evaluado en función del resultado de la Encuesta Ambiental Industrial. | H20: La gestión eficiente de la demanda y uso de recursos en los procesos productivos y de servicios como medida de adaptación del sector, contemplará las siguientes acciones: 1. Definir portafolio de medidas de adaptación para gestionar eficientemente el uso de recursos en los procesos productivos y de servicios a 2022. 2. Estructurar programa integral del sector CIT, de fortalecimiento de capacidades, en la gestión de riesgos y la adaptación al cambio climático como factor de sostenibilidad y competitividad del sector a 2023. 3. Implementar proyectos y acompañar empresas en estrategias, acciones o proyectos de adaptación a 2030. | I20: Aumentar la participación de empresas en los sectores priorizados que implementan estrategias, acciones o proyectos de adaptación al cambio climático. | J20: Mincomercio | K20: Viceministerio de Desarrollo Empresarial, Dirección de Productividad y Competitividad | L20: DANE, Gremios, empresas, cámaras de comercio, nodos de cambio climático, UNGRD, Fondo de Adaptación, Minambiente, DNP, IDEAM, entes territoriales. | M20: 1. Las líneas estratégicas y medidas del PIGCCS se mantienen en el largo plazo. 2. La normatividad promueve la gestión eficiente de la demanda y uso de recursos en los procesos productivos y de servicios. 3. El sector privado a nivel nacional apropia las acciones propuestas desde la cartera. 4. La Encuesta Ambiental Industrial del DANE tiene una periodicidad anual y se mantiene a través del tiempo. | N20: Indicador principal: Proporción de empresas con proyectos de adaptación al cambio climático implementados. Variables: (1) Número de empresas de los sectores priorizados que reportan tener estrategias, acciones o proyectos de adaptación al cambio climático en la Encuesta Ambiental Industrial. (2) Número total de empresas pequeñas, medianas y grandes de los sectores priorizados encuestadas en la Encuesta Ambiental Industrial . Fuentes: (1) DANE- Encuesta Ambiental IndustriaI. (2) DANE- Encuesta Ambiental IndustriaI. Fórmula: (1)/(2) Periodicidad: Anual Unidad de medida: Porcentaje Indicador complementario: Proporción de empresas acompañadas en adaptación al cambio climático. Variables: (1) Número de empresas de los sectores priorizados acompañadas por entidades del sector comercio, industria y turismo en iniciativas de adaptación al cambio climático. (2) Número de pequeñas, medianas y grandes empresas de los sectores priorizados. Fuentes: (1) MinCIT - Registros administrativos de acompañamiento del sector empresarial. (2) Confecámaras - RUES Fórmula: (1)/(2) Periodicidad: Semestral Unidad de medida: Porcentaje | O20: 1. La base del número de empresas con proyectos de adaptación al cambio climático implementados se definirá con los resultados 2019 de la Encuesta Ambiental Industrial. Se aclara que el año de referencia de la encuesta es 2019, el año de recolección es 2020, y el año de publicación es 2021, por esta razón la línea base de este indicador se reportará solo hasta mediados de 2021. 2. El número de pequeñas, medianas y grandes empresas será establecido con base en el Registro Único Empresarial y Social (RUES). La base del número de empresas acompañadas en adaptación al cambio climático se definirá con los resultados de la priorización sectorial en 2022. | P20: El avance de los indicadores se propone en los siguientes componentes: 1. A 2021 se cuenta con el análisis de los resultados de la Encuesta Ambiental Industrial del DANE. 2. A 2022 se cuenta con la priorización sectorial e información en cuanto a adaptación del sector, con portafolio de medidas de adaptación definido. 3. A 2023 se cuenta con programa integral del sector CIT con enfoque en adaptación en implementación (fortalecimiento de capacidades). 4. A 2030 se cuenta con proyectos implementados, así como empresas acompañadas en estrategias, acciones o proyectos de adaptación. | Q20: 1. Estudio Planes de adaptación al cambio climático realizado para los sectores Vivienda, Agua y Saneamiento Básico e Industria, que fue ejecutado con el Ministerio en el marco del Programa de “Apoyo a País” para Colombia de la Red Global de Planes de Adaptación Nacional. 2. Plan Nacional de Adaptación al Cambio Climático (PNACC), 2020, " Propuesta de estrategia para el involucramiento del sector productivo y empresarial en la adaptación al cambio climático en el corto, mediano y largo plazo en los sectores priorizados", Bogotá. D.C., Colombia. 3. Plan Nacional de Adaptación al Cambio Climático (PNACC), 2020, " Análisis de alternativas para incentivar las inversiones del sector privado en la adaptación al cambio climático en los sectores priorizados", Bogotá. D.C., Colombia. 4. Encuesta Ambiental Industrial del DANE. Enlace: https://mincitco-my.sharepoint.com/:f:/g/personal/jalarcon_mincit_gov_co/EuM_VZbeHe1BhIWwNnJOQiYBabiXXHH716KsALr8yKE57g?e=IIhXsw | R20: Primera etapa: Matriz de excel que incorporará la información de los indicadores de adaptación. Segunda etapa: Sistema información tipo SIG que se integrará al sistema de monitoreo, reporte y verficación del PIGCCS. | S20: Anual | T20: Asignación de recursos para integrar instrumentos alineados a proyectos de adaptación. Resultados periodicos y continuos de la EAI. Definición de metodología para la priorización de empresas. Información base para el portafolio. Articulación con el sector privado en la implementación de proyectos. Sistema M&E - PIGCCS. | U20: 1, 2, 3, 4, 5 | V20: 1. Aplicación de encuestas y talleres participativos con empresas en el marco del estudio "Planes de adaptación al cambio climático realizado por la Red Global de Planes de Adaptación Nacional", durante 2017-2018 y los realizados por el estudio "Propuesta de estrategia para el involucramiento del sector productivo y empresarial en la adaptación al cambio climático en el corto, mediano y largo plazo en los sectores priorizados del Plan Nacional de Adaptación al Cambio Climático (PNACC)", durante 2019 y 2020. Las capacitaciones realizadas a empresas a través de proyecto NAMA Industria entre 2017 y 2020. Capacitaciones realizadas por Bancoldex en temas de cambio climático a través del portafolio empresarial y Protocolo Verde. Capacitación a través de los programas empresariales del MinCIT. Participación en jornadas público privadas sobre cambio climático. 2. Trabajo articulado con DANE para la incorporación de preguntas en adaptación y mitigación al cambio climático en el Encuesta Ambiental Industrial. Vinculación de las universidades a través de los programas de desarrollo empresarial. Implementación de la Política Industrial a través del eje de innovación y en sostenibilidad ambiental. Creación del centro de la cuarta revolución industrial. Estrategia de regionalización de la Estrategia Nacional de Economía Circular - ENEC. Trabajo regional articulado con el Sistema Nacional de Competitividad e Innovación. Contingente de autos eléctricos, arancel cero a motos eléctricas. Estrategia de movilidad eléctrica. 3. Portafolio financiero de Bancoldex. Programas de apoyo al desarrollo empresarial y convocatorias del MinCIT. 4. Implementación y ejecución integrada con el Sistema Nacional de Competitividad e Innovación (regionalización y sostenibilidad). Implementación Plan Integral de Gestión del Cambio Climático - PIGCCS. Expedición Política industrial con reto en sostenibilidad. Alineación con compromisos de la Política de Crecimiento Verde. 5. Trabajo institucional e interinstucional en torno al PIGCCS. Formulación Proyecto de inversión. Expedición Política industrial con reto en sostenibilidad. | W20: 1. - Escenarios de trabajo sobre experiencias en programas de capacitación en cambio climático. - Estrategia de comunicación y sensibilización. - Dinámica de involucramiento público-privado. 2. - Transversalización de la innovación con enfoque en mitigación y adaptación al cambio climático. - Programas e incentivos para acceso y desarrollo de tecnologías bajas en carbono. - Articulación con Minciencias para el fortalecimiento de convocatorias en cambio climático. 3. - Recursos del presupuesto institucional, nacional y de cooperación. - Mayor incorporación del riesgo climático en la oferta bancaria. - Fortalecimiento de los fondos de riesgo. 4. - Análisis e intercambio de información regional en cambio climático con enfoque en el sector. Planes integrales de gestión de cambio climático territorial - PIGCCT. - Análisis e intercambio de información intersectorial en cambio climático con enfoque en el sector. Agendas intersectoriales. 5. - Mecanismos para el fortalecimiento de capacidades a los diferentes actores del sector. - Sistema de información integrado para toma de decisiones en cambio climático del sector en el mediano y largo plazo. | X20: Verificar si en la Encuesta Ambiental Industrial del DANE o en la cuenta satélite ambiental, se recoge información de gasto/inversión privada en temáticas relacionadas con adaptación (agua o prevención de desastres). | Z20: Meta tipo 2.1 – referencia indirecta estandar | AA20: Si
D21: 12 | E21: Transporte: Sistemas de información | F21: Transporte | G21: 1. Tres (3) Herramientas implementadas para mejorar los sistemas de Información geográfica de la infraestructura de transporte para la gestión del riesgo. | H21: 1. Disponer de adecuados Sistemas de Información geográfica como herramientas para incorporar la GRD y la ACC con el propósito de mejorar la competitividad del país a través de la integración regional y el posicionamiento del Sector como líder en GRD y ACC potenciando las fortalezas organizacionales de que se dispone, la experiencia del sector y el reconocimiento técnico a nivel nacional. | I21: 1. Fortalecer la gobernanza (eficacia, calidad, buena orientación en las intervenciones del sector) de la gestión del riesgo de desastres y la adaptación del cambio climático en las instituciones del sector transporte a nivel central y territorial según sus competencia, incluyendo la mejora de los sistemas de información geográfica de la infraestructura de transporte. | J21: Mintransporte | K21: Viceministerio de Infraestructura | L21: Instituto Nacional de Vías, Agencia Nacional de Infraestructura, Aerocivil, Agencia Nacional de Seguridad Vial, Supertransporte, Cormagdalena. Entidades de apoyo IDEAM, INVEMAR, IGAC, SGC, entidades territoriales, DNP, UNGRD, Miambiente, CARs, DITRA | M21: 1. El Ministerio de Transporte es el encargado de dar los lineamientos para la gestión del cambio climático en el sector. 2. El Ministerio de Transporte es el encargado de liderar el proceso de formulación de la Política. 3. Las diferentes entidades de modos de transportes son las encargadas de implementar las herramientas y lineamientos generados | N21: 1. No. de herramientas implementadas para mejorar los sistemas de Información | O21: 1. Sistema de información geografico HERMES con el 100 % de la red vial nacional georreferenciada. | P21: Meta 1 : Hito 1: 2020 Aplicación móvil diseñada e implementada para la captura de emergencias en la red vial nacional Hito 2: 2020 Aplicación móvil diseñada para la captura de datos referidos a prevención en la red vial nacional Hito 3: 2021 Aplicativos móviles en producción y aplicativo web diseñado para el manejo de datos y visualización de la información referida a variables relacionadas con gestión del riesgo y cambio climático Hito 4: 2025 100% de los modos de transporte a cargo, georreferenciados y con datos en consulta | Q21: Meta 1. Sistema de Información geográfico Hermes robustecido con herramientas para la GRD y la ACC | R21: Matriz en excel diseñada por el Sector | S21: Anual | U21: 1, 2, 3, 4, 5 | V21: 1. Sensibilización en Gestión del Riesgo a los funcionarios y Contratistas del Instituto Nacional de Vías INVIAS y la Aerocivil, a través de la realización de Talleres de capacitación Se implementó la Ruta escuela de la adaptación, para sensibilizar y capacitar a las comunidades aledañas a las vias Avances normativos, institucionales y de política Decreto 602 de mayo de 2017, por medio del cual se dictan otras disposiciones de la Gestión del Riesgo de Desastres en la Infraestructura de Transporte. Resolución No. 4806 de 2015: Se crea el Comité de Gestión del Riesgo y Cambio Climático del INVIAS Resolución 5845 de 2015, para crear el Grupo de Asuntos Ambientales y Desarrollo Sostenible al interior de Mintransporte Resolución 4998 de 2016, creando el Comité Sectorial para la Gestión del riesgo de Desastres. 2. Análisis de riesgo asociado a la vulnerabilidad de la red vial primaria frente a los escenarios de cambio climático proyectados al 2040 por el IDEAM, identificando los tramos viales más vulnerables y con mayor riesgo, a una escala general Desarrollo de la Guía metodologica para analisis de riesgo por movimientos en masa en la ifraestructura vial. SGC - INVIAS Desarrollo de una guía metodologica para análisis del riesgo de la infraestructura Aeroportuaria y aplicación en un Aeropuerto piloto ( Tumaco). 3. Se han implementado mesas de trabajo con el Ministerio de Hacienda, el Ministerio de Tranporte, INVIAS, ANI y la ANSV para fortalecer la protección financiera de nuestra infraestructura vial, todo ello con el apoyo del Banco Mundial. 4. Herramientas de Planificación: Plan Vias CC: Vias compatibles con el clima Plan Integral de Cambio Climático para puertos marítimos Plan Indicativo de Fortalecimiento Institucional para la gestión de riesgos de desastres – PIFIN y su hoja de ruta Plan de Gestión del Riesgo de Desastres de las Entidades Públicas y Privadas – PGRDEPP del INVIAS y la Aerocivil Matriz DOFA para la estructuración de la linea de acción de GRD y ACC, del PIGCCS. 5. Los avances generados de una manera gradual han sido armonizados con los procesos internos de la entidad, ello ha permitido facilitar acciones. No obstante, falta bastante por trabajar y lograr a fin de que los lineamientos, técnicas y metodologías tengan un uso habitual en la estructuración de proyectos así como en las intervenciones a realizar, tenidas en cuenta desde la concepción de los mismos. | W21: 1. El medio de implementación ha sido exitos en cuanto a que se ha comprobado el interés de los territorios por hacer parte de acciones de gestión del riesgo y gestión del cambio clímatico. El acercamiento a lo local ha mejorado, la coordinación interinstitucional y los mecanismos de comunicación han sido más agiles contribuyendo al conocimiento del riesgo en el territorio. Se requieren talleres periódicos presenciales y la implementación de mecanismos virtuales que permitan intercambio de conocimiento y avances relacionados con la temática. 2. Las instituciones del Sector son operativas, requieren el apoyo de entidades del conocimiento como el SGC, el IDEAM, las Universidades. Trabajos a realizar a través de convenios interinstitucionales que aporten al conocimiento desde la práctica y reconocimiento del sector; en procesos de fortalecimiento institucional y cocreación de herramientas para el conocimiento del riesgo y la generación de estrategias para la implementación de la reducción del riesgo. No obstante se requiere decisión política y de recursos que permitan acometer procesos de investigación y estudios. 3. Decisión política y económica. 4. Lo avanzado a la fecha da cuenta de una importante gestión técnica y económica que ha permitido emprender procesos de construcción de metodologias para formar en gestión del riesgo a nuestros funcionarios y contratistas en la busqueda de un cambio de paradigma que conduzca al diseño, implementación y posterior evaluación de las metodologías y herramientas estructuradas para conocer el riesgo y generar acciones de reducción en la infraestructura a cargo. De igual manera, se han generado conceptos técnicos que nos llevan a trabajar de una manera más cercana y coordinada con las autoridades locales. Todo ello en proceso de estructuración que será incluida en los lineamientos técnicos y metodologías a generar. 5. Generar conocimiento, procesos de investigación y capacitación. | Y21: Seis (6) sectores prioritarios de la economía (transporte, energía, agricultura, vivienda, salud,comercio, turismo e industria) incluirán consideraciones de Cambio Climático en sus instrumentos de planificación, y estarán implementando acciones de adaptación innovadoras | AA21: Si
D22: 13 | E22: Transporte: 2 | F22: Transporte | G22: 2. Dos (2) documentos de lineamientos técnicos elaborados para realizar estudios de riesgo para la infraestructura de transporte | H22: 2. Disponer de documentos técnicos de lineamientos como herramientas para incorporar la GRD y ACC con la finalidad de complementar y mejorar los conocimientos en riesgo de desastres en el entorno de la organización y de su infraestructura de transporte, mediante el perfeccionamiento de los métodos de captura y manejo de la información técnica para reducir de manera gradual las condiciones de riesgo incluyendo los factores del cambio climático. | I22: 2. Ampliar el conocimiento del territorio, los factores del riesgo y del cambio climático que inciden en los diferentes modos de transporte. | J22: Mintransporte | K22: Viceministerio de Infraestructura | L22: Instituto Nacional de Vías, Agencia Nacional de Infraestructura, Aerocivil, Agencia Nacional de Seguridad Vial, Supertransporte, Cormagdalena. Entidades de apoyo IDEAM, INVEMAR, IGAC, SGC, entidades territoriales, DNP, UNGRD, Miambiente, CARs, DITRA | M22: 1. El Ministerio de Transporte es el encargado de dar los lineamientos para la gestión del cambio climático en el sector. 2. El Ministerio de Transporte es el encargado de liderar el proceso de formulación de la Política. 3. Las diferentes entidades de modos de transportes son las encargadas de implementar las herramientas y lineamientos generados | N22: 2. No. documentos de lineamientos técnicos elaborados para realizar estudios de riesgo para infraestructura de transporte | O22: 2. No hay documento de lineamientos a la fecha. | P22: Meta 2: Hito 1: 2021 Con lineamientos técnicos en aplicación a partir de la guía metodología para análisis de riesgos aeroportuarios validada Hito 2: 2023 Con lineamientos técnicos en aplicación a partir de guía metodológica para análisis cuantitativo del riesgo incluyendo variables sociales y ambientales. | Q22: Meta 2. Dos (2) documentos de lineamientos técnicos elaborados para realizar estudios de riesgo para la infraestructura de transporte | R22: Matriz en excel diseñada por el Sector | S22: Anual | T22: La efectiva articulación entre actores relevantes, y entre los numerosos espacios institucionales y no institucionales que trabajan en cambio climático dentro del sector agropecuario. | AA22: No
D23: 14 | E23: Transporte: 3 | F23: Transporte | G23: 3. Política para la Gestión de Riesgo de Desastres - GRD y la Adaptación al Cambio Climática - ACC formulada para el sector. | H23: 3. Formular e implementar la política Sectorial relacionada con la GRD y ACC acorde a los avances realizados en la materia, con el fin de generar lineamientos que posibiliten la articulación de sus instituciones adscritas acorde a sus competencias; para la inclusión de la gestión del riesgo y la adaptación al cambio climático desde la planificación de la infraestructura a cargo. | I23: 3. Incluir la gestión del riesgo de desastres y la adaptación del cambio climático en los instrumentos de planificación y desarrollo del sector transporte. | J23: Mintransporte | K23: Viceministerio de Infraestructura | L23: Instituto Nacional de Vías, Agencia Nacional de Infraestructura, Aerocivil, Agencia Nacional de Seguridad Vial, Supertransporte, Cormagdalena. Entidades de apoyo IDEAM, INVEMAR, IGAC, SGC, entidades territoriales, DNP, UNGRD, Miambiente, CARs, DITRA | M23: 1. El Ministerio de Transporte es el encargado de dar los lineamientos para la gestión del cambio climático en el sector. 2. El Ministerio de Transporte es el encargado de liderar el proceso de formulación de la Política. 3. Las diferentes entidades de modos de transportes son las encargadas de implementar las herramientas y lineamientos generados | N23: 3. Política para la GRD y la ACC formulada | O23: 3. No se cuenta con una Política para la GRD y la ACC formulada para el sector. | P23: Meta 3 Hito 1: Diagnóstico 2021 Hito 2: Desarrollo y definición de Plan de Acción 2023 Hito 3: Socialización y concertación 2023 | Q23: Meta 3. Documento de política sectorial para GRD y la ACC | R23: Matriz en excel diseñada por el Sector | S23: Anual | AA23: No
D24: 15 | E24: Transporte: 4 | F24: Transporte | G24: 4. Dos (2) Metodologías para el cálculo del riesgo de la infraestructura de transporte diseñadas e implementadas | H24: 4. Alinerar y/o actualizar metodologías para el cálculo del riesgo de las infraestructuras de los diferentes modos de transporte, en aras de mejorar la eficacia en los procesos y acciones mediante unión de esfuerzos no jerárquicos entre autoridades locales y entidades del sector, que beneficien la planificación conjunta del territorio involucrando la planificación de la infraestructura de transporte a nivel nacional. | I24: 4. Reducir el riesgo de desastres de los diferentes modos de transporte mediante intervenciones prospectivas, preventivas y correctivas como resultado del conocimiento del riesgo. | J24: Mintransporte | K24: Viceministerio de Infraestructura | L24: Instituto Nacional de Vías, Agencia Nacional de Infraestructura, Aerocivil, Agencia Nacional de Seguridad Vial, Supertransporte, Cormagdalena. Entidades de apoyo IDEAM, INVEMAR, IGAC, SGC, entidades territoriales, DNP, UNGRD, Miambiente, CARs, DITRA | M24: 1. El Ministerio de Transporte es el encargado de dar los lineamientos para la gestión del cambio climático en el sector. 2. El Ministerio de Transporte es el encargado de liderar el proceso de formulación de la Política. 3. Las diferentes entidades de modos de transportes son las encargadas de implementar las herramientas y lineamientos generados | N24: 4. No. de Metodologías para el cálculo del riesgo de la infraestructura de transporte diseñadas e implementadas | O24: 4. Se cuenta con dos guías metodologica para analisis de riesgo por movimientos en masa en la infraestructura vial y para la infraestructura aeroportuaria que se encuentran en proceso de revisión, ajuste y complementación para ser implementadas. | P24: Meta 4: Hito 1: 2020 Con metodología para el análisis del riesgo aeroportuario Hito 2: 2020 Con metodología para el análisis cualitativo del riesgo incluyendo variables ambientales y sociales para el modo carretero Hito 3: 2021 Con metodología para análisis cuantitativo del riesgo incluyendo variables ambientales y sociales para el modo carretero | Q24: Meta 4. Dos (2) Metodologías para el cálculo del riesgo de la infraestructura vial y aeroporturia diseñadas e implementadas | R24: Matriz en excel diseñada por el Sector | S24: Anual | T24: Concertar una ruta de implementación para el PIGCCS Agropecuario para el sector en los niveles nacional, regional y local. | AA24: No
D25: 16 | E25: Transporte: 5 | F25: Transporte | G25: 5. Proyecto piloto implementado para la aplicabilidad de los lineamientos de infraestructura verde vial . | H25: 5. Propender por la incorporación de los lineamientos de Infraestructura verde vial, en los proyectos de carreteras, con el propósito de estructurar proyectos ambientalmente más responsables y sostenibles, buscando la implementación de acciones de adaptación a los efectos del Cambio climático | I25: 5. Reducir el riesgo de desastres de los diferentes modos de transporte mediante intervenciones prospectivas, preventivas y correctivas como resultado del conocimiento del riesgo. | J25: Mintransporte | K25: Viceministerio de Infraestructura | L25: Instituto Nacional de Vías, Agencia Nacional de Infraestructura, Aerocivil, Agencia Nacional de Seguridad Vial, Supertransporte, Cormagdalena. Entidades de apoyo IDEAM, INVEMAR, IGAC, SGC, entidades territoriales, DNP, UNGRD, Miambiente, CARs, DITRA | M25: 1. El Ministerio de Transporte es el encargado de dar los lineamientos para la gestión del cambio climático en el sector. 2. El Ministerio de Transporte es el encargado de liderar el proceso de formulación de la Política. 3. Las diferentes entidades de modos de transportes son las encargadas de implementar las herramientas y lineamientos generados | N25: 5. Un proyecto piloto implementado para la aplicabilidad de los lineamientos de infraestructura verde vial | O25: 5. Documento de Lineamientos de Infraestructura Verde Vial en proceso, con identificación de la zona en la que se aplicará el proyecto piloto. | P25: Meta 5: Hito 1: Diagnóstico y plan de acción para la implementación 2020 Hito 2: Implementación 2022 Hito 3: Evaluación ex - post de la aplicación de los lineamientos 2022 | Q25: Meta 5. Documento con recomendaciones sobre el desarrollo de infraestructura de transporte en el área de aplicabilidad de los lineamientos de infraestructura verde vial | R25: Matriz en excel diseñada por el Sector | S25: Anual | AA25: No
D26: 17 | E26: Agricultura : Planificacion 6 Sectores | F26: Agricultura | G26: Incluir consideraciones de Cambio Climático en los instrumentos de planificación del sector agropecuario (PIGCCS) e implementaciones de acciones de adaptación. | H26: El sector agropecuario en cabeza del Ministerio de Agricultura y Desarrollo Rural, a través del instrumento de planificación (Plan Integral de Gestión del Cambio Climático para el sector agropecuario) orientado al Cambio Climático, promoverá el fortalecimiento de las capacidades de adaptación, la reducción de la vulnerabilidad y riesgo del sector, la transición hacia una agricultura baja en carbono, la implementación de medidas de adaptación y mitigación. El PIGCCS Ag cuenta con 5 líneas Línea Estratégica 1: Información sobre cambio climático y gestión del riesgo para orientar la toma de decisiones Línea Estratégica 2: Prácticas agropecuarias sostenibles. Línea Estratégica 3. Resiliencia del sector agropecuario para enfrentar riesgos. Línea Estratégica 4: Inversión y políticas públicas para el desarrollo rural resiliente y bajo en carbono. Línea Estratégica Transversal 5: Articulación institucional, investigación y fortalecimiento de capacidades. Donde cada una de estas lineas cuenta con medidas y acciones que responden a la gestión del cambio climático en el sector. Con un total de 16 medidas y 39 acciones. | I26: Incluir consideraciones de Cambio Climático en los instrumentos de planificación del sector agropecuario (PIGCCS) e implementaciones de acciones de adaptación. | J26: Minagricultura | K26: Dirección de Innovación, Desarrollo Tecnológico y Protección Sanitaria. | L26: MADR y sus entidades adscritas y vinculadas, Gremios de la producción. DNP, SENA Gobernaciones, Municipios, Productores. Centros de investigación y academias. | M26: 1. Los estudios técnicos realizados como base para la formulación del PIGCC sectorial, así como los avances posteriores en esta materia soportan las acciones que se desarrollen en el sector en términos de adaptación al cambio climático. 2. El PIGCC sectorial es el instrumento orientador para la implementación de acciones de adaptación al cambio climático. | N26: % = Instrumento de planeación del sector agropecuario con consideraciones de Cambio Climático implementando acciones de adaptación innovadoras (PIGCCS) *100 / Instrumento de planeación del sector agropecuario con consideraciones de Cambio Climático formulando acciones de adaptación innovadoras (PIGCCS) | O26: Estrategia de Adaptación del sector agropecuario frente a fenómenos climáticos del año 2014: portafolio de medidas de adaptación y mitigación para los sistemas productivos de papa, cacao, maíz, arroz, frijol y banano, priorizados por su importancia para la seguridad alimentaria y socio-económica del país, así como avances de implementación en algunas medidas seleccionadas. | P26: A 2024 se implementarán por lo menos una accion de cada una de las medidas del PIGCCS. A 2028 se implementarán un 80% de las medidas planteadas en el PIGCCS para una o más de las acciones contenidas. | Q26: PIGCCS - AG | R26: Plataforma de iniciativas de adaptación al Cambio Climático. Reporte directo en SIIVRA. | S26: Anual | T26: Lograr que los arreglos institucionales existentes en cambio climático y en el sector agropecuario contribuyan o faciliten la implementación de medidas que responden a los principales retos del sector. La efectiva articulación entre actores relevantes, y entre los numerosos espacios institucionales y no institucionales que trabajan en cambio climático dentro del sector agropecuario. Concertar una ruta de implementación para el PIGCCS Agropecuario para el sector en los niveles nacional, regional y local. Avanzar en la optimización de las inversiones, programas y proyectos existentes del sector, y una respuesta efectiva frente a los objetivos trazados en este Plan. Llegar hasta el productor agropecuario con las medidas de mitigación y adaptación propuestas y con los arreglos institucionales adecuados. Investigación, gestión, capacidad instalada y recursos: Es necesario desarrollar investigación aplicada, contar con personal capacitado en temáticas de cambio y variabilidad climática, voluntad politica para el impulso a la implementación de acciones, Inversión de recursos financieros destinados a implementar las medidas de adaptación incluidas en el PIGCCS-Ag, así como trabajar en la planificación separada de cada una de las medidas con la participación de los diferentes actores. | U26: 1, 2, 3, 4, 5 | V26: 1. Diseño de estrategias de recuperación temprana a nivel comunitario en territorios altamente afectados por eventos relacionados con el clima 2. Generación de conocimiento respecto a cambio climático para la toma de decisiones por parte de los agricultores a nivel territorial. El análisis de Riesgo y Vulnerabilidad se realizó en conjunto con el IDEAM, con el fin de aportar al país una herramienta de base científica para mejorar la implementación de proyectos de adaptación y la formulación de programas yproyectos en los subsectores agropecuarios. 3. LEC, ICR, CIF Diseñados en el sector. 4. Avances PIGCCS: Elaboración del análisis de riesgo y vulnerabilidad por cambio climático para el sector; Diseño del sistema de pérdidas y daños para el sector; Desarrollo de una plataforma de gestión de experiencias en adaptación; Diseño de estrategias de recuperación temprana a nivel comunitario en territorios altamente afectados por eventos relacionados con el clima. 5. * Diseño del sistema de Daños y Pérdidas para el sector. Convenio 20150291 desarrollo de capacidades de adaptación en los gremios frente al cambio y la variabilidad climática a través de una alianza estratégica con el CIAT y este a su vez con la Federación Nacional de Arroceros (FEDEARROZ) y la Federación Nacional de Productores de Cereales y Leguminosas (FENALCE), la Asociación de Bananeros del Magdalena (ASBAMA), la Federación Nacional de Ganaderos (FEDEGAN) y el Centro Nacional de Investigaciones de la Caña (CENICAÑA). El Ministerio de Agricultura y Desarrollo Rural (MADR) y la Organización de las Naciones Unidas para la Alimentación y la Agricultura (FAO) acordaron en el marco del programa de prevención y preparación ante desastres de la Comisión Europea (DIPECHO, por sus siglas en inglés), direccionar acciones a pequeños productores, comunidades vulnerables e institucionalidad territorial; elaborando modelos, herramientas, rutas, protocolos y mecanismos en general, que apoyen la gestión del riesgo agroclimático y que puedan ser replicables en otras áreas del país que presentan situaciones similares. La Estrategia de Gestión del Riesgo Agroclimático fue diseñada y validada para los diferentes contextos del país durante la implementación de tres proyectos DIPECHO en los departamentos de Chocó, La Guajira y Putumayo y con actividades a nivel nacional. A la fecha estas acciones se han consolidado en un catálogo denominado “Agrokit”, en el que se encuentran algunos documentos, guías, infografías, entre otros, sobre esta materia. Estos se encuentran de manera digital y consolidados en un micrositio web el cual se encuentra en proceso de hospedaje en la página web del MADR Consolidación de las mesas agroclimáticas Elaboración de lineamientos para la incorporación del enfoque de género * Mesas Agroclimáticas: son una iniciativa, que se ha promovido por parte del Ministerio de Agricultura y Desarrollo Rural - MADR, buscando evitar pérdidas en el sector agropecuario ocasionadas por la variabilidad climática, aumentar la competitividad de los sistemas de producción agropecuarios y garantizar su sostenibilidad * Convenios MADR -CIAT de Ciencia y Tecnología 20150291 y 20190458: para la gestión del Cambio Climático | W26: 2. Recursos, capacidad instalada 3. Ajuste de los instrumentos financieros del sector con enfoque de adaptación y sostenibilidad, otras fuentes de financiación para la implementación de medidas 4. Avanzar en las estrategias para la planificación y adecuada implementación de las medidas. Construcción y fortalecimiento de capacidades. Desarrollar este componente en todos los proyectos que se ejecuten para implementación del PIGCCS. Recursos para replicar / difundir el paquete de herramientas relacionadas con la implementación de medidas de adaptación al cambio climpatico y gestión del riesgo agroclimático | AA26: No
D27: 18 | E27: Agropecuario (capacidades 10 subsectores): 1 | F27: Agropecuario | G27: 10 subsectores agropecuarios (arroz, maíz, papa, ganadería de carne, ganadería de leche, caña panelera, cacao, banano, café y caña de azúcar) , contarán con capacidades mejoradas para adaptarse a la variabilidad climática y/o cambio climático. | H27: En el marco de las medidas planteadas en el PIGCCs, la ambición de esta meta está orientada a continuar fortaleciendo capacidades en los subsectores agropecuarios en temas tales como: 1. Mejorar el alcance de la información climática y ajustarla de manera funcional a las necesidades de los primeros eslabones de las cadenas productivas, especialmente a los productores primarios, con la finalidad de contribuir a una adecuada toma decisiones. 2. Involucrar a actores del sector privado en políticas de acción climática. 3. Desarrollar análisis con enfoque de género. 4. Construir e implementar un sistema de monitoreo y evaluación para la adaptación involucrando al sector privado, que esté alineado con los indicadores de seguimiento, metas y objetivos que definen los subsectores para el desarrollo de sus actividades. 5. Fomentar la formulación e implementación de planes integrales para la adaptación y mitigación en cada subsector. 6. Involucrar y combinar los conocimientos tradicionales y científicos en las medidas de adaptación con la finalidad de mejorar el impacto de éstas. Es importante promover la vinculación de los productores primarios a la generación de información, al desarrollo de buenas prácticas, a partir de sus conocimientos propios, y al fortalecimiento de la apropiación de la información de carácter científico en doble vía. 7. Intercambios de experiencias entre subsectores para mejorar las buenas prácticas agropecuarias en medidas de adaptación. 8. Extensión agropecuaria integral basada en la generación, acumulación, socialización y adopción de conocimiento para el cambio técnico necesario en procesos de adaptación y mitigación a las causas y efectos de la variabilidad y el cambio climático, en línea con el SNIA (Sistema Nacional de Innovación Agropecuaria). Se espera que los temas numerados sean aplicados en los subsectores definidos de acuerdo al diagnóstico de capacidades de adaptación realizado con el apoyo de la FAO y a la concertación que sea posible adelantar con respresentantes de los subsectores. | I27: Mejorar las capacidades de 10 subsectores agropecuarios (arroz, maíz, papa, ganadería de carne, ganadería de leche, caña panelera, cacao, banano, café y caña de azúcar) para adaptarse a la variabilidad climática y/o cambio climático. | J27: Minagricultura | K27: DIDTyPS | L27: Responsables de implementación nacional: MADR, Agencia de Desarrollo Rural ADR, DNP, SENA, Gremios de la producción Responsables de implementación territoriales: Gobernaciones, Municipios, Productores, SENA, AGROSAVIA | M27: 1. Los estudios técnicos realizados como base para la formulación del PIGCC sectorial, así como los avances posteriores en esta materia soportan las acciones que se desarrollen en el sector en términos de adaptación al cambio climático. 2. El PIGCC sectorial es el instrumento orientador para la implementación de acciones de adaptación al cambio climático. 3. El fortalecimiento de las capacidades mencionadas en la descripción de la meta tendrá como base el estudio de diagnóstico de capacidades para adaptarse ante la variabilidad climático y/o cambio climático realizado con el apoyo de la FAO. | N27: (N° subsectores con capacidades mejoradas para la adaptación al cambio y la variabilidad climática/N° subsectores Meta) *100= %cumplimiento de la meta del indicador | O27: 2014: Los subsectores arroz, maíz, banano, ganadería, caña de azúcar, papa y café (7) lograron obtener conocimientos en temas tales como información agroclimática, investigación aplicada y avances en el desarrollo de material vegetal con características de tolerancia ante fenómenos de variabilidad climática. | P27: Para 2024 los subsectores arroz, banano, ganadería, maíz, caña y papa fortalecerán sus capacidades de adaptación a partir del desarrollo de material vegetal con característcas de tolerancia ante V y CC Climático, apoyo técnico en la producción de materiales resilientes y/o herramientas de manejo de información agroclimática, de acuerdo a las medidas de adaptación planteadas en el PIGCCs. Para el año 2027 los diez subsectores fortalecerán capacidades de adaptación en los temas propuestos de acuerdo con los medios disponibles. | Q27: Informes finales de ejecución de proyectos y convenios, soportes de aprobación de proyecto "“Agricultura baja en emisiones y resiliente a la variabilidad y cambio climático en Colombia”, dentro de las medidas de adaptación planteadas en el PIGCCs. | R27: Plataforma de Experiencias de Adaptación del sector Agropecuario ajustada para alojar estos reportes de avance. Reporte en el SIVRA. | S27: Anual | T27: Gestión Institucional de asignación de recursos para la inversión en el tema, compromiso de los subsectores para llevar a cabo la meta incluyendo aportes en personal técnico y especializado y en recursos. Investigación, capacidad instalada y recursos: Es necesario desarrollar investigación aplicada, contar con personal capacitado en temáticas de cambio y variabilidad climática dentro de los subsectores para que estos puedan transferir los conocimientos adquiridos a los productores. Además, el fortalecimiento de capacidades requiere la inversión de recursos financieros destinados a implementar diferentes herramientas y métodos de aprendizaje, así como equipos necesarios para hacer seguimiento a la implementación de medidas que se deriven de la aplicación de los conocimientos tecnológicos en el tema. | U27: 1, 2, 3, 4 | V27: 1. A través de los convenios y proyectos se ha capacitado a productores y técnicos en conceptos de variabilidad y cambio climático, técnicas de producción de material vegetal, manejo de información, equipos y herramientas para predicciones agroclimáticas. 2. Plataformas de servicios agroclimáticos en FEDEARROZ, FENALCE, AVANCES EN GANADERÍA, CENICAFÉ, CENICAÑA. Plataforma de experiencias de adaptación actualmente en PNUD. Investigación en material vegetal resiliente. 3. Proyectos de inversión avalados por DNP,sin embargo, no cuentan con la asignación de recursos necesaria para la implementación completa de acciones de adaptación. 4. Programa “Desarrollo y Adopción de un Sistema de Producción de Arroz de bajo uso de insumos para Latinoamérica a través de Mejoramiento Genético y Tecnologías avanzadas de Manejo del Cultivo” (SATREPS). Este programa financiado por el Gobierno del Japón, a través de la Agencia Japonesa de Cooperación Internacional (JICA), tuvo como objetivo: Desarrollar técnicas de producción de arroz eficientes con el uso de recursos e implementar métodos adecuados de cultivo con el medio ambiente colombiano. Se ejecutó en asocio con la Federación Nacional de Arroceros - FEDEARROZ, el Centro Internacional para la Agricultura Tropical - CIAT y el Fondo Latinoamericano de arroz Riego - FLAR, y actualmente se encuentra en el año 5 de ejecución. | W27: 1. Recursos y personal calificado para realizar los procesos de educación, formación y sensibilización. 2. Ampliar a los 10 subsectores la operación de plataformas de servicios agroclimáticos Ajustar módulos específicos de la plataforma de adaptación para actualizaciones periódicas y mejoramiento de bases de datos. 3. Respaldo a nivel Nacional para la implementación del proyecto CAF-MADR-CIAT “Agricultura baja en emisiones y resiliente a la variabilidad y cambio climático en Colombia”. 4. Establecer alianzas con fuentes de financiación a nivel nacional e internacional, centros de investigación idóneos y demás actores que cuenten con capacidades para la construcción de las medidas desde el diséño hasta la implementación y posterior evaluación | AA27: Si
D28: 19 | E28: Agricultura : Mesas Técnicas Agroclimáticas | F28: Agricultura | G28: Tres (3) Regiones naturales del país con mayor potencial agropecuario (Andina, Caribe y Orinoquía) participando en las mesas técnicas agroclimáticas articuladas con la mesa nacional un (1) millón de productores recibiendo información agroclimática para facilitar la toma de decisiones en actividades agropecuarias. | H28: MinAgricultura implementará iniciativas para la adaptación al cambio climático en sistemas productivos agropecuarios en asocio con los gremios, los centros de investigación, y con el apoyo de la cooperación internacional consolidará las mesas agroclimáticas a nivel Nacional y Regional. Además, un millon de productores estarán recibiendo información agroclimática para facilitar la toma de decisiones en las actividades agropecuarias. Estas iniciativas comprenden la generación de boletines agroclimáticos con recomendaciones técnicas para diferentes actividades agropecuarias con base en predicciones climáticas de corto plazo de fenómenos como El Niño y La Niña, con el fin de tomar las medidas correspondientes y contribuir a la reducción del riesgo de afectación en cultivos y animales. Actualmente se cuenta con mesas en los departamentos de Cauca, Caldas,Córdoba, Cesar, Guajira, Magdalena, Nariño, Santander, Sucre y Tolima. | I28: Alcanzar el cubrimiento de las mesas técnicas agroclimáticas articuladas con la mesa nacional en 3 Regiones naturales del país con mayor potencial agropecuario (Andina, Caribe y Orinoquia) involucrando alrededor de 27 departamentos y 1 millón de productores recibiendo información agroclimática para facilitar la toma de decisiones en actividades agropecuarias. | J28: Minagricultura | K28: Direcciones de Innovación, Desarrollo Tecnológico y Protección Sanitaria / Financiamiento y Riesgos Agropecuarios | L28: Gobernaciones, Alcaldías, Secretarías de Agricultura, Gremios de la Producción, Academia y centros de investigación. | M28: 1. IDEAM continúa generando y mejorando la información requerida para el desarrollo de las mesas técnicas agroclimáticas. 2. El personal técnico cuenta con capacidades para generar recomendaciones para los sistemas productivos a partir de la información climática generada por el IDEAM. 3. La información agroclimática y la recomendaciones generadas son insumo para la toma de decisiones del productor. | N28: Número de regiones naturales del país con mayor potencial agropecuario (Andina, Caribe y Orinoquía) participando en las mesas técnicas agroclimáticas articuladas con la mesa nacional Número de productores recibiendo información agroclimática para facilitar la toma de decisiones en actividades agropecuarias | O28: 2 regiones (Andina y Caribe) participando en las mesas técnicas agroclimáticas articuladas con la mesa nacional. 9.176 productores recibiendo información agroclimática según reportes directos de los participantes de las mesas técnicas agroclimáticas | P28: A 2024 Tres (3) regiones naturales del país con mayor potencial agropecuario participarán en las mesas técnicas agroclimáticas, A 2025 se logrará una gobernanza por parte de los actores locales para la sostenibilidad de las mesas. A 2030: 1 millón de productores estarán recibiendo información agroclimática para facilitar la toma de decisiones en actividades agropecuarias | Q28: https://pnudpublic.linktic.com/#/ | R28: https://pnudpublic.linktic.com/#/ | S28: Anual | T28: Gestión institucional de asignación de recursos, compromisos subsectores para llevar a cabo la meta, capacidad instalada. Información, conocimiento y recursos: es importante que las instancias municipales y departamentales conozcan los conceptos básicos en temas de cambio climático, cuenten información sobre los distintos riesgos que afectan sus territorios, así como con un portafolio de medidas de adaptación al cambio climático para el sector, adicional a estrategias claras de comunicación para una efectiva difución de la información. | U28: 1, 2, 3, 4, 5 | V28: 1. Desarrollo de talleres regionales sobre la "Alfabetización Agroclimática" En el marco de Convenio MADR - FAO para las mesas tecnicas agroclimáticas 2. Centros de Investigación como CIAT, Agrosavia y la academia hacen parte del funcionamienro de las MTAs Regionales (Ej: Boyacá, Tolima) 3. Espacios de capacitación en las temáticas relacionadas con la adaptación al cambio climático, en el desarrollo de las sesiones de las mesas técnicas agroclimáticas. 4. Alianza estratégica con el IDEAM para dar valor agregado al funcionamiento de las mesas técnicas agroclimáticas y nacional , en lo que se refiere a procesos y articulación de la información y predicciones reportadas en los espacios de las MTA, para generar interoperabilidad con el Sistema de Información para la Gestión de Riesgos Agropecuarios – SIGRA, ( proceso liderado por el MADR con la participación de Finagro y administración de la UPRA). Finalmente teniendo en cuenta la experiencia del IDEAM en ciencias que estudian las variables climáticas y el aporte que puede hacer a las MTA resulta determinante generar un acuerdo entre el MADR e IDEAM para el fortalecimiento técnico de estos espacios. 5. N.A | W28: 1. Recursos, capacidad instalada 2. Recursos, capacidad instalada 3. Capacidad instalada a nivel territorial. 4. Recursos para el apalancamiento de convenios para el funcionamiento de las mesas técnicas agroclimáticas. 5. Recursos | Y28: 15 Departamentos del país participando en las mesas técnicas agroclimáticas, articuladas con la mesa nacional, y 1 millón de productores recibiendo información agroclimática para facilitar la toma de decisiones en actividades agropecuarias | Z28: Meta tipo 3 – sin referencia | AA28: No
D29: 20 | E29: Ambiente: SIIVRA | F29: Medio Ambiente y recursos naturales | G29: A 2030 el país contará un Sistema Integrador de Información sobre Vulnerabilidad, Riesgo y Adaptación al cambio climático (SIIVRA), que permita monitorear y evaluar la adaptación al cambio climático en Colombia articulado al Sistema Nacional de Información de Cambio Climático (SNICC). | H29: El Sistema Integrador de Información sobre Vulnerabilidad, Riesgo Adaptación al cambio climático (SIIVRA), a partir de un marco conceptual y metodológico integra una batería de indicadores que permitirá determinar la vulnerabilidad (sensibilidad y capacidad de adaptación) y el riesgo al cambio climático. Así mismo, permitirá monitorear y evaluar la adaptación al cambio climático, en Colombia. En cuanto al monitoreo y evaluación de la adaptación al cambio climático, ésta será analizada en tres niveles: a) planificación de largo plazo considerado como estratégico, el cual hace referencia a políticas, planes, metas; b) de mediano plazo o táctico, el cual contempla planes de desarrollo territorial cuatrianales de gobierno; y c) corto plazo denominado operativo que tiene ver con intervención en el territorio a traves de proyectos que se desarrollan en planes operativos anuales (Documento Marco conceptual SIIVRA, 2020). En el 2022, se espera que el SIIVRA genere reportes que den cuenta de la vulnerabilidad y el riesgo al cambio climático a nivel municipal y departamental. Este reporte se realizará con una batería inicial de aproximadamente 83 indicadores y será un insumo importante para el informe Bienal de la Comunicación en Adaptación. Las salidas del sistema en términos de vulnerabilidad y riesgo tendrán una escala departamental/municipal de acuerdo con la disponibilidad de información con la que se cuenta hasta el momento para los indicadores identificados y priorizados según fuentes oficiales. En términos de monitoreo y evaluación de la adaptación en el SIIVRA, se realizará a traves del diferencial (el delta) de la comparación de dos periodos o dos cortes en el tiempo de la capacidad adaptativa, de la vulnerabilidad y del riesgo. Esta es una forma de ver el avance en la reducción de la vulnerabilidad, ya sea por fortalecimiento de la capacidad adaptativa o por reducción de la sensibilidad del territorio o del sector al cambio climático. El indicador construido en esta aproximación sería un indicador de avance o de proceso o de progreso en la adaptación. Además de hacerlo con el diferencial de la capacidad adaptativa, de la vulnerabilidad y del riesgo (evaluación); se propone mirar las acciones en los tres niveles, de las siguientes manera: el seguimiento de las acciones del nivel estratégico para lo cual contará con información sobre las políticas, leyes, normas que, sobre asuntos de adaptación al cambio climático, se hayan incorporado durante el período en evaluación (se incluirían actualizaciones de los POT, los POMCAs, etc); para las acciones del nivel táctico, se deberá tomar la información específica de adaptación al cambio climático que está en los planes de desarrollo territoriales cuatrienales; y finalmente, para el nivel operativo se deberá contar con información sobre el avance concreto (en resultados de construcción en el largo plazo) en adaptación territorial al cambio climático por los proyectos de adaptación que se desarrollaron. Al respecto, es importante tener en cuenta que el SIIVRA, en el corto plazo no tendrá la función de seguimiento y evaluación para cada uno de los proyectos o medidas de adaptación que se implementen en el país, permitirá tan solo cuantificar el número de iniciativas de adaptación al cambio climático que se vienen adelantando en el municipio (Monitoreo). En lo relativo a la articulación del SIIVRA con el SNICC, en este año se avanzará con el diseño del plan de inteoperabilidad y lo arreglos interinstitucionales necesarios que se requieren para la interoperabilidad del sistema con otros sistemas y herramientas para la generación de indicadores. En el 2025, en términos de vulnerabilidad y riesgo a cambio climático, el sistema contempla la actualización y/o inclusión de indicadores en sus distintas dimensiones y componentes producto del ajuste y mantenimiento del sistema como parte de la operación del mismo, y de acuerdo con las necesidades de los usuarios asi como de la disponibilidad de información. En lo relativo a la articulación el SIIVRA con el SINCC, avanzará en la interoperabilidad y arreglos institucionales con otros sistemas de información y herramientas, en especial, con los sistemas y herramientas que hacen parte del SNICC. En el 2030, el SIIVRA es un sistema integrador de información sobre vulnerabilidad, riesgo y adaptación al cambio climático que permite monitorear y evaluar la adaptación al cambio climático en Colombia articulado al Sistema Nacional de Información de Cambio Climático (SNICC). En cuanto a la información sobre vulnerabilidad, riesgo y adaptación al cambio climático se espera contar con una línea base robusta que se constituya en un insumo importante para los tomadores de decisión para la identificación y priorización de medidas de adaptación. De igual manera, en términos de monitoreo y evaluación de la adaptación sus reportes serán un insumo importante e indicativo de cómo está evolucionando el proceso de adaptación. En general, se espera que los reportes del SIIVRA se constituyan en un insumo importante para los informes bienales de la comunicación en adaptación durante el periodo 2024-2030. En lo pertinente a la articulación, el SIIVRA estará articulado con los sistemas que integran el SNICC y que se encuentran en funcionamiento y con disponibilidad de información. | I29: Desarrollar un Sistema Integrador de Información sobre Vulnerabilidad, Riesgo y Adaptación al Cambio Climático, articulado al SNICC, que permita analizar la vulnerabilidad y el riesgo por cambio climático y monitorear y evaluar la adaptación en el país. | J29: IDEAM | K29: Dirección de Cambio Climático y Gestión del Riesgo Minambiente Subdirección de Estudios Ambientales del IDEAM | L29: En la fase de diseño y desarrollo del SIIVRA: ENTIDADES PNACC (UNGRD, DNP, IDEAM, MINAMBIENTE) y Fondo Acción. A futuro se contempla la participacion de otras instituciones que hacen parte del SISCLIMA y otras instituciones que hacen parte del SINA, a igual que organismos y agencias internacionales. | M29: Se reglamentará el articulo 26 (SNICC) de la ley 1931 de 2018 y articulando el SIIVRA a dicho sistema. Fortalecimiento de la capacidad institucional para mantener y operar el sistema. Contar con el funcionamiento del SNICC | N29: Dado que la meta tiene tres componentes, los indicadores asociados se diseñaron en función de los mismos: 1. información sobre vulnerabilidad, riesgo y adaptación. 2. monitoreo y evaluación de la adaptación y 3. Articulación al SNICC. Así mismo, cada porcentaje de avance está representado por el cumplimeiento de unas acciones. En consecuencia el porcentaje de avance se estableció como resultado de una regla de tres para el porcentaje de cada una de las acciones. 1. Porcentaje (%) de avance de la línea base de indicadores para el analisis de vulnerabilidad, riesgo y adaptación del SIIVRA El alcance de este indicador se encuentra representado en: 1.1. En el diseño y desarrollo del sistema 1.2. En la elaboración de la hojas metodologicas de los indicadores, 1.3. En el cargue de la información basica (indicadores de corto plazo por disponibilidad) al sistema cumpliendo con las normas de datos abiertos y protocolos de información. 1.4. Reportes de vulnerabilidad, riesgo con Información seleccionada de corto plazo por disponibilidad 1.5. Actualización, inclusión, ajuste y mejora del sistema según requerimientos una vez puesto el sistema en funcionamiento al servicio del usuario (plan de sistemas). 2. Porcentaje (%) de avance en el monitoreo y evaluación de la adaptación El alcance de este indicador se encuentra representado en: 2.1. Diseño metodologico y conceptual. 2.2. En el cargue de información para el monitoreo de adaptación. 2.3. Reporte de monitoreo y evaluación de la adaptacion con información básica. 2.4. Identifiación de ajustes y mejoras del monitoreo y evaluación de adaptación. 2.5. Implementación de ajustes y mejoras del sistema. 3. Porcentaje (%) de avance en la articulación del SIIVRA al Sistema Nacional de Información de Cambio Climático (SNICC) El alcance de este indicador se encuentra representado en: 3.1. Diseño del plan de interoperabilidad 3.2. Interoperabilidad para la generación de indicadores con otros sistemas y herramientas con los arreglos institucionales correspondientes. 3.3. Interoperabilidad con los sistemas que hacen parte del SNICC que se encuentren en funcionamiento. | O29: Actualmente se tiene una batería de aproximadamente 83 indicadores que se incluirán en el SIIVRA El SIIVRA actualmente se encuentra en la fase de diseño conceptual y tecnológico | P29: Los hitos (avances) en los alcances de la línea base serán : - Porcentaje de avance estimado al año 2022: 60% (se espera que en el año 2022 se puedan tener reportes con información seleccionada y priorizada de corto plazo en relacion a la disponibilidad de la misma). - Porcentaje de avance estimado al año 2025: 80% - Porcentaje de avance estimado al año 2030: 100% Los hitos (avances) en los alcances de monitoreo y evaluación de la adaptación serán - Porcentaje de avance estimado al año 2022: 60% - Porcentaje de avance estimado al año 2025: 80% - Porcentaje de avance estimado al año 2030: 100% Los hitos (avances) en los alcances de articulación del SIIVRA al Sistema Nacional de Información de Cambio Climático (SNICC) serán: - Porcentaje de avance estimado al año 2022: 33% - Porcentaje de avance estimado al año 2025: 66% - Porcentaje de avance estimado al año 2030: 100% (El SIIVRA articulado al SNICC, expresado en la interoperabilidad con los sistemas y herramientas que conforman el SNICC) | Q29: Documento del marco conceptual del SIIVRA Documento de la propuesta del SNIACC. Disponible en: https://www.ctc-n.org/system/files/dossier/3b/actividad_2.3.4_protocolos_final_v4.pdf Tercera Comunicación Nacional de Cambio Climático. Disponible en: http://www.cambioclimatico.gov.co/resultados | R29: Las entidades del PNACC realizarán la evaluación de los avances en el desarrollo del SIIVRA, y la articulacion con el SNICC, por medio de informes. | S29: Mensual | T29: Una bateria de indicadores robusta que cumpla con las normas y directrices de calidad de los datos abiertos, unos arreglos institucionales y con otras organizaciones que faciliten la interoperabilidad del sistema con otras herramientas y sistemas; así como los lineamientos del Ministerio de Ambiente y Desarrollo Sostenible para el diseño y desarrollo del SNICC. | U29: 1, 2, 3, 4, 5 | V29: 1. La batería de indicadores que permite evaluar la vulnerabilidad frente al cambio climático, y que sería la base para el cálculo del delta de vulnerabilidad como una medida de la adaptación a nivel nacional, fue contemplada en el análisis de la Tercera Comunicación Nacional de Cambio Climático, que se ha ido socializando desde el año 2017 con el fin de sensibilizar a los tomadores de decisiones, sobre la importancia de la información a nivel municipal que permitiría orientar medidas de adaptación. 2. El SIIVRA parte de un diseño conceptual innovador, que pretende integrar diferentes niveles y escalas de estudio y con un enfoque diferenciado en el largo plazo. El SIIVRA se considera un producto de innovación tecnológica, que permitirá orientar la toma de decisiones en temas de adaptación al cambio climático en el país. 3. El desarrollo del SIIVRA cuenta con recursos financieros destinados por el Programa de Preparación para la Adaptación Nacional con el Apoyo del Fondo Verde del Clima. 4. En el marco de la política y la ley de cambio climático, y con el apoyo del programa de Preparación para la adaptación (NAP Readiness) y el Fondo Verde del Clima (FVC); se aprobó el proyecto para apoyar al gobierno nacional a iniciar la fase de implementación del Plan Nacional de Adaptación al Cambio Climático (PNACC), con el fin de construir una economía resiliente y la realización de acciones de adaptación que permitieran avanzar en el cumplimiento de la Contribución Nacional Determinada (NDC) en el marco del Acuerdo de París. Dentro de los principales resultados esperados de este proyecto se encuentra el desarrollo del Sistema Integrador de Información para Vulnerabilidad, Riesgo y Adaptación al cambio climático (SIIVRA), que se constituirá en una herramienta para organizar la información sobre adaptación, incluyendo aquella útil para el monitoreo y la evaluación. Dicho documento fue presentado a las entidades que hacen parte del Comité Directivo del PNACC, así como a sus grupos técnicos designados quienes realizaron la revisión y retroalimentación del mismo. El Plan Nacional de Desarrollo 2018-2022 en su componente “Colombia resiliente: conocimiento y prevención para la gestión del riesgo de desastres y la adaptación al cambio climático”, en el numeral 3 de Seguimiento y evaluación para el cambio climático, indica que para implementar acciones adecuadas hacia la gestión climática y realizar su evaluación, es necesario: • Diseñar e implementar un Sistema de Información de Cambio Climático a partir de la integración de plataformas de información existentes, para poner a disposición los indicadores y metas para hacer seguimiento a los compromisos en adaptación y sus medios de implementación, así como para monitorear y evaluar los avances nacionales y el cumplimiento de metas en materia de emisiones de GEI y su reducción, liderado por el IDEAM, con el apoyo de MinAmbiente, el DNP y las autoridades ambientales regionales. • Establecer un procedimiento para la definición de las metas nacionales de mediano y largo plazo en cambio climático y para el seguimiento y actualización periódica de las metas de la contribución nacionalmente determinada (NDC por sus siglas en inglés), acorde a los lineamientos de la Convención Marco de las Naciones Unidas sobre el Cambio Climático (CMNUCC), a cargo de MinAmbiente y DNP, con el apoyo del IDEAM y la Cancillería. 5. Sin información | W29: 1. * Promover en los distintos espacios educativos, en las instituciones sel sector ambiental, gremial y territorial el buen uso y manejo del sistema. Facilitar espacios de intercambio, participación y dialogo de saberes con diferentes públicos en la que se comunique de manera apropiada los resultados segun el contexto. * Sensibilizar y formar conceptualmente en lo que respecta a los enfoques integral, territorial y diferenciado. * Formación y conocimiento sobre la diversidad cultural y la manera como se afecta el entorno natural con el desarrollo actividades humanas, económicas (agriculturas, minerías, etc) * Formación en la transdisciplina para la comprensión integral del ambiente natural y el ambiente construido lo que da soporte conceptual para el análisis de la vulnerabilidad, el riesgo y la adaptación * Avances en la educación intercultural para lograr un trabajo desde la base con las comunidades cuando se estudie la vulnerabilidad, el riesgo y la adaptación en sus territorios 2. * Investigación acción participativa a partir de la conformación de equipos trasndiciplinarios que vinculan la participacion activa de sabedores y sabedoras con el fin de identificar,evaluar y mejorar la información sobre los efectos e impactos del cambio en el clima en los territorios, entre otros aspectos asociados. * Fortalecer las herramientas y sistemas de información de las organizaciones indígenas, afrodescendientes y campesinas u otros sitemas a nivel local de acuerdo a sus necesidades y requerimientos. * Propiciar y concertar con las organizaciones indígenas la interoperabilidad de sus sistemas y herramientas de información con el SIIVRA. Esta interoperabilidad permitiria llenar esos vacíos en lo relacionado con lo cultural * Arreglos institucionales con las instituciones que generan información para que en sus instrumentos metodológicos (censos, encuestas, registros administrativos) incluyan preguntas o información relacionada con la amenaza y la vulnerabilidad (sensibilidad y capacidad de adaptación) a la variabilidad y al cambio climático. * Sensibilizar y formar conceptualmente en lo que respecta a los enfoques integral, territorial y diferenciado, a los equipos temáticos e informáticos * Formación y conocimiento sobre la diversidad cultural y la manera como se afecta el entorno natural con el desarrollo actividades humanas, económicas (agriculturas, minerías, etc), a los equipos temáticos e informáticos * Formación en la transdisciplina para la comprensión integral del ambiente natural y el ambiente construido lo que da soporte conceptual para el análisis de la vulnerabilidad, el riesgo y la adaptación , a los equipos temáticos e informáticos Para las metas del mediano y largo se requiere contar con los recursos financieros para la formación de los equipos de trabajo en lo que respecta al enfoque diferenciado y el trabajo con las comunidades 3. Se requieren recursos financieros para el desarrollo conceptual, tecnológico y operativo de los módulos o subsistemas que realizarían monitoreo y evaluación de la adaptación en las escalas regionales y locales 4. Reglamentación de la ley de cambio climático; Lineamientos para la construcción e implementación del SNICC; Lineamientos para la interoperabilidad entre las entidades nacionales, regionales y locales. 5. Sin información
D30: 21 | E30: Ambiente: Cuencas Hidrográficas | F30: Medio Ambiente y recursos naturales | G30: 135 Planes de Ordenación y Manejo de Cuencas Hidrográficas - POMCA formulados y/o ajustados con consideraciones de variabilidad y cambio climático. | H30: El Plan de Ordenación y manejo de Cuencas Hidrográficas (POMCA) es el instrumento a través del cual se realiza la planeación del adecuado uso del suelo, de las aguas, de la flora y la fauna; y el manejo de la cuenca, entendido como la ejecución de obras y tratamientos, con el propósito de mantener el equilibrio entre el aprovechamiento social y el aprovechamiento económico de tales recursos, así como la conservación de la estructura físico -biótica de la cuenca y particularmente del recurso hídrico (Artículo 2.2.3.1.5.1 del Decreto 1076 de 2015). La meta corresponde a los POMCAS que han sido elaborados y/o ajustados con base en lo dispuesto por Decreto 1076 de 2015, y atendiendo la Guía Técnica para la Formulación de Planes de Ordenación y manejo de Cuencas Hidrográficas expedida por el MinAmbiente mediante Resolución 1907 de 2013 y conforme a la zonificación hidrográfica definida por el IDEAM - MinAmbiente (2013). Para la elaboración y/o ajuste de los POMCAs; las Corporaciones Autónomas Regionales y de Desarrollo Sostenible, responsables de liderar su formulación y/o ajuste, siguen los siguientes procesos, conforme la Guía Técnica: 1. Procesos formales previos (Priorización de Cuencas, Conformación o Reconformación de Comisiones Conjuntas, Declaratoria de Cuencas en Ordenación, entre otros) 2. Fase de Aprestamiento 3. Fase Diagnóstico 4. Fase de Prospectiva y Zonificación Ambiental 5. Fase de Formulación | I30: Contar con instrumentos de ordenación y manejo de de cuencas hidrográficas que contribuyan a reducir el riesgo y los impactos socioeconómicos y ecosistémicos asociados a la variabilidad y al cambio climático | J30: Minambiente | K30: Dirección de Gestión Integral del Recurso Hídrico | L30: CAR's | M30: * Teniendo en cuenta que la formulación y/o ajuste y aprobación de los POMCAS obedecen a procesos técnicos y sociales particulares de cada región, se pueden presentar situaciones de orden operativo, político y social que pueden afectar los cronogramas definidos para la formulación y/o ajuste y aprobación de los POMCAS. *El Ministerio de Ambiente y Desarrollo Sostenible es el encargado de generar las normas y lineamientos para la incorporación de criterios de variabilidad y cambio climático en los POMCAS y dar el respectivo acompañamiento. * Las normas y los lineamiento técnicos son aplicados de manera íntegra por las Autoridades Ambientales quienes son las responsables de la formulación de estos instrumentos. *Normatividad se mantiene, y frente a posibles cambios se ajustará el proceso de acuerdo a la normatividad vigente en materia de POMCAS. | N30: Número (#) de Planes de Ordenación y Manejo de Cuencas Hidrográficas - POMCA formulados y/o ajustados con consideraciones de variabilidad y cambio climático | O30: Con corte al 30 de junio de 2020, se cuenta con 70 Planes de Ordenación y Manejo formulados y/o ajustados. El Indicador mide el número de POMCAS formulados y/o ajustado a partir de la nueva estructura de planificación y ordenación de cuencas hidrográficas, acorde con el Decreto 1640 de 2012 (Hoy compilado en el Decreto 1076 de 2015) de acuerdo con las metas establecidas en los diferentes planes de acción de las autoridades ambientales y los Planes de Desarrollo. El Número de POMCAS formulados y o ajustado, corresponden a POMCAS que han finalizado la fase de Formulación, algunos de los cuales pueden estar en publicidad formal y otros ya fueron aprobados por las respectivas Autoridades Ambientales competentes. | P30: 2020: 70 POMCAS 2022: 90 POMCAS 2026: 115 POMCAS 2030: 135 POMCAS | Q30: Reporte de indicadores mínimos de gestión de las CARs, respecto al Indicador de que trata el Numeral 1 del Artículo 6 de la Resolución 0667 de 2016 (Porcentaje de Avance en la formulación y/o ajuste de POMCAS), así como los reportes propios generados por el Minambiente respecto a las acciones de coordinación y seguimiento de POMCAS. * En proceso el diseño del módulo de POMCAS dentro del SIRH, el cual contará con el componente de seguimiento Las herramientas técnica para el desarrollo de los Pomca, se encuentran en la siguiente p. web: https://www.minambiente.gov.co/index.php/gestion-integral-del-recurso-hidrico/planificacion-de-cuencas-hidrograficas/cuenca-hidrografica/planes-de-ordenacion | R30: Reportes periódicos del indicador generados por la DGIRH del Minambiente en el https://www.minambiente.gov.co/index.php/gestion-integral-del-recurso-hidrico/planificacion-de-cuencas-hidrograficas/cuenca-hidrografica/planes-de-ordenacion * En proceso el diseño del módulo de POMCAS dentro del SIRH, el cual contará con el componente de seguimiento | S30: Anual | T30: *Recursos económicos, técnicos y operativos de las Autoridades Ambientales para desarrollar los procesos de formulación y/o ajuste de los POMCA. *Recursos económicos, técnicos y operativos del Minambiente para realizar la asistencia técnica y hacer el seguimiento y evaluación de los procesos de ordenación de cuencas. * Que las Autoridades Ambientales en sus instrumentos de gestión, en especial los Planes de Acción Institucional de las CARs involucren las acciones de ordenación y manejo de cuencas hidrográficas. *Fortalecimiento de herramientas técnicas y de los espacios de coordinación (Comisiones Conjuntas) y de participación (Consejos de Cuencas, desarrollo de consultas previas, entre otros) para el desarrollo de los POMCA. | U30: 1, 2, 3, 4, 5 | V30: 1. *Plan Nacional de Formación para la Gestión Integral del Recurso Hídrico (Se desarrolla a través de: 3 cursos virtuales en implementación en la escuela virtual del Ministerio de Ambiente y Desarrollo Sostenible, Tres cursos presenciales formulados y validados: 1. Agua Recurso Vital, 2. Gobernanza para la Cultura de Agua, 3. Manejo de conflictos asociados al Recurso Hídrico; se cuenta con material audiovisual en temas de GIRH *Red Temática para la Gestión Integral del recurso hídrico (integrada por 25 universidades a nivel nacional ) *Programa Nacional de Cultura del Agua, Participación y Transformación de Conflictos Relacionados con el recurso hídrico (formulado hace dos años) *Programa de Gobernanza del Agua (en proceso de formulación a 2021) *La plataforma web denominada Observatorio Colombiano de Gobernanza del Agua - OCGA es un instrumento de socialización, difusión y sensibilización acerca del Recursos Hídrico *Guía de conflictos en implementación *Fortalecimiento de comunidades para la participación efectiva y activa en las decisiones acerca de la GIRH. 2. *Programa Nacional de Investigación para la Gestión Integral del Recurso Hídrico (el programa estará formulado a dic de 2020) *Programa Nacional de Monitoreo del Recurso Hídrico ( esta en proceso de adopción) *Sistema de Información del Recurso Hídrico - SIRH (esta en proceso de rediseño) * Sistema de Información sobre Planeación y Gestión de las CARs - SIPDACAR. 3. N/A 4. *Programa de Articulación y Armonización de Instrumentos de Planificación de Cuencas Hidrográficas y Planificación Territorial: Se encuentra en proceso de formulación en el marco del Plan Hídrico Nacional 5. N/A | W30: 1. La implementación de acciones relacionadas con la Gobernanza del Agua requieren de la conformación de un equipo profesional especializado en líneas estratégicas(educación, participación, manejo de conflictos; divulgación, difusión y sensibilización e investigación participativa) que permitan el desarrollo de los procesos que demanden los territorios en materia de Gobernanza dela gua y que permitan la formulación del Programa nacional de Gobernanza del Agua y la actualización del OCGA. 2. Para avanzar en la formulación del Programa Nacional de Investigación y darle continuidad a la actualización del SIRH, se requiere la conformación de un equipo profesional especializado y recursos para la implementación de proyectos piloto de investigación acerca de la GIRH- 3. *Recursos económicos de las Autoridades Ambientales para desarrollar los procesos de formulación y/o ajuste de los POMCA. *Recursos económicos del Minambiente para realizar la asistencia técnica y hacer el seguimiento y evaluación de los procesos de ordenación de cuencas. 4. *Que las Autoridades Ambientales en sus instrumentos de gestión, en especial los Planes de Acción Institucional de las CARs involucren las acciones de ordenación y manejo de cuencas hidrográficas. *Fortalecimiento de los espacios de coordinación (Comisiones Conjuntas) y de participación (Consejos de Cuencas, desarrollo de consultas previas, entre otros) para el desarrollo de los POMCA. 5. *Fortalecimiento de las herramientas técnicas (Especificar a que tipo de herramientas hace referencia) | Y30: Las cuencas prioritarias del país contarán con instrumentos de manejo del recurso hídrico con consideraciones de variabilidad y Cambio Climático | Z30: Meta tipo 1 – referencia directa | AA30: Si
D31: 22 | E31: Ambiente: Páramos | F31: Medio Ambiente y recursos naturales | G31: Delimitación y protección de los 37 páramos de Colombia | H31: Conforme a los avances que se tienen en esta meta se continuará con: En lo referente a la delimitación, el país continuará con los procesos participativos para la nueva delimitación de los páramos Almorzadero, Cruz Verde - Sumapaz y Jurisdicciones – Santurbán – Berlín, así como el proceso de delimitación del páramo de Pisba. En cuanto a la formulación de los planes de manejo del páramo (Diagnóstico, definición de objetivos de manejo, zonificación y componente programático) conforme a la normatividad vigente, etapas a las que se realizará el seguimiento con el fin de contar con avances en la meta. Los planes de manejo de los páramos son el instrumento mediante el cual, a partir de información biótica, física, social y económica, se establece un marco programático y de acción para alcanzar objetivos de conservación en términos de preservación, restauración, uso sostenible y generación de conocimiento al corto, medianto y largo plazo, teniendo en cuenta los lineamientos que hacen parte integral de la Resolución 886 de 2018. | I31: Delimitar los páramos de Colombia e implementar acciones para su conservación, manejo y adaptación al cambio climático. | J31: Minambiente | K31: Dirección de Bosques, Biodiversidad y Servicios Ecositémicos | L31: Autoridades ambientales regionales Entidades territoriales (Gobernaciones - alcaldías) Sociedad Civil | M31: *Se pueden presentar demandas sobre las delimitaciones de páramos vigentes, en cuyo caso se llevarán a cabo las acciones para la nueva delimitación del páramo. *La formulación de los planes de manejo se realiza una vez se haya adoptado por resolución la delimitación del páramo, y dependen del desarrollo de los procesos participativos que se deben surtir y de las capacidades técnicas y financieras de las autoridades regionales. *Si se aprueba la Política de Gestión Integral de Páramos se fortalece los procesos de manejo de los mismos. * Se supera en el corto plazo las restricciones ocasionadas por la emergencia sanitaria ocasionada por la pandemia | N31: # de páramos delimitados/37 páramos del país # de páramos con diágnostico realizado/ 37 páramos del país # de páramos con objetivos de manejo definidos/37 páramos del país # de páramos con zonificación/37 páramos del país # de páramos con componente prográmatico/37 páramos del país # de páramos con plan de manejo formulados/37 páramos del país | O31: Para el primer semetre del 2020 se cuenta 36 páramos delimitados de los cuales 3 páramos (Jurisdicciones-Santurbán-Berlín, Cruz Verde- Sumapaz, Almorzadero) se encuentran en proceso de la nueva delimitación participativa. 1 páramo (Pisba) en proceso de delimitación. Para el primer semestre de 2020 de acuerdo con la información aportada por las autoridades ambientales regionales se cuenta con cuatro páramos completamente en áreas del Sistema de Parques Nacionales Naturales, a saber Farallones de Cali, Paramillo,Tatamá y Yariguíes; en donde el instumento de manejo corresponde al del área protegida. Así mismo, existe el componente diagnóstico del plan de manejo de 3 páramos: Chilí-Barragán, Chingaza, y Las Hermosas. Sin embargo, no se reportan avances acerca de objetivos de manejo, zonificación, componente prográmatico, y plan de manejo formulado. Esta información corresponde a la reportada por 14 Corporaciones (Corpoboyacá, CAR, CAM, CAS, Corpoguajira, Corpourabá, CVC, Cortolima, CARDER, CRC, CDMB, Cormacarena, Corpoguavio, Corpamag). | P31: 2020 - 2022 se cuenta con la formulación de los objetivos de manejo de 33 páramos delimitados 2020 - 2022 se cuenta con la formulación de componente diagnóstico de 33 páramos delimitados 2020 - 2022 se cuenta con la formulación del componente de zonificación de 33 páramos delimitados 2020 - 2022 se cuenta con la formulación del componente estratégico de 33 páramos delimitados. 2021-2022 los 4 páramos en proceso de delimitación contarán con la respectiva resolución. 2023 todos los páramos habrán iniciado el proceso de formulación del plan. | Q31: * Ley 1930 de 2018 (https://www.funcionpublica.gov.co/eva/gestornormativo/norma.php?i=87764) *Resolución 886 de 2018 (https://www.minambiente.gov.co/index.php/normativa/resoluciones) *Anexo Técnico Documento de lineamientos para la elaboración del plan de manejo ambiental y la zonificación y régimen de usos aplicable a páramos delimitados (https://www.minambiente.gov.co/index.php/normativa/resoluciones) | R31: Los actos administrativos de delimitación de los páramos son reportados a través de la página web del Ministerio de Ambiente y Desarrollo Sostenible. Los avances en los planes de manejo de páramos son reportados por cada una de las Corporaciones Autónomas Regionales con jurisdicción en el páramo delimitado en los informes de gestión de las entidades, a través de SINA. | S31: Anual | T31: Para el cumplimiento de las metas se requiere la asignación de recursos a las entidades del sector ambiental para la formulación de instrumentos de planificación y aplicación de políticas relacionadas con la protección y usos sostenible de los páramos, especialmente en los procesos participativos para la formulación de los instrumentos. Así mismo, se requieren recursos para los procesos participativos de delimitación. | U31: 4 | V31: 4. *36 páramos delimitados a la fecha * Aprobación de la Política de la Gestión Integral de Páramos para fortalcer los procesos de manejo de los mismos | X31: Ecoversa * Minambiente- Dirección de Bosques, Biodiversidad y Servicios ecosistémicos En SECOP están las licitaciones y contrataciones de las CAR asociadas a planes de manejo tanto de áreas protegidas como de páramos. | Y31: Delimitación y protección de los 36 complejos de páramos que tiene Colombia (aproximadamente 3 millones de hectáreas) | Z31: Meta tipo 2.3 - referencia similar | AA31: Si
D32: 23 | E32: Ambiente: Representatividad PNN | F32: Medio Ambiente y recursos naturales | G32: Incremento en un 15% el porcentaje de ecosistemas o unidades de análisis ecosistémicas no representados o subrepresentados incluidas en el SINAP | H32: El país ha reconocido el papel de las áreas protegidas como aporte a la reducción de los impactos del cambio climático, siendo estas áreas las herramientas conocidas más eficaces, exitosas y de bajo costo que reducen las emisiones GEI y mantienen los servicios ecosistémicos para la adaptación de las comunidades. Este reconocimiento se refleja en el compromiso por consolidar un Sistema de Nacional de Áreas Protegidas – SINAP, que integra esfuerzos a nivel nacional, regional y local para la protección del patrimonio natural y cultural, y que actualmente se enfoca en incluir una representación de todos los ecosistemas del país, para su conservación. En este indicador se mide el incremento de ecosistemas o unidades de análisis ecosistémicas no representadas, con representatividad insignificante (representatividad inferior al 1%) o con baja representatividad (representatividad entre el 1% y el 17%) que se incluyen a partir de declaratorias, ampliaciones de áreas protegidas de carácter público o a partir de la gestión privada (RNSC) en el SINAP, conforme a las diferentes categorias de áreas protegidas que lo conforman y que aportarían a los compromisos de país, en específico al plan estratégico de biodiversidad (metas aichi) definido en el marco del convenio de diversidad biológica - CDB. Marco Conceptual: Las categorías de áreas protegidas que conforman el SINAP son: Áreas Protegidas Públicas*: a) Las del Sistema de Parques Nacionales Naturales b) Las Reservas Forestales Protectoras c) Los Parques Naturales Regionales d) Los Distritos de Manejo Integrado e) Los Distritos de Conservación de Suelos f) Las Áreas de Recreación y Áreas Protegidas Privadas: g) Las Reservas Naturales de la Sociedad Civil. * El calificativo de pública de un área protegida hace referencia únicamente al carácter de la entidad competente para su declaración. 1. Se entiende como unidad de ecosistemas o unidades de análisis ecosistémicas no representadas a aquellas que no presentan un porcentaje asociado a área dentro de las categorías de áreas protegidas del SINAP. 2. Se entiende como unidad de ecosistemas o unidades de análisis ecosistémicas con representatividad insignificante aquellas que presentan menos del 1% de su área dentro de las categorías de áreas protegidas del SINAP. 3. Se entiende como unidad de ecosistemas o unidades de análisis ecosistémicas con baja representatividad a aquellas que presentan entre el 1% y el 17% de su área dentro de las categorías de áreas protegidas del SINAP. 4. Con base en el análisis realizado a partir del mapa de ecosistemas de país a escala 1:100.000 se identifican 399 unidades de análisis; las cuales están distribuidas entre las siguientes categorías para el año 2018: REPRESENTATIVIDAD N° de Unidades* % de Unidades Sin representatividad 83 21% Con insignificante (menor 1%) 51 13% Con baja (entre el 1.01 % al 17%) 133 33% Con media (17.01 a 30%) 55 14% Con alta (30.01 a 50%) 37 9% Redundantes (mayor al 50.01%) 40 10% TOTALES 399 100%" Para la zona marina con un nivel de detalle cartográfico a escala 1:500.000, a partir de información consolidada a 2011 (Andrade, G., & Corzo, G., 2011) con base en el mapa de ecosistemas de 2007, se identifican 20 unidades marinas, las cuales no se incluyen en el presente indicador | I32: Incrementar la representatividad ecosistémica en el SINAP como contribución a la adaptación de los territorios al cambio climático. | J32: Parques Nacionales Naturales | L32: Ministerio de Ambiente y Desarrollo Sostenible Autoridades Ambientales Regionales Sociedad Civil | M32: Para el cumplimiento de la meta es necesario que las autoridades ambientales competentes en la declaratoria o ampliación de áreas protegidas del SINAP avancen en la implementación de la ruta de declaratoria de áreas del SINAP en los ámbitos de gestión nacional y regional en los procesos de declaratoria que han sido identificados y priorizados por cada autoridad. Necesariamente se requiere que aquellos sitios estratégicos en términos de representatividad ecosistémica sean declarados como áreas protegidas del SINAP. Actualmente PNNC avanza en 5 procesos de nuevas áreas (Patia, Cumaribo, Manacacias, Sábanas y Humedales de Arauca, San Lucas) y 3 ampliaciones de áreas del Sistema de Parques Nacionales Naturales (SF Acandí, PNN SNSM, ANU Estoraques) Para el caso de las áreas protegidas privadas (reservas naturales de la sociedad civil – RNSC), se requiere contar con el apoyo y gestión de las autoridades ambientales entre otros, en la promoción de estas figuras de conservación privada para lograr que más predios privados sean registrados ante PNNC como áreas del SINAP bajo la categoría de RNSC. La Política del SINAP, se desarrollará con una visión 2030 que aportará a la consolidación del Sistema y entre otros temas se abordaran los relacionados con el manejo efectivo de las áreas y establecerá lineamientos para racionalizar la creación de nuevas áreas protegidas, priorizándolas con criterios de representatividad ecológica. | N32: Indicador: Porcentaje de ecosistemas o unidades de análisis ecosistémicas no representados o subrepresentados incluidas en el SINAP en el cuatrienio Unidad de medida: Porcentaje Fórmula de calculo: % UAENR/BR SINAP = ((UAENR/BR R)/ (UAENR/BR))*100 Dónde: % UAENR/BR SINAP = Porcentaje de ecosistemas o unidades de análisis ecosistémicas no representadas y subrepresentados (sin representatividad, con representatividad insignificante o con baja representatividad) incluidas en el SINAP UAENR/BR R = Número de ecosistemas o unidades de análisis ecosistémicas no representadas y subrepresentados (con representatividad insignificante o con baja representatividad) incluidas en el SINAP en el periodo de referencia. UAENR/BR = Número de ecosistemas o unidades de análisis ecosistémicas no representadas y subrepresentados (con representatividad insignificante o con baja representatividad) a partir del mapa de ecosistemas de país a escala 1:100.000 Versión 2.1, IDEAM 2017, que corresponde con 267 unidades. | O32: La línea base se establece de acuerdo con el número de unidades que se encuentran en las categorias de no representadas y subrepresentados (sin representatividad, con representatividad insignificante o con baja representatividad) que corresponde a 267 según el mapa de ecosistemas de país para el año 2018. | P32: En el marco de las apuestas que se definan en la Política del SINAP que desarrollará una visión 2030, se deberá evaluar en el año 2022 las metas de país (para diferentes niveles de biodiversidad) en los próximos periodos de Gobierno en materia de representatividad ecosistémica y en el 2025 las metas que se proponen inicialmente en NDC en términos de incrementar en un 15% la representatividad en el SINAP. | Q32: * Mapa de ecosistemas 1:100.000 *Documento soporte meta (adjunto a la ficha) *Diagnóstico Política SINAP (https://www.minambiente.gov.co/sinap/index.php/diagnostico/documentos) | R32: El monitoreo se realizará a través del Registro Único Nacional de Áreas Protegidas (RUNAP) en el cual se inscriben las áreas protegidas públicas del SINAP que se declaren o amplíen y las áreas protegidas privadas que se registren (RNSC). Posterior a esto se realizara el cálculo de aumento de unidades ecosistémicas en el SINAP utilizando el Mapa de ecosistemas de país a escala 1:100.000 Versión 2.1, IDEAM 2017 y la respectiva capa del RUNAP. Frente a la evaluación, se realizaran informes anuales de verificación de aumento de la representatividad en el SINAP los cuales permitirán generar alertas frente al cumplimiento de la meta. | S32: Anual | T32: Recursos económicos y técnicos para avanzar en la ruta para la declaratoria de áreas protegidas del SINAP en cada uno de los procesos de declaratoria priorizados en los ámbitos de gestión regional y nacional. Fortalecimiento técnico de los equipos de las autoridades ambientales en temas relacionados con la ruta para la declaratoria de áreas protegidas del SINAP. Promocionar aún más el registro de predios privados como áreas del SINAP a través de la categoría de RNSC, así como generar incentivos para los propietarios de las RNSC. | U32: 1, 3, 4, 5 | V32: 4. Parques Nacionales Naturales de Colombia cuenta con un portafolio de nuevas áreas en el cual se encuentran aquellos sitios estratégicos para la conservación de la biodiversidad que se han identificado desde el ámbito de gestión nacional y avanza en la implementación de la ruta para la declaratoria de áreas protegidas del SINAP. Así mismo, las autoridades ambientales han identificado sitios en los cuales avanzan en la ruta. Algunos de estos sitios de ámbito de gestión nacional y regional, dando aplicación al principio de precaución, fueron declarados como zonas de protección y desarrollo de los recursos naturales renovables y del medio ambiente, mediante la Resolución 1628 y 1814 de 2015 y las respectivas prorrogas de las mismas, por medio de lo cual se salvaguardan estos sitios estratégicos para la biodiversidad de nuevas concesiones mineras permite que las autoridades ambientales avanzar en la ruta de declaratoria de áreas protegidas. | W32: 1. Promocionar aún más el registro de predios privados como áreas del SINAP a través de la categoría de Reservas Naturales de la Sociedad Civil (RNSC). 3. *Recursos económicos y técnicos para avanzar en la ruta para la declaratoria de áreas protegidas del SINAP en cada uno de los procesos de declaratoria priorizados en los ámbitos de gestión regional y nacional. *Se creen incentivos para los propietarios de Reservas Naturales de la Sociedad Civil. 5. Fortalecimiento técnico de los equipos de las autoridades ambientales en temas relacionados con la ruta para la declaratoria de áreas protegidas del SINAP. | X32: Ecoversa * Parques Nacionales Naturales Proyectos de cooperación internacional que hayan tenido como objeto el apoyo a PNN en la declaratoria de áreas protegidas. (GEF - SINAP) | Y32: Aumento en más de 2.5 millones de hectáreas en cobertura de nuevas áreas protegidas en el Sistema Nacional de Áreas Protegidas –SINAP-, en coordinación con actores locales y regionales | Z32: Meta tipo 1 – referencia directa | AA32: No
D33: 24 | E33: Ambiente: Restauración PNN | F33: Medio Ambiente y recursos naturales | G33: Incremento de 18.000 hectáreas en proceso de restauración, rehabilitación y/o recuperación ecológica en áreas protegidas del Sistema de Parques Nacionales Naturales y sus zonas de influencia | H33: Se entiende por restauración ecológica como el “Proceso de asistir la recuperación de un ecosistema que ha sido degradado, dañado o destruido” (SER, 2004), es una respuesta de manejo encaminada a iniciar, orientar o acelerar la recuperación de la estructura, composición, función de un ecosistema o valor objeto de conservación que ha sido degradado, con el fin de mantener o mejorar la integridad ecológica de un Área Protegida (Society For Ecological Restoration International & Policy Working Group 2004); (Parques Nacionales Naturales 2007). La definición de objetivos de un proceso de restauración al interior de las áreas del Sistema de Parques Nacionales Naturales depende principalmente del estado de degradación de un sitio dado por la historia de transformación, las condiciones actuales, así como del contexto social y problemática de uso, ocupación y tenencia donde se encuentra inmersa el área protegida y las estrategias diferenciadas que se planeen implementar con las comunidades, estos enfoques de restauración son: Restauración: proceso para restablecer el ecosistema degradado a una condición similar al ecosistema predisturbio respecto a su composición, estructura y funcionamiento, adicionalmente la restauración podrá tener enfoques dirigidos de Rehabilitación y recuperación. Rehabilitación: se define como el proceso para mejorar el ecosistema cuyas metas son orientadas a estructura, composición y función hasta un estado sucesional deseado. Está dirigida hacia sectores de las áreas protegidas donde existe problemática de uso, ocupación y tenencia donde la Rehabilitación estará armonizada con el contexto social de manera que los sitios intervenidos se integran ecológica y paisajísticamente al entorno mientras se logra una transición a restauración, esto en el marco de los procesos de restauración bajo la suscripción de Acuerdos. Recuperación: Recuperar funcionalidad del ecosistema. Generalmente los ecosistemas resultantes no son autosostenibles y no se parecen al sistema predisturbio. La “recuperación”, se implementa en las áreas protegidas en áreas severamente alteradas, donde no es posible obtener por completo atributos de estructura, composición del sitio intervenido debido al nivel de degradación. La política nacional de cambio climático se refiere en la Línea de Manejo y Conservación de ecosistemas y Servicios Ecosistémicos a las acciones que promueven la conservación y restauración de ecosistemas. Al mejorar la estructura, composición o funcionalidad de un ecosistema se mejora su capacidad de adaptación al clima cambiante, manteniendo la oferta de servicios ecosistémicos y entre ellos, aumentando la captura y almacenamiento de carbono. Las acciones de restauración pueden incluir: siembra de material vegetal, dispersión manual de semillas, adecuación del suelo, regeneración natural asistida, enriquecimiento de especies, aislamiento o cercados, eliminación de especies exóticas e invasoras, restablecimiento de flujos hídricos, limpieza de caños y canales, instalación de perchas para aves, nidos artificiales, artilugios de fauna, lagunas y lagunillas artificiales y barreras cortafuegos. | I33: Implementar acciones de restauración, rehabilitación y recuperación que permitan mejorar la integridad de las áreas protegidas y sus zonas de influencia para mejorar su capacidad de adaptación al cambio climático. | J33: Parques Nacionales Naturales | L33: Ministerio de Ambiente y Desarrollo Sostenible - Dirección de Bosques, Biodiversidad y Servicios Ecosistémicos, DAMCRA, DCCGR,Negocios verde Autoridades ambientales regionales | M33: Anualmente se cuenta con los recursos económicos necesarios para implementar las acciones de restauración ecológica en las áreas protegidas del Sistema de Parques Nacionales. Las comunidades locales participan en los procesos de restuaración ecológica y se llega a acuerdos con ellos. Se realiza la compra de predios que sean requeridos para acciones de restauración ecológica de comun acuerdo con las comunidades locales. Las comunidades locales generan ingresos provenientes de las implementaciones de restauración. | N33: Unidad de Medida: Hectáreas Tipo de Indicador: Incremental Formula: HRPNN= HRt1+ HRt2…+HRtn HRPNN= Hectareas en procesos de restauración, rehabilitación, recuperación en Parques Nacionales Naturales y zona de influencia. HRT1= Hectáreas en restauración, rehabilitación, recuperación año 1 | O33: 24,022 hectáreas a junio de 2020 | P33: 2,000 hectáreas anuales | Q33: *Documentos técnicos de restauración *Cartografía *Plan Nacional de Restauración *Documentos de lineamientos de restauracion d Parques Nacionales. | R33: El monitoreo del indicador sera a partir de la cartografia referida a las areas donde se implementan acciones de restauracion, rehabilitación, recuperación. Los cuales pasan por un proceso de validación de los diferentes niveles de gestión de Parques Nacionales Naturales. El medio de verificación corresponde a un documento técnico que consolide las acciones de restauración, rehabilitacion y/o recuperación implementadas y la cartografía con las áreas en proceso de restauración ecológica consignada en el dashboard dispuesto por Parques Nacionales en el siguiente Link https://pnnc.maps.arcgis.com/apps/opsdashboard/index.html#/12398aaf4faa4df4acf56ac65f50403f | S33: Anual | T33: Para la implementación de acciones de restauración se requiere contar con los recursos económicos necesarios para la implementación y su monitoreo, asi como llegar a acuerdos con comunidades locales y recursos para la compra de predios, se requiere contar con el fortalecimiento de capacidades de los equipos técnicos de las areas protegidas, asi como de las comunidades locales y su fortalecimiento organizativo. | U33: 1, 2, 3, 4 | V33: En algunas areas protegidas se ha avanzado en investigación propia de los equipos de los Parques Nacionales relacionada a propagación de material vegetal para ecosistemas de páramo y bosque Alto Andino. Algunas áreas protegidas cuentan con programas de restauración formulados. Las areas protegidas cuentan con portafolios de investigacion donde se incluyen las necesidades de investigacion relacionadas a restauración ecológica. Las areas protegidas cuentan con programas de monitoreo, donde se incluyen diseños de monitoreo a los procesos de restauración ecológica. Parques Nacionales cuenta con una estrategia de educación ambiental y comunicación. | W33: 2. Se requiere contar con imágenes satelitales a escala detallada para el seguimeinto y monitoreo de las acciones de retauración Generar espacios con la academia con el fin de dar a conocer los portafolios de investigación y los requerimientos a la academia e institutos de investigación. 4. Completar los programas de restauración de las Areas Protegidas del Sistema de Parques Nacionales Naturales. | X33: Ecoversa * Parques Nacionales Naturales SECOP - licitaciones cuyo objeto sea la "restauración", "rehabilitación" o "recuperación" de áreas naturales. | Z33: Meta tipo 2.3 - referencia similar | AA33: Si
D34: 25 | E34: Ambiente: Licencias Ambientales | F34: Medio Ambiente y recursos naturales | G34: Inclusión de consideraciones de cambio climático en los instrumentos de manejo y control ambiental de proyectos obras y/o actividades de competencia de la Autoridad Nacional de Licencias Ambientales a partir del año 2020. | H34: Conscientes que el cambio climático es una realidad global, y entendiendo que esto supone la aparición de nuevos escenarios que afectan a todos los sectores de la economía, y especialmente la aparición de nuevos desafíos para la planeación y ejecución de proyectos de interés nacional, la Autoridad Nacional de Licencias Ambientales (ANLA), ha venido estructurando una estrategia para fortalecer la planeación y operación de proyectos sujetos a licenciamiento ambiental de competencia de la entidad, con el fin de incorporar consideraciones de cambio climático que contribuyan al desarrollo bajo en carbono y resiliente al clima, en línea con la Política Nacional de Cambio Climático y la Ley de Cambio Climático. En la ANLA, entendemos que la adaptación al cambio climático no se trata únicamente de las acciones y medidas encaminadas a reducir la vulnerabilidad frente a los impactos negativos, sino también, es la forma más eficiente de identificar oportunidades; y es a través del análisis del riesgo y la vulnerabilidad de los proyectos en sus etapas más tempranas, la forma más eficiente de lograr que un proyecto mejore la resiliencia frente a los posibles impactos del cambio climático en el corto, mediano y largo plazo. Estamos convencidos que la planeación y ejecución exitosa de los proyectos, obras y/o actividades de interés nacional que son objeto de licenciamiento ambiental, es una forma eficiente de afrontar el cambio climático bajo los estándares del Acuerdo de París y de garantizar la adaptación de los proyectos a las alteraciones en el clima. La planeación exitosa de un proyecto de interés nacional solo se logra a través de la identificación de los riesgos del proyecto derivados del cambio climático, gestionándolos y reduciéndolos a un nivel aceptable a través de la implementación de medidas preventivas, para posteriormente incorporarlas en los procesos de planeación del proyecto y cada una sus fases, garantizando que se dé respuesta de forma efectiva a la reducción de los riesgos y la vulnerabilidad frente a las posibles amenazas climáticas. La reformulación de esta meta constituye en un aumento de la ambición ya que incorpora el cambio climático en un instrumento de manejo y control ambiental como lo es la licencia ambiental otorgada y/o la autorización de Plan de Manejo Ambiental para proyectos cuya autorización se otorgue a partir del año 2020. Este instrumento de manejo y control permitirá el seguimiento a los proyectos durante su vida util, mediante el informe de cumplimiento ambiental que se cataloga como aquel documento elaborado y presentado por el Titular de la licencia ambiental para informar a la autoridad ambiental competente sobre avance, efectividad y cumplimiento del Plan de Manejo Ambiental, conforme a los términos definidos en el otorgamiento de la licencia ambiental, el establecimiento del Plan de Manejo Ambiental y cualquier otro acto administrativo subsiguiente. | I34: Proyectos, obras y/ o actividades de competencia de la Autoridad Nacional de Licencias Ambientales incluyen y ejecutan medidas frente al cambio climático en el marco del instrumento de manejo y control ambiental. | J34: ANLA | K34: Subdirección de Instrumentos Permisos y Tramites Ambientales | L34: DNP | M34: En el marco de las competencias de la Autoridad Nacional de Licencias Ambientales se tiene como alcance para el cumplimieto de esta meta, que la licencia y su respectivo instrumento de manejo y control ambiental permitirán establecer obligaciones especificas para reducir los impactos relacionados con cambio climático a nivel de los proyectos, obras y/o actividades a lo largo de su vida útil y de esta manera hacer un respectivo seguimiento de acuerdo a lo dispuesto por parte de la Autoridad para cada caso. | N34: Número de proyectos que contienen dentro del instrumento de manejo y control ambiental consideraciones de cambio climático | O34: Para el año 2019 ningún instrumento de manejo y control ambiental de proyectos competencia de la Autoridad Nacional de Licencias Ambientales contenía consideraciones de cambio climático. | P34: 1. A 2022 las autorizaciones ambientales de proyectos del sector hidrocarburos, minería, energía e infraestructura incluyen consideraciones de cambio climático. 2. A 2026 se tiene implementación de medidas del sector hidrocarburos, minería, energía e infraestructura y se incluyen consideraciones en los instrumento de manejo y control ambiental de proyectos del sector de agroquímicos. 3. A 2030 los instrumentos de manejo y control ambiental de proyectos del sector hidrocarburos, minería, energía, infraestructura y agroquímicos implementan medidas de cambio climático. | Q34: Actualmente existe como documento soporte, el informe de sostenibilidad Global report inciative (GRI) de la entidad y es allí dentro de los estandares de cambio climático donde se reporta la iniciativa. http://www.anla.gov.co/documentos/institucional/05_planeacion/15_informegestion/2019/03-07-2020-anla-informe-gestion-gri-anla-2019.pdf | R34: Se ha contemplado de forma preliminar que el instrumento para reportar el avance del indicador sea el Plan Estrategico Institucional de la entidad principalmente en la línea estrategica asociada a contribuir con el desarrollo sostenible ambiental a partir de un efectivo proceso de evaluación y seguimiento en el ambiental de proyectos. | S34: Anual | T34: 1. Fortalecimiento de usuarios ANLA en la incorporación de cambio climático como parte del ejercicio de planificación de proyectos y en la definición de medidas de adaptación al cambio climático a escala de proyecto en cada uno de los sectores (hidrocarburos, minería energía, infraestructura y agroquímicos). 2. Acompañamiento en los procesos de implementacion de medidas de adaptación y en la generación de sistemas de monitoreo y reporte de las mismas. 3. Definición del uso de la información obtenida como parte del seguimiento en la toma de decisiones de orden nacional, regional y sectorial. 4. Alienación de las medidas implementadas con el contexto regional y nacional. Entendido esto como la Política Nacional de Cambio Climático y sus planes territoriales. 5. Disposición de información en la implementación de medidas por cada una de las fases de los proyectos. | U34: 1, 2 | V34: 1. Se han realizado cursos y capacitaciones para funcionarios y cotratistas de la entidad con el fin de fortalecer sus conocimientos. De igual forma, se han realizado espacios de dialogo academico con otros actores que han enriquecido la discusión técnica al respecto. | W34: 1. Los procesos de formación y capacitación son claves para los actores interesados en la entidad, en especial para los profesionales que realizan la evaluación y el seguimiento a proyectos objeto de licenciamiento. 2. Generar alianzas con grupos de investigación en torno a la aplicabilidad de análisis de cambio climático en las particularidades técnicas de cada proyecto y sector. | X34: Ecoversa Esta meta puede tener dos aspectos para efectos del costeo, por una parte el costo institucional para definir los requerimiento que deben cumplir los proyectos y por la otra el costo para los proyectos para incluir los requerimientos | Y34: Inclusión de consideraciones de Cambio Climático en Proyectos de Interés Nacional y Estratégicos –PINES | Z34: Meta tipo 3 – sin referencia | AA34: No
D35: 26 | E35: Ambiente: Red de monitoreo | F35: Medio Ambiente y recursos naturales | G35: Incrementar a 35% el porcentaje de la red con transmisión en tiempo real (esto es un incremento de 11% equivalente a 310 estaciones a nivel nacional) el horizonte de tiempo sería 8 años (1 de planeación y 7 de ejecución). | H35: Se busca fortalecer las capacidades territoriales para el monitoreo, vigilancia y evaluación permanente de la amenaza derivada de los fenómenos hidrometeorológicos (crecientes súbitas, avenidas torenciales, sequía) e hidrogeológicos (movimientos en masa), que conlleve a la emisión oportuna de alertas que permitan una toma de decisiones acertada en pro de la protección de la vida y los bienes de las poblaciones expuestas a dichos fenómenos. Los sistemas de alerta contribuyen con la reducción de la vulnerabilidad de la población colombiana como medida de adaptación al cambio climático, atenuando los efectos perjudiciales cuando los fenómenos amenazantes se materializan en desastres (contribuye a fortalecer las dimensiones de hábitat, seguridad alimentaria y recurso hídrico). cómo se logra esto ? a traves de la generación de información para la toma de decisión ? Esto se logra porque al instalar un SAT se da un aviso previo a las comunidades para la toma de decisiones en materia de preparación y exposición. El concepto de red de monitoreo asociado a esta meta se entiende como un conjunto mínimo de instrumentos de monitoreo hidrometeorologico, relacionado a una unidad espacial, en el sentido más general a una Subzona o las subcuencas y microcuencas asociadas a regiones puntuales de interés. La red actual del Ideam cuenta con 2616 estaciones de las cuales 622 estaciones cuentan con transmisión en tiempo real (24% de la red), se pretende incrementar a 35% el porcentaje de la red con transmisión en tiempo real (esto es un incremento de 11% equivalente a 310 estaciones a nivel nacional) el horizonte de tiempo sería 8 años (1 de planeación y 7 de ejecución). | I35: Aumentar la capacidad adaptativa del territorio frente al cambio climático por medio del fortalecimiento de la red hidrometerologica con información oportuna como insumo a los sistemas de alerta temprana y sirva como una herramienta en la gestión del riesgo de desastres. | J35: IDEAM | K35: Subdireccion de Hidrologia | L35: UNGRD ENTES TERRITORIALES ENTIDADES PRIVADAS | M35: Beneficiarios usan los componentes de los SAT adecuadamente No se presentan desastres, emergencias nacionales u otros hechos fortuitos que generen el desfinanciamiento de la meta. | N35: % de incremento de redes de monitoreo instaladas conectadas a sistemas de alerta temprana | O35: Se cuenta con un 24% de la red hidrometeorológica nacional con sistema de transmisión de información. | P35: Al 2021 se cuenta con el documento CONPES de la red y fuentes de financiamiento adicionales. | Q35: https://id.presidencia.gov.co/especiales/190523-PlanNacionalDesarrollo/documentos/BasesPND2018-2022.pdf - Ver página 4 https://repositorio.gestiondelriesgo.gov.co/handle/20.500.11762/756 | R35: Mecanismo: La UNGRD realizará la evaluación del indicador con base en el seguimiento que se realiza para el cumplimiento de las metas del Plan Nacional de Gestión del Riesgo de Desastres, y haciendo uso de la misma metodología e instrumentos ya establecidos para tal fin. | S35: Anual | T35: El sostenimiento de la red requiere financiamiento articulado de todos los sectores para mantener la transmisión de datos activa a través del tiempo, asi como la articulación de los entes territoriales con la red para integrar sistemas de alerta temprana. Se hace necesario que se cumplan las corresponsabilidades de otros actores Los recursos son destinados en el tiempo establecido | U35: 1, 2, 3, 4 | V35: 1. Siendo los SAT sistemas que integran a diversos actores del ambito público, privado y comunitario, se ha fortalecido la implementación de los mismos a traves de la educación y sensibilización frente a los procesos de gestión del riesgo, el riesgo específico por el fenómeno determinado, funcionamiento de los SAT y roles y responsabilidades de cada actor. Esto aporta en el sentido de articular los componentes activos de los SAT, haciendolos más funcionales integrales. Los procesos de educación y sensibilización han contado con el apoyo de las entidades del SNGRD como las entidades técnicas (IDEAM, SGC, DIMAR, universidades), entidades de manejo de desastres (Cruz Roja, Defensa Civil, Bomberos de Colombia, Ejército, Policía, entre otras), y organizaciones comunitarias. Las acciones desarrolladas se han implementado con recursos de los Fondos de Gestión del Riesgo del orden nacional, departamental y municipal, recursos apropiados de entidades nacionales y territoriales, y recursos de cooperación nacional e internacional. 2. La red hidrometeorologica del IDEAM alimenta, junto con redes de otras instituciones el sistema de pronóstico, el protocolo de intengración de información publico privada es un instrumento que orienta el registro en el catalogo nacional de estaciones y permite analizar los flujos bidireccionales de información hacia y desde el IDEAM. Las plataformas tecnológicas que permiten almacenar, compartir y analizar esta información se enfrentan a retos de nuevas tecnologias que faciliten la interoperabilidad, orientar a estándares de formatos de intercambio de información, e implementación de criterios básicos de análisis de datos para este tipo de información. Los sistemas de alerta temprana se han venido fortaleciendo en el componente de conocimiento del riesgo, a traves de la elaboración de estudios detallados para evaluación de la amenaza, los cuales incluyen modelamientos del fenómeno realizados con medios y plataformas tecnológicas. Así mismo el componente de monitoreo ha presentado mejoras en el sentido de usar tecnologías más avanzadas en los instrumentos para la medición, análisis, pronóstico y transmisión de datos e información en tiempo real. Para lograr estos avances ha sido fundamental la participación y artoculación efectiva con entidades como el IDEAM, SGC, corporaciones autónomas y demás autoridades ambientales que desarrollan actividades en torno a los SAT. Las acciones desarrolladas se han implementado con recursos de los Fondos de Gestión del Riesgo del orden nacional, departamental y municipal, recursos apropiados de entidades nacionales y territoriales, y recursos de cooperación nacional e internacional. No obstante, la designación de recursos a nivel territorial siguen siendo limitados y son una brecha identificada para el avance en la implementación de SAT en el país, por lo cual la UNGRD y otras entidades del orden nacional, han apoyado subsidariamente varios de los procesos de desarrollo de SAT. 3. Se ha avanzado en la instalación y puesta en marcha de sistemas de alerta temprana ante direferentes fenómenos amenazantes. La UNGRD ha instalado 26 SAT y los ente territoriales 155 sistemas de alerta temprana. 4. El Plan Nacional de Gestión del Riesgo de Desastres en el OBJETIVO 1: MEJORAR EL CONOCIMIENTO DEL RIESGO DE DESASTRES EN EL TERRITORIO NACIONAL, contempla el proyecto "1.2.4, implementar 78 sistemas de monitoreo de alertas tempranas, para eventos hidrometeorológicos extremos". A su vez, el Plan Nacional de Desarrollo 2018 - 2022, en el Capítulo: Pacto por la sostenibilidad: producir conservando y conservar produciendo, Literal C. Colombia resiliente: conocimiento y prevención para la gestión del riesgo de desastres y la adaptación al cambio climático, incluye la siguiente meta: "El IDEAM, con el apoyo de la UNGRD, establecerá un Sistema Nacional de Alertas Tempranas ante amenazas hidrometeorológicas y definirá mecanismos para replicar los sistemas de alerta a escalas detalladas, con la participación de las autoridades ambientales regionales". En este sentido, se ha hecho un esfuerzo importante para incluir en la agenda pública, a traves de los instrumentos de planificación, metas relevantes en torno a los sistemas de alerta temprana, lo cual impulsa las acciones y les da sustento para su realización. | W35: 1. Mayor participación sectorial a nivel técnico y financiero para implementar SAT. (involucramiento del sector privado para el fortalecimiento e implementación de SAT en los territorios, con acompañamiento de universidades y centros de investigación regionales) 2. Los sistemas de alerta temprana instalados, requieren de una estrategia de innovación, que permita actualizar los equipos cuando estos ya estén obsoletos, así como la realización de mantenimientos preventivos y correctivos. Esto supone un gran reto para hacer que los entes territoriales gestionen y apropien los recursos necesarios para tal fin, lo cual se convierte en una brecha para lograr la sostenibilidad en el tiempo de los SAT. 3. Sigue siendo una necesidad, que los territorios cuenten con mayores recursos para el desarrollo e implementación de los planes departamentales y municipales de gestión del riesgo. La destinación presupuestal continua siendo reducida, y en su gran mayoría los recursos terminan siendo usados en acciones para la respuesta a emergencias. Se hace entonces evidente, la pertinencia de fortalecer los fondos territoriales de gestión del riesgo, y generar una adecuada articulación de las acciones para el desarrollo de sistemas de alerta temprana, en el marco de los planes territoriales de gestión del riesgo. Designación de recursos a nivel territorial para el avance en la implementación de SAT en el país. 4. Materializar la formulación del CONPES para el fortalecimiento de la red con recursos. | Y35: Un Sistema Nacional de Indicadores de adaptación que permita monitorear y evaluar la implementación de medidas de adaptación. | AA35: Si
D36: 27 | E36: Ambiente: Programa Nacional - Manglares | F36: Medio Ambiente y recursos naturales | G36: Actualización e implementación en un 50% del "Programa nacional uso sostenible, manejo y conservación de los ecosistemas de manglar" a 2030 | H36: La actualización del plan permitirá la gestión de los manglares por medio de estrategias de preservación, uso sostenible y restauración, así como de formulación e implementación de instrumentos de ordenamiento y planificación para su conservación. | I36: Reducir la vulnerabilidad de los ecosistemas de carbono azul, con énfasis en manglares, a través de estrategias de preservación, uso sostenible y restauración, así como de la formulación e implementación de instrumentos de gestión, como medidas que contribuyen con la adaptación al cambio climático. | J36: Minambiente | K36: Dirección de Costas, Mares y Recursos Acuáticos - DAMCRA | L36: Corporaciones Autonómas regionales y Corporaciones Autonómas regionales para el Desarrollo Sostenible, Establecimientos Públicos ambientales, las autoridades ambientales de los Grandes Centros Urbanos creadas mediante la Ley 768 de 2002, Parques Nacionales Naturales de Colombia, INVEMAR, IIAP, DCCGR-MInambiente | M36: Las Autoridades ambientales formularán, complementarán o actualizarán los estudios de caracterización, diagnóstico y zonificación del manglar en atención de lo precisado en la Resolución 1263 de 2018. Las Autoridades ambientales actualizarán los instrumentos de gestión y conservación para los ecosistemas de carbono azul, con énfasis en manglares, conforme al marco legal y político actual. Las Autoridades ambientales del nivel nacional y regional, junto con actores locales trabajarán articuladamente en la implementación de los instrumentos de gestión de los ecosistemas de carbono azul, con énfasis en manglares El Ministerio de Ambiente y Desarrollo Sostenible a través de la Dirección de Asuntos Marinos y Costeros es la entidad encargada de la actualización del "Programa nacional uso sostenible, manejo y conservación de los ecosistemas de manglar" | N36: Un (1) documento actualizado del "Programa nacional uso sostenible, manejo y conservación de los ecosistemas de manglar". Porcentaje (%) de avance en la implementación del "Programa nacional uso sostenible, manejo y conservación de los ecosistemas de manglar" | O36: * Cero (0) documentos de actualización del "Programa nacional uso sostenible, manejo y conservación de los ecosistemas de manglar" * 0 % en avance de la implementación de la actualización del "Programa nacional uso sostenible, manejo y conservación de los ecosistemas de manglar" | P36: 2022 Se cuenta con la actualización del Programa nacional uso sostenible, manejo y conservación de los ecosistemas de manglar. 2025 Se cuenta con la implementación del 25% del Programa nacional uso sostenible, manejo y conservación de los ecosistemas de manglar, con enfasis en los instrumentos de ordenamiento y planificación del manglar. 2030 Se cuenta con la implementación del 50% del Programa nacional uso sostenible, manejo y conservación de los ecosistemas de manglar. | Q36: Resolución 1263 de 2018 "Programa nacional uso sostenible, manejo y conservación de los ecosistemas de manglar" | R36: Sistema de Información para la Gestión de los Manglares - SIGMA Sistema de reporte gestión de DAMCRA. | S36: Anual | T36: Construcción de capacidades a nivel institucional y comunitario; recursos financieros, implementación de mecanismos financieros; información actualizada, nuevas tecnologías para captura de información en campo para monitoreo de ecosistemas, procesamiento y almacenamiento de información; mecanismos de transferencia de información. | U36: 1, 2, 3, 4, 5 | V36: 1. Se ha avanzado en propiciar las participación de las comunidades en el ordenamiento y planificación del manglar. En algunas casos se ha apoyado e incentivado las formas propias de organización de las comunidades. De manera puntual algunas autoridades ambientales han desarrollado programas educativos sobre el manglar. 2. Se ha estructurado el “Sistema de información para la gestión integral de los manglares en Colombia” (SIGMA). 3. No hay avances específicos del tema. 4. En la actualidad se cuenta con normativa actualizada para la gestión integral del ecosistema, con términos de referencia para el proceso de ordenamiento del manglar, para la restauración y el monitoreo. 5. Se ha generado y mantenido un espacio de dialogo con las autoridades ambientales y otros actores relevantes en torno a la gestión del manglar. Se cuenta con normativa actualizada para la gestión integral del ecosistema, con términos de referencia para el proceso de ordenamiento del manglar, para la restauración y el monitoreo. | W36: 1. * Fortalecer, articular y acompañar a los actores con injerencia en la gestión del manglar en el proceso de conocer, entender, cumplir y ejercer el marco político y normativo relacionada con la gestión integral del manglar. * Concienciar a la sociedad en general sobre la importancia de los beneficios asociados a la conservación del manglar, y en particular a los tomadores de decisión sobre el carácter del ecosistema como de especial importancia para la prestación de servicios ecosistémicos y la adaptación y mitigación a los cambios ambientales, económicos y climáticos. * Apoyar y fortalecer los programas de educación ambiental en instituciones con influencia en áreas de manglar a través de currículos específicos, PRAES, PROCEDAS, y grupos ecológicos, de ciencia y tecnología que permitan desarrollar procesos de gestión integral del ecosistema. 2. * Identificar y definir participativamente, y lograr armonizar e incluir las prioridades de investigación en torno al ecosistema de manglar en los fondos de innovación y las políticas nacionales de ciencia, tecnología e innovación. * Identificar, fomentar y consolidar redes, semilleros y grupos de investigación que aporte en generación, uso y apropiación de conocimiento, ciencia, tecnología e innovación. * Fortalecer la implementación participativa e interdisciplinar del proceso de monitoreo del manglar, con la concurrencia de las comunidades que tradicionalmente se han relacionado con éste y en el marco de los “Lineamientos nacionales para el monitoreo del manglar en Colombia” y del “Sistema de información para la gestión integral de los manglares en Colombia”, con el objeto de generar un flujo adecuado de información que permita sustentar decisiones de gestión integral. * Fortalecer el “Sistema de información para la gestión integral de los manglares en Colombia”, y dinamizar el uso y apropiación por parte de los diferentes actores con injerencia en la gestión del manglar. * Fomentar, propiciar, consolidar y evaluar la investigación propia de las comunidades que tradicionalmente se ha relacionado con el manglar para el uso sostenible de los bienes y servicios del ecosistema. 3. Fomentar y fortalecer, de manera participativa, interinstitucional e intersectorial, sistemas productivos tradicionales sostenibles que permitan garantizar la seguridad y soberanía alimentaria y la adaptación al cambio climático y ambiental de las comunidades que tradicionalmente se han vinculado con el manglar. * Desarrollar e implementar instrumentos de valoración integral de la biodiversidad y los servicios ecosistémicos del manglar que permitan consolidar esquemas de pago por servicios ecosistémicos, en beneficio de las comunidades que tradicionalmente se han relacionado con el manglar * Reglamentar esquemas de pago por servicios ecosistémicos en el manglar en el marco de diferentes ámbitos de gobernanza para las comunidades que tradicionalmente se han relacionado con el ecosistema. * Promover alternativas productivas diferentes a las asociadas al manglar, que sean compatibles con la conservación de la biodiversidad y la cultura de las comunidades locales, y que permitan disminuir la presión sobre los bienes y servicios del manglar y atenuar la vulnerabilidad ante el cambio climático y ambiental. * Promover y garantizar la inclusión de los principios y criterios de biocomercio y de negocios verdes a los bienes y servicio obtenidos sosteniblemente del manglar por parte de las comunidades que tradicionalmente se han relacionado con éste. * Definir e implementar lineamientos técnicos y jurídicos para la gestión de compensaciones del componente biótico en el manglar. 4. Formular, complementar o actualizar los estudios de caracterización diagnóstico y zonificación del manglar en atención de lo precisado en la Resolución 1263 de 2018. * Incluir en la actualización, modificación o formulación de las determinantes ambientales la zonificación, el régimen de uso y el componente programático considerado para la gestión integral del manglar, y oficializar y socializar con las autoridades territoriales. * Incidir en la formulación de los instrumentos de ordenamiento territorial para la inclusión de los determinantes ambientales en torno a la gestión integral del manglar, y en especial en los componentes: general, urbano y rural, el programa de ejecución, la cartografía y el proyecto de acuerdo. * Incorporar dentro de la planificación sectorial (transporte, vivienda, industria y agricultura, entre otros) y territorial (PDET) los determinantes ambientales derivados del proceso de ordenamiento del manglar. * Participar y propender por incidir en las agendas intra e interinstitucionales e intersectoriales para orientar la toma de decisiones con incidencia directa e indirecta en la gestión integral del ecosistema de manglar. * Formular o actualizar los lineamientos de manejo para las zonas definidas en los estudios de caracterización diagnóstico y zonificación Implementar de manera participativa y articulada los lineamientos de manejo formulados para cada zona, a través de un acompañamiento articulado inter institucional a las comunidades que tradicionalmente se han relacionado con el ecosistema de manglar. * Garantizar que en el mejoramiento, rehabilitación y construcción de infraestructura se implementen modelos resilientes que respeten e incorporen el manglar, propiciando mejores condiciones de las ciudades para la adaptabilidad a los cambios ambientales 5. * Fortalecer, incrementar y articular la capacidad institucional y comunitaria, para facilitar la comprensión y aplicación efectiva de instrumentos de: política, normativa, ordenamiento ambiental territorial y planificación que conlleven a la gestión integral del manglar. * Identificar, diseñar, consolidar e implementar mecanismos institucionales y comunitarios que conlleven a una acción oportuna y de calidad en pro de solventar los conflictos socioecológicos asociados de manera directa e indirecta al manglar. * Identificar, reconocer e implementar, entre instituciones y comunidades que tradicionalmente se han relacionado con el manglar, figuras de coadministración que coadyuven a la gestión integral del manglar. * Implementar los mecanismos concebidos para la participación social en la toma de decisiones para garantizar la gestión integral del manglar y la capacidad adaptativa de la comunidad ante los cambios ambientales, económicos y climáticos. * Posicionar, mediante procesos de comunicación ambiental, el manglar como ecosistema de especial importancia ecológica en la provisión de beneficios fundamentales para las comunidad que tradicionalmente se ha relacionado con éste, y para el resto de la población.
D37: 28 | E37: Ambiente: POMIUAC | F37: Medio Ambiente y recursos naturales | G37: Adopción e implementación del 100% de los POMIUAC con acciones de adaptación basada en ecosistemas (AbE) sobre manglar y pastos marinos, y otros ecosistemas costeros | H37: Los Planes de Ordenación y Manejo Integrado constituyen los instrumentos para la planificación marina y costera de las unidades ambientales costeras (UAC) de Colombia. Al incluir acciones de adaptación basadas en ecosistemas (AbE) sobre manglar y pastos marinos, contribuirán con la reducción de la vulnerabilidad al cambio climático, aumentando las capacidades adaptativas y de gestión local del riesgo de las comunidades y municipios vulnerables | I37: Disminuir la vulnerabilidad de los ecosistemas de manglar y pastos marinos mediante la formulación e implementación de medidas AbE en las Unidades Ambientales Costeras | J37: Minambiente | K37: Dirección de Costas, Mares y Recursos Acuáticos - DAMCRA Dirección de Cambio Climático y Gestión del Riesgo - DCCGR | L37: Corporaciones Autonómas regionales y Corporaciones Autonómas regionales para el Desarrollo Sostenible, Parques Nacionales Naturales, Establecimientos Públicos ambientales. | M37: La implementación de los POMIUAC inciará una vez estos sean adoptados por la Comisión Conjunta respectiva. Las Autoridades ambientales junto con los actores locales trabajarán articuladamente en la implementación de los POMIUAC con enfásis en medidas de adaptación que contribuya con la gestión del carbono azul | N37: (Numero de POMIUACs Adoptados con acciones de AbE en manglar y pastos marinos/9 POMIUACS)*100 Numero de aciones AbE en manglar y pastos marinos /Total de acciones AbE en manglar y pastos marinos establecidas en el POMIUAC *100 | O37: Cero (0) de POMIUAC adoptados Cero (0) % en avance de la implementación de los POMIUAC | P37: 1. Para el 2023 se cuenta con diez (10) documentos de POMIUAC aprobados en los que se identifican medidas AbE en ecosistemas de carbono azul; al menos tres (3) están en proceso de adopción. 2. Para el 2028, al menos 2 POMIUAC adoptados implementan acciones de AbE en ecosistemas de carbono azul. 3. Para el 2030, se cuenta con evaluación y seguimiento de las acciones AbE implementadas en ecosistemas carbono azul, para los POMIUAC adoptados a ese momento. | Q37: RESOLUCIÓN 768 DE 2017 Diario Oficial No. 50.210 de 20 de abril de 2017 http://extwprlegs1.fao.org/docs/pdf/col169181.pdf DECRETO 1120 DE 2013. Diafio Oficial N° 48.807 de 31 de mayo de 2013 (Hoy Decreto Único reglamentario 1076 DE 2015) http://www.suin-juriscol.gov.co/viewDocument.asp?id=1227712 | R37: Sistema de reporte gestión de DAMCRA. | S37: Anual | T37: Construcción de capacidades a nivel institucional y comunitario; recursos financieros, implementación de mecanismos financieros; información actualizada, nuevas tecnologías para captura de información en campo para monitoreo de ecosistemas, procesamiento y almacenamiento de información; mecanismos de transferencia de información. | U37: 1, 2, 3, 4, 5 | V37: 1. Educación y Sensibilización para la implementación de los POMIUAC a través de estrategias de educación ambiental de las CAR (en construcción), e incorporación de la conservación de los ecosistemas estratégicos (P. Ej. Carbono azul) en Procedas de municipios costeros vulnerables al cambio climático (en construcción) 2. Avances en la estandarización de la metodología para la estimación de la cobertura de manglar y pastos marinos en las unidades ambientales costeras. Espacio técnico ciéntifico donde participan el IDEAM, INVEMAR Y MINAMBIENTE 3. N/A 4. 9 POMIUAC formulados y aprobados a nivel institucional. 5. Plan de capacitación institucional de las CAR, actividades de sensibilización, educación ambiental y formación dirigidas a las comunidades locales. | W37: 1. Amplia coordinación interinstitucional entre Autoridad Ambiental, entidad territorial y centros educativos. Material de comunicación y divulgación de información en lenguaje adecuado y con enfoque diferencial de acuerdo con las comunidades asentadas en el territorio. 2. * Determinación de las coberturas de manglar en las Unidades ambientales costeras del Caribe y Pacífico Colombiano. * Determinación de las coberturas de pastos marinos en las Unidades ambientales costeras del Caribe Colombiano. 3. * Recursos financieros para determinar las coberturas de los ecosistemas de manglar y pastos marinos Recursos financieros para implementar y hacer seguimiento a las medidas de AbE. 4. * Información disponible (Datos y fuente de información) para el seguimiento de los POMIUAC. * Articulación del POMIUAC con los planes de gestión territorial 5. * Fortalecer la capacidad institucional facilitar la comprensión y ejecución articulada de las acciones para la AbE en la Unidad Ambiental Costera. * Vincular a las comunidades locales en procesos de capacitación para la adaptación en el marco de la implementación del POMIUAC de cambio climático * Establecer esquemas financieros para la sostenibilidad de las medidas a implementar.
D38: 29 | E38: Ambiente: Carbono Azul | F38: Medio Ambiente y recursos naturales | G38: Seis (6) iniciativas de adaptación al cambio climático y gestión del riesgo para el uso sostenible de los manglares (ecosistema de carbono azul) en implementación, con plazo a 2030. | H38: Fortalecer la gestión y el uso de manglares (ecosistema de carbono azul) como ecosistemas estratégicos para la adaptación al cambio climático y la gestión del riesgo en la zona costera. Se espera que el 100% de las iniciativas (programas y proyectos) se hayan implementado antes del 2030. | I38: Mejorar las capacidades de adaptación en áreas de manglar a través de iniciativas de adaptación al cambio climático y gestión del riesgo. | J38: Minambiente | K38: Dirección de Cambio Climático y Gestión del Riesgo - DCCGR y Dirección de Asuntos Marinos, Costeros y Recursos Acuáticos; Corporaciones autónomas regionales y Corporaciones para el Desarrollo Sostenible (con jurisducción costera). | L38: Instituto de Investigaciones Marinas y Costeras - INVEMAR Instituto de Hidrología, Meteorología y Estudios Ambientales - IDEAM Instituto de Investigaciones Ambientales del Pacífico-IIAP ONG´s Sector Privado | M38: *Los departamentos y autoridades ambientales con jurisdicción marino costera han priorizado en sus instrumentos de gestión la adaptación al cambio climático basada en ecosistemas, con énfasis en el uso sostenible del manglar. *Algunas áreas marino costeras del país cuentan con información de línea base para el desarrollo de iniciativas de adaptación basada en ecosistemas, como las de carbono azul, que han sido generada por entidades del SINA | N38: Indicador y Unidades: 6 (seis) iniciativas de adaptación al cambio climático basadas en ecosistemas de manglar (ecosistema de carbono azul) implementadas. Fórmula: Sumatoria de las iniciativas de adaptación al cambio climático basadas en ecosistemas de manglar (ecosistema de carbono azul) implementadas. | O38: 1 (una) iniciativa piloto que incluye acciones de adaptación al cambio climático: Proyecto de carbono azul del Golfo de Morrosquillo “Vida Manglar” (manglares del DMI Cispatá; desarrollado por CI, INVEMAR, CVS, CARSUCRE, Fundación OMACHA y comunidades locales). | P38: 2025: 3 proyectos pilotos implementados 2027: 5 proyectos pilotos implementados 2030: 6 proyectos pilotos implementados | Q38: Bases del Plan Nacional de Desarrollo Disponible en: https://colaboracion.dnp.gov.co/CDT/Prensa/PND-2018-2022.pdf Planeas de Acción institucional de las CAR que han incluido metas relacionadas con el carbono azul. Disponible en: https://carsucre.gov.co/plan-de-accion-institucional-del-periodo-2020-2023/ https://corpamag.gov.co/archivos/planes/PAI2020-2023/Documento_Preliminar_PAI_2020_2023.pdf http://corpoguajira.gov.co/wp/wp-content/uploads/2020/06/PLAN-DE-ACCION-2020-2023.pdf http://www.crautonoma.gov.co/documentos/Planes/PAI%202020-2023%20CRA.pdf http://corpouraba.gov.co/corporacion/planes-proyectos-institucionales/plan-de-accion-institucional-pai-2020-2023/ https://cvs.gov.co/web/wp-content/docs/PLAN_DE_ACCION_CVS_2020-2023.pdf http://www.coralina.gov.co/nuevositio/planificacion-institucional-y-ambiental/pai-definitivo-2016-2019/3711-plan-de-accion-institucional-2016-2019-coralina-25-05-2019-2/file Antecedentes de linea base Disponibel en: https://natura.org.co/fortaleciendo-ecoturismo-comunidades-caribenas/ http://www.invemar.org.co/documents/10182/14479/guia_metod_redd_baja.pdf https://www.planvivo.org/docs/PIN-Colombia-Mangrove-REDD-Project-CVS.pdf https://www.apple.com/co/newsroom/2019/04/conserving-mangroves-a-lifeline-for-the-world/ | R38: Las CAR y entidades territoriales correspondientes comunican sus acciones de adaptación al cambio climático y gestión del riesgo empleando ecosistemas de manglar y las reportan al sistema ambiental nacional - SINA, mediante sus informes de gestión. | S38: Anual | T38: * Asistencia, acompañamiento y apoyo técnico a las CAR y a las entidades territoriales correspondientes, a través de los institutos de investigación adscritos al Sistema Nacional Ambiental (INVEMAR e IDEAM) y las direcciones técnicas del Minambiente (DCCGR y DAMCRA). * Recursos financieros y económicos. | U38: 1, 2, 3, 4, 5 | V38: 1. Capacitación y entrenamiento en manejo integrado de zonas costeras, cambio climático, carbono azul y adaptación basada en ecosistemas, en el marco de la estrategia Ocean Teacher Global Academy. Taller Nacional de manglares 2. Sistema de Información Ambiental Marina (SIAM) y Sistema de Información para la Gestión de los Manglares de Colombia (SIGMA), en funcionamiento como herramienta de apoyo para la generación de conocimiento, la toma de decisiones y la gestión orientada al desarrollo sostenible, articulada al sistema nacional de cambio climático - SNCC 3. Colombia cuenta con mecanismos e instrumentos financieros orientados a la gestión del cambio climático. 4. * Planes de manejo y ordenamiento integrado de zonas costeras (POMIUAC) y planes integrales de gestión de cambio climático territoriales (PIGCCT) formulados. * Insrumentos de gestión y lineamientos de manejo de los ecosistemas de manglar (Resolución 1263 de 2018) 5. Experiencia de los institutos de investigación adscritos y vinculados al SINA con experiencia y capacidades técnicas para apoyar las iniciativas de adaptación | W38: 1. Desarrollo de capacidades locales en cambio climático, carbono azul y adaptación basada en ecosistemas dirigidos a las autoridades ambientales con jurisdicción en la zona marino y costera. 2. Fomentar la creación de conocimiento sobre el rol que tienen los ecosistemas de manglar en los territorios para la adaptación al cambio climático y la gestión del riesgo, a la vez que se avanza en la construcción de conocimiento local sobre estos ecosistemas como potenciales reservorios de carbono de importancia para su conservación. 3. Destinación de recursos específicos a partir de los instrumentos financieros existentes y gestión de recursos de cooperación internacional para la formulación e implementación de las iniciativas. 4. Implemantación de los POMIUAC y PIGCCT. 5. Brindar apoyo técnico-científico para la formulación de las iniciativas de adaptación basada en ecosistemas carbono azul y contribuir con la gestión de los recursos necesarios para su implementación, con la debida colaboración de INVEMAR e IDEAM.
D39: 30 | E39: Ambiente: Gestión del Riesgo - Incendios Forestales | F39: Medio Ambiente y recursos naturales | G39: A 2030 el país de manera interinstitucional operativizará los procesos de la gestión del riesgo de los incendios forestales, conocimiento del riesgo, reducción del riesgo y manejo de los desastres, definiendo orientaciones y resultados con la gestión del cambio climático, a través de 7 estrategias. | H39: Se busca generar capacidades institucionales para la gestión de los incendios forestales en el país bajo el esquema de la Política Nacional de gestión del Riesgo de Desastres creada mediante la Ley 1523 de 2012 y el Sistema Nacional Ambiental creado a través de la ley 99 de 1993, mediante la operativización de los procesos de la gestión del riesgo como el conocimiento del riesgo, reducción del riesgo y manejo de desastres a través de la Comisión Técnica Nacional Asesora para los Incendios Forestales creada según la Resolución 373 de 2020. Definiendo orientaciones y resultados frente a las condiciones actuales y futuras que se puedan generar por efecto de los fenómenos hidrometeorológicos, la variabilidad climática y el cambio climático; para lo cual se cuenta con 7 estrategias para el cumplimiento de la meta así: i. Estrategia Verificación de incendios activos a partir de puntos de calor, ii. Estrategia para la implementación de un proceso de modelación para la identificación de los ecosistemas sensibles a incendios forestales, iii. Implementación de un sistema Nacional de alertas tempranas frente a los incendios forestales, iv. Estrategia para el monitoreo de áreas afectadas (cicatrices) producto de los incendios forestales, v. estrategia para la corresponsabilidad social en la lucha contra los incendios forestales, vi. Estrategia de fortalecimiento institucional para la gestión de los incendios forestales y vii. Armonización y actualización de instrumentos para la gestión del riesgo de los incendios forestales. | I39: Desarrollar estrategias y acciones que permitan el mejoramiento de la capacidad del país en cuanto al conocimiento del riesgo, la reducción del riesgo y el manejo de los desastres relacionados con los incendios forestales y su articulación con la gestión del cambio climático. | J39: Minambiente | K39: Dirección de Cambio Climático y Gestión del Riesgo (DCCGR) y la Dirección de Bosques, Biodiversidad y Servicios Ecosistémicos (DBBSE) | L39: Integrantes de la Comisión Técnica Nacional Asesora para Incendios Forestales: Ministerio de Salud y de la Protección Social Ministerio de Ambiente y Desarrollo Sostenible Ministerio de Agricultura y Desarrollo Rural Unidad Nacional para la Gestión del Riesgo de Desastres Dirección Nacional de Bomberos de Colombia Ejército Nacional de Colombia Armada Nacional de Colombia Fuerza Aérea Colombiana Policía Nacional de Colombia Defensa Civil Colombiana Cruz Roja Colombiana Parques Nacionales Naturales Asociación de Corporaciones Autónomas Regionales y de Desarrollo Sostenible Instituto de Hidrología, Meteorología y Estudios Ambientales Institutos de Investigaciones Ambientales (3 representantes) Federación Nacional de Departamentos Federación Colombiana de Municipios | M39: La actualización de la normatividad asociada a la quema e incendios forestales a cargo de la Comisión Técnica Nacional Asesora para Incendios Forestales. La Comisión Técnica Nacional Asesora para Incendios Forestales será la encargada de generar los lineamientos para operativizar e implementar las 7 estrategias. | N39: 1. Estrategia Verificación de incendios activos a partir de puntos de calor ∙ Un sistema de monitoreo y evaluación unificado de los incendios forestales con el 100% de cubrimiento en el territorio Nacional al 2025 ∙ Un protocolo nacional para realización de mapas de zonificación de riesgos ante incendios forestales actualizado e implementado en el 100% del territorio nacional, con las Autoridades Ambientales, institutos de Investigación del SINA y entidades territoriales al 2027 2. Estrategia para la implementación de un proceso de modelación para la identificación de los ecosistemas sensibles a incendios forestales. ∙ Un sistema diseñado e implementado de modelación a partir de puntos de calor y mapas de susceptibilidad para la identificación de áreas sensibles a incendios forestales a nivel municipal a 2026. ∙ Desarrollo del análisis de riesgo frente a las condiciones actuales y futuras de los incendios forestales a nivel departamental para ecosistemas estratégicos bajo los efectos de los fenómenos de variabilidad climática y cambio climático a 2025. ∙ Un protocolo para la Identificación de ecosistemas sensibles a incendios forestales a partir del sistema de modelación validado a 2030. 3. Implementación de un sistema Nacional de alertas y detección temprana frente a los incendios forestales ∙ Una herramienta tecnológica desarrollada para monitorear, modelar y realizar pronostico por regiones ante la susceptibilidad y probabilidad del territorio a sufrir incendios forestales con temporalidad diaria al 2027. ∙ 100% del territorio nacional contará con boletines de pronostico y alerta ante incendios forestales y mapas de mayor incidencia anual de fuegos (focos de calor) con datos diarios al 2030. 4. Estrategia para el monitoreo de áreas afectadas (cicatrices) producto de los incendios forestales ∙ Un protocolo de identificación de áreas afectadas por incendios forestales y necesidades de restauración ecológica en el 100% del territorio nacional al 2027. ∙ Pasar del 18,7 % al 100 % en monitoreo y reporte nacional de áreas afectadas (cicatrices) por incendios forestales en tiempo real mediante la actualización del Sistema Nacional de Información Forestal (SNIF) de IDEAM a 2030. 5. Estrategia para la corresponsabilidad social en la lucha contra los incendios forestales ∙ Desarrollar la actualización de la estrategia de corresponsabilidad social en la lucha contra los incendios forestales al 2025. ∙ Aumentar en 7 departamentos el número de redes de vigías rurales en áreas susceptibles a incendios forestales al 2025 6. Estrategia de fortalecimiento institucional para la gestión de los incendios forestales ∙ Un programa desarrollado para el fortalecimiento de las capacidades técnicas y operativas de Autoridades Ambientales, Parques Nacionales Naturales, entes territoriales, cuerpos operativos y de respuesta ante incendios forestales al 2025 ∙ Creación y fortalecimiento de grupos comunitarios (primer respondiente) para labores de prevención y control de incendios forestales a 2030 7. Armonización y actualización de instrumentos para la gestión del riesgo de los incendios forestales ∙ Actualización del Plan Nacional de Prevención, Control de incendios Forestales y Restauración de Áreas Afectadas, a 2024 con proyecciones a corto, mediano y largo plazo. ∙ Articulación de acciones conjuntas del Sistema Nacional de Gestión del Riesgo de Desastres con la Estrategia Nacional para el manejo del fuego de los Bomberos de Colombia 2017-2025. | O39: 1. Estrategia Verificación de incendios activos a partir de puntos de calor ∙ Se cuenta con el Sistema de Información Ambiental Territorial de la Amazonía Colombiana -SIAT- AC, Metodología SIAT-AC / Instituto Sinchi correspondiente al 18,7% del territorio Nacional. ∙ Protocolo para la realización de mapas de zonificación de riesgos a incendios de la cobertura vegetal escala 1:100.000, se cuenta con 3 pilotos implementados por las Corporaciones Autónomas Regionales CAR, CDMB, CORMACARENA, representando el 9.37% del territorio Nacional 2. Estrategia para la implementación de un proceso de modelación para la identificación de los ecosistemas sensibles a incendios forestales No se cuenta con línea base, sin embargo se cuenta con los siguientes insumos que alimentan la estrategia planteada así: ∙ Mapa Nacional de zonificación de riesgo a incendios en condiciones normales de precipitación y temperatura y bajo el fenómeno de El Niño IDEAM 2010 ∙ Mapa Nacional de zonificación de susceptibilidad a incendios bajo el fenómeno de El Niño IDEAM 2010. 3. Implementación de un sistema Nacional de alertas y detección temprana frente a los incendios forestales ∙ Se cuenta con el Sistema de Información Ambiental Territorial de la Amazonía Colombiana -SIAT- AC, Metodología SIAT-AC / Instituto Sinchi correspondiente al 18,7% del territorio Nacional 4. Estrategia para el monitoreo de áreas afectadas (cicatrices) producto de los incendios forestales ∙ Monitoreo puntos de calor y cicatrices de quema en la Amazonia Colombia. Instituto Amazónico de Investigaciones científicas – SINCHI equivalente al 18,7% del territorio nacional. ∙ Como insumo se cuenta con el Sistema Nacional de Información Forestal (SNIF), el cual debe ser actualizado para la generación de reportes de las áreas afectadas (cicatrices) en tiempo real. 5. Estrategia para la corresponsabilidad social en la lucha contra los incendios forestales ∙ La Estrategia de Corresponsabilidad Social en la Lucha Contra los Incendios Forestales del año 2011 ∙ Se cuenta con grupos de vigías rurales en los departamentos de Caquetá y Guaviare equivalente al 22,2% del indicador. 6. Estrategia de fortalecimiento institucional para la gestión de los incendios forestales No se cuenta con el programa de fortalecimiento de capacidades sin embargo el país cuenta con las siguientes instancias que se esperan sean fortalecidas ∙ Comisión Técnica Nacional Asesora para Incendios forestales resolución 373 de 2020 ∙ 18 Centros de respuesta a Incendios forestales (CRIFs) de los Bomberos de Colombia. ∙ Estrategia Nacional para el manejo del fuego de los Bomberos de Colombia 2017 - 2025 formulada. 7. Armonización y actualización de instrumentos para la gestión del riesgo de los incendios forestales . Se cuenta con un Plan Nacional de Prevención, Control de incendios Forestales y Restauración de Áreas Afectadas del año 2002, bajo la estructura del Decreto Ley 919 de 1989 que establecía el SNPAD derogado por la Ley 1523 de 2012 Política Nacional para la Gestión del Riesgo de Desastres. . Se cuenta con la Estrategia Nacional para el manejo del fuego de los Bomberos de Colombia 2017 - 2025 formulada, falta la articulación con el Sistema Nacional para la gestión del Riesgo | P39: En el año 2021 se incluirán las estrategias de acción para la gestión de los incendios forestales en el plan de trabajo de la Comisión Técnica Nacional Asesora para Incendios Forestales, la cual será actualizada según sus avances desde el año 2021 al 2030 siguiendo las estrategias así: 1. Estrategia Verificación de incendios activos a partir de puntos de calor ∙ A 2024 Identificación de experiencias para la verificación de Incendios forestales activos a través de sensores remotos (Metodología SIAT-AC / Instituto Sinchi). ∙ A 2025 Protocolo para la activación y la articulación entre entidades para la atención de incendios forestales (articulación con la Estrategia Nacional de Respuesta a Emergencias ENRE - UNGRD). ∙ A 2025 Documento nacional para realización de mapas de zonificación de riesgos ante incendios forestales ∙ A 2027 Implementación de tecnologías para la consolidación de focos de calor mes a mes y por municipio. ∙ A 2030 Documento protocolo de monitoreo en áreas sensibles a incendios forestales. 2. Estrategia para la implementación de un proceso de modelación para la identificación de los ecosistemas sensibles a incendios forestales ∙ A 2025 Documento de análisis de riesgo frente a las condiciones actuales y futuras de los incendios forestales a nivel departamental para ecosistemas estratégicos. ∙ A 2027 Diseño de un sistema de modelación a partir de puntos de calor y mapas de susceptibilidad para la identificación de áreas sensibles a incendios forestales a nivel municipal (escala 1:25000) ∙ A 2027 Protocolo para la Identificación de ecosistemas sensibles a incendios forestales a partir del sistema de modelación validado. ∙ A 2027 Lineamientos para la identificación de medidas de prevención de incendios forestales en ecosistemas sensibles priorizados a partir del sistema de modelación validado. 3. Implementación de un sistema Nacional de alertas y detección temprana frente a los incendios forestales ∙ A 2024 Mapeo de los actores institucionales que son claves para el desarrollo del sistema de alertas tempranas ∙ A 2025 Definición del sistema de monitoreo y el protocolo de activación ∙ A 2027 Propuesta de Regionalización del reporte a través de las CARs mediante transferencia de tecnología ∙ A 2028 Implementación de un proceso de seguimiento y evaluación del sistema 4. Estrategia para el monitoreo de áreas afectadas (cicatrices) producto de los incendios forestales ∙ A 2027Fortalecimiento plataforma Sistema Nacional de Información Forestal en lo que concierne a la captura, análisis, procesamiento y difusión de la información tendiente a incendios forestales, así como la capacitación periódica a las autoridades ambientales para su uso. ∙ A 2028 Establecimiento del protocolo de identificación de áreas afectadas por incendios forestales y necesidades de restauración, rehabilitación o recuperación ecológica a partir del sistema de monitoreo. 5. Estrategia para la corresponsabilidad social en la lucha contra los incendios forestales ∙ A 2025 Capacitaciones en sectores priorizados donde se presente de forma recurrente incendios forestales frente a las causas locales, efectos de los incendios forestales, incentivando la cultura de la prevención. ∙ A 2027 Dotación y creación de infraestructura para realizar vigilancia comunitaria para detección y comunicación oportuna de incendios forestales. ∙ A 2030 Creación y fortalecimiento de redes de vigías rurales, como medida de prevención basada en la vigilancia comunitaria, que facilita la detección temprana y comunicación para evitar la propagación de incendios forestales. 6. Estrategia de fortalecimiento institucional para la gestión de los incendios forestales ∙ A 2025 Asistencia técnica a autoridades ambientales frente la gestión del riesgo por incendios forestales. ∙ A 2027 Capacitación y dotación a la comunidad como primeros respondientes en el momento que se presente un incendio forestal de poca magnitud (Caso Bomberos indígenas de Riosucio) ∙ A 2030 Fortalecimiento de centros de respuesta ante incendios forestales Dotación de logística para la atención de incendios de forestales a los cuerpos operativos. 7. Armonización y actualización de instrumentos para la gestión del riesgo de los incendios forestales ∙ A 2022 Proponer el marco de la Comisión Técnica Nacional Asesora la actualización del Plan Nacional de Prevención, Control de incendios Forestales y Restauración de Áreas Afectadas, a 2024 con proyecciones a corto, mediano y largo plazo. ∙ A 2024 actualización de Plan Nacional de Prevención, Control de incendios Forestales y Restauración de Áreas Afectadas, con proyecciones a corto, mediano y largo plazo | Q39: Plan Nacional de Desarrollo Forestal: https://www.minambiente.gov.co/index.php/component/content/article?id=426:plantilla-bosques-biodiversidad-y-servicios-ecosistematicos21%20Pagina%20de%20SIATA%20AC%20http://siatac.co/web/guest/inicio/siatac;jsessionid=290208FD40B87B8EEBA599CEB699DB02 Plan Nacional de Prevención, Control de Incendios Forestales y Restauración de Áreas Afectadas: https://cardique.gov.co/gestion/Plan%20Nacional%20Prevencion%20Incendios%20Forestales.pdf Estrategia de Corresponsabilidad Social en la Lucha Contra los Incendios Forestales: https://www.minambiente.gov.co/images/BosquesBiodiversidadyServiciosEcosistemicos/pdf/Los-Incendios-Forestales/250414_estrategia_corres_social.pdf Estrategia Integral de Control a la Deforestación y Gestión de los Bosques https://redd.unfccc.int/files/eicdgb_bosques_territorios_de_vida_web.pdf | R39: Mecanismo: El Ministerio de Ambiente y Desarrollo Sostenible de acuerdo al reporte y desarrollo de la Comisión Técnica Nacional Asesora para Incendios Forestales evaluará y consolidará la información, la cual será reportada haciendo uso de la metodología e instrumentos ya establecidos para tal fin. Sistema de Información Nacional para la Gestión del Riesgo de Desastres - UNGRD Sistema Nacional de Información Forestal - SNIF | S39: Anual | T39: Debe ser abordado en el marco de la Comisión Técnica Nacional Asesora para Incendios Forestales para lo cual en su plan de acción se debe incluir el cumplimiento de la meta NDC y se deben gestionar recursos financieros para desarrollar el proceso. Se debe fortalecer institucional y financieramente la Estrategia de Corresponsabilidad Social en la Lucha Contra los Incendios Forestales Financiamiento de la estrategia de verificación de incendios forestales Diseño del sistema de modelación que permita identificación de los ecosistemas sensibles a incendios forestales Financiación y puesta en marcha de SAT para incendios forestales Fortalecimiento a instituciones y financiación de un sistema de monitoreo de cicatrices por causa de los incendios forestales Fortalecimiento centros de respuesta y dotación logística a los cuerpos operativos para atención de los incendios forestales en el marco del manejo del fuego | U39: 1, 2, 3, 4, 5 | V39: 1. ˗ Estrategia de Corresponsabilidad Social en la Lucha Contra los Incendios Forestales (2011), sin embargo es necesario actualizarla. - Elaboración y divulgación de la Cartilla Orientadora para la Gestión del Riesgo en Incendios Forestales elaborada en el año 2012, en proceso de actualización. - Elaboración de la cartilla Prevención de Incendios forestales (2014) dirigida a la comunidad en general - Min ambiente realizó en 2017, 2018 y 2019 cursos de formación virtual en prevención de incendios forestales dirigidos a educadores y líderes ambientales. ˗ Desarrollo de talleres territoriales de prevención de incendios forestales para la primera temporada seca 2020 - Estrategia de comunicaciones de manera articulada con las diferentes oficinas de comunicaciones del SINA, en el cual se generaron 179 comunicados informativos con publicación de las piezas digitales en redes sociales de las entidades del SINA. - Estrategia de comunicaciones de prevención para los incendios forestales segunda temporada seca del año 2019 e inicios 2020, desarrollada por las entidades del SINA en la mesa técnica instalada en el Ministerio de Ambiente y Desarrollo Sostenible. - Segunda temporada seca 2020: Conversatorio virtual: clima y ambiente: Transmitir mensajes de prevención y socializar herramientas para la toma oportuna de decisiones en el territorio por parte de las autoridades competentes frente a la prevención de los incendios forestales. 2. - Modelo SIGPI (Sistema de Información Geográfica para la Prevención de Incendios), para emisión de Boletines de alertas por incendios de la cobertura vegetal. IDEAM - Sistema de información geográfica: Alertas por focos de calor Información de la NASA o del INPE del Brasil, para el Sistema Nacional de Parques Nacionales de Colombia. - Sistema de Información Ambiental Territorial de la Amazonía Colombiana -SIAT- AC, Monitoreo puntos de calor y cicatrices de quema en la Amazonia Colombia. Instituto Amazónico de Investigaciones científicas – SINCHI - Sistema Nacional de Información Forestal - IDEAM - Susceptibilidad (bajo el Fenómeno de El Niño) de la vegetación a los incendios de la cobertura vegetal IDEAM 3. Instrumentos jurídicos sancionatorios por cometer daños ambientales asociados con incendios forestales: - Ley 599 de 2000: En ese sentido en el artículo 30, numeral 5, prohíbe realizar quemas o incendios que afecten la convivencia en cualquier lugar público o privado o en sitios prohibidos. - Ley 1801 de 2016: Titulo XI, Art 331. Daños en los recursos naturales. El que con incumplimiento de la normatividad existente destruya, inutilice, haga desaparecer o de cualquier otro modo dañe los recursos naturales incurrirá en prisión de cuarenta y ocho (48) a ciento ocho (108) meses y multa de ciento treinta y tres punto treinta y tres (133.33) a quince mil (15.000) salarios mínimos mensuales legales vigentes. 4. Ley 99 de 1993 * CONPES 2834 de 1996 Política de bosques * Plan Nacional de Desarrollo Forestal (2000) * Plan nacional de prevención control de incendios forestales y restauración de áreas afectadas (2002) * Estrategia de corresponsabilidad social en la lucha contra los incendios forestales 2011 * Ley 1575 de 2012 Ley General de Bomberos * Ley 1523 de 2012 política nacional de gestión del riesgo de desastres y se establece el Sistema Nacional de Gestión del Riesgo de Desastres * Estrategia Integral de Control a la Deforestación y Gestión de los Bosques (2017) Resolución 373 de 2020 crea y conforma la Comisión Técnica Asesora para Incendios Forestales | W39: 1. se requiere fortalecimiento institucional para capacitar población en diferentes regiones del país de forma unificada en cuanto a los incendios forestales y su repercusión en los recursos naturales. - Ampliación de los equipos de vigías rurales en las regiones con mayor incidencia de los incendios forestales con equipos técnicos para capacitación comunitaria y logística de primera respuesta. - Técnicos para la actualización de documentos para orientar las medidas en prevención de incendios forestales a nivel comunitario e institucional competente. - Asistencia técnica a autoridades ambientales frente la gestión integral del riesgo de incendios forestales. - Diseño e implementación de una estrategia de capacitación comunitaria para el manejo del fuego. Socialización de experiencias exitosas. - Acuerdos intersectoriales para la prevención de incendios forestales. - Desarrollo de estrategias y protocolos de alertas tempranas comunitarias para los incendios forestales articuladas con los Consejos Territoriales para la Gestión del Riesgo de Desastres. 2. Diseño de un sistema de modelación a partir de puntos de calor y realización de mapas de susceptibilidad para la identificación de áreas sensibles a incendios de cobertura vegetal a nivel municipal. * Sistemas de información para la verificación de Incendios forestales activos a través de sensores remotos. * Aplicación del protocolos para realización de mapas de zonificación de riesgos a incendios forestales con las Autoridades Ambientales * Generar los mapas por regiones con la mayor incidencia anual de fuegos (focos de calor) con datos diarios * Desarrollo una aplicación para modelar por regiones la susceptibilidad del territorio a sufrir incendios forestales con temporalidad diaria a escala detallada 3. Se requiere establecer un protocolo que logre dinamizar la judicialización con otras pruebas, no solo que la persona sea encontrada en flagrancia para judicializarla * Realizar ajustes normativos para la creación de incentivos ambientales para la prevención y control de las quemas e incendios en zonas ecológicamente susceptibles. * Se requieren herramientas judiciales para el control territorial de los ilícitos asociados a los incendios forestales. 4. Hoja de ruta de la Comisión Técnica Nacional para incendios forestales con líneas estratégicas en procesos de la gestión del riesgo de desastres, conocimiento del riesgo, reducción del riesgo y manejo del desastre. * Se requiere fortalecimiento interinstitucional para la actualización de los instrumentos políticos y normativos * Se requiere por parte de las instituciones que integran el SNGRD la generación de insumos con sustento técnico científico de las problemáticas generadas por la ocurrencia de incendios forestales * Actualización de la Resolución 532 de 2005, referida a la practica de quemas abiertas controladas en actividades agrícolas y mineras * Fortalecimiento técnico a los cuerpos de bomberos, cuerpos operativos y consejos municipales para la gestión del Riesgo de Desastres * Protocolo para la activación y la articulación entre entidades para la atención de incendios forestales (articulación con la Estrategia de Respuesta Nacional ENRE - UNGRD) * Apoyo técnico y financiero para la dotación de logística para la atención de incendios forestales

Sheet <<II. Efectividad>> (hidden)
B2: Impacto de las metas en la capacidad de adaptación

Sheet Riesgos y vulnerabilidades (hidden)
C2: Evaluacion de riesgos y vulnerabiidades de cambio climatico
C3: Esta hoja proporciona una estimacion de los riesgos y vulnerbilidades de cambio climatico
C5: 1. Matriz de evaluación de riesgos y vulnerabilidades
C6: Esta tabla ayuda a cuantificar los la exposicion a los riesgos y el nivel de vulnerabilidad ante los peligros climaticos que estan detras de cada una de las metas fijadas, sirve para priorizar las metas en basa a la urgencia de accion
C8: Conceptos
C9: · La sensibilidad indica el grado en que un sistema o una especie se ven afectados, bien sea en positivo o en negativo, por la variabilidad o el cambio climático.
C10: · La vulnerabilidad se refiere a la propensión o predisposición de ser afectado de forma adversa.
C11: · Por el contrario, la resiliencia es la capacidad de los sistemas sociales, económicos o ambientales para hacer frente a un evento, tendencia o perturbación peligrosa, respondiendo o reorganizándose de manera que mantengan su función y estructura esenciales, y en el mejor de los casos siendo capaces de aprovechar las oportunidades potenciales que se emergidas en el nuevo contexto.
C12: · La exposición refleja la presencia de personas, medios de vida, especies o ecosistemas, funciones ambientales, servicios y recursos, infraestructura o bienes económicos, sociales o culturales en lugares y entornos que podrían verse afectados negativamente por el cambio climático.
C13: · El impacto se refiere a los efectos sobre los sistemas naturales y humanos de los fenómenos meteorológicos y climáticos extremos y del cambio climático. El nivel de riesgo indica la probabilidad de ocurrencia de eventos peligrosos o tendencias multiplicadas por los impactos.
C14: · Efectividad de la meta: Se debería focalizar los esfuerzos en aquellas metas o acciones relativas a sectores/subsectores con alto potencial de aumento de la capacidad de adaptación a cambios en el clima. Para poder comparar entre diferentes metas y/o acciones hay que delinear primero el alcance sectorial, temporal y geográfico de la acción.
C15: · El impacto final se refiere a los efectos sobre los sistemas naturales y humanos de los fenómenos meteorológicos y climáticos extremos y del cambio climático una vez implementada la meta
C17: Evaluacion de riesgos y vulnerabiidades de cambio climatico
D18: 1: Impacto bajo (o riesgo), 3: Impacto medio (o riesgo), 5: Impacto alto (o riesgo) - Guía metodológica, sección 5.1.2.
D19: Sector | E19: Descripcion | F19: Fuente | G19: Exposicion | L19: Vulnerabildad | R19: Impacto | T19: Efectividad de la meta
G20: 1 | H20: 2 | I20: 3 | J20: 4 | K20: 5 | L20: 1 | M20: 2 | N20: 3 | O20: 4 | P20: 5 | T20: Meta | V20: Impacto final
C21: Insertar la evaluacion de riesgo de cambio climatico segun exposiciones y vulenrabilidades para cada sector (1. Seleccionar sector, 2. Seleccionar Exposicion, 3. Selecionar vulnerabilidad. El impacto se calcula automaticamente). | T21: Seleccionar la meta (Codigo, y el nombre aparece automaticamente) en la efectividad y reevaluar el impacto final una vez considerada la meta.
C24: 1 | D24: Energía | E24: Ejemplo… | F24: Ejemplo… | G24: 1 | L24: 2 | R24: =G24*L24 -> 2 | T24: 1 | U24: =VLOOKUP(T24,'Revisión de metas'!$D$10:$E$38,2,FALSE) -> Vivienda (Instrumentos): 5 | V24: 1
C25: 2
C26: 3
C27: 4
C28: 5
C29: 6
C30: …

Sheet << III.1 Costeo >> (hidden)
B2: Ejercicio de costeo de las metas

Sheet Resultados generales (hidden)
D2: Resultados: Resultados Generales
D3: En esta hoja se exponen los resultados del ejercicio realizado para el 'Paso 4 - Evaluar las opciones de adaptación'
D5: 1. Efectividad - principales resultados
D6: Tablas que presentan de forma completa y detallada los resultados obtenidos en el ejercicio de Efectividad (Paso 4.1 Efectividad)
D8: Resultados del ejercicio de Efectividad
D10: Meta | E10: Nombre Meta | F10: Sector | G10: Efectividad de la meta
G11: Impacto inicial | H11: Impacto final
D12: ='Revisión de metas'!D10 -> 1 | E12: ='Revisión de metas'!E10 -> Vivienda (Instrumentos): 5 | F12: ='Revisión de metas'!F10 -> Vivienda | G12: ='Riesgos y vulnerabilidades'!R24 -> 2 | H12: ='Riesgos y vulnerabilidades'!V24 -> 1
D13: ='Revisión de metas'!D11 -> 2 | E13: ='Revisión de metas'!E11 -> Vivienda (Cuencas) 1 | F13: ='Revisión de metas'!F11 -> Vivienda | G13: ='Riesgos y vulnerabilidades'!R25 -> 0 | H13: ='Riesgos y vulnerabilidades'!V25 -> 0
D14: ='Revisión de metas'!D12 -> 3 | E14: ='Revisión de metas'!E12 -> Vivienda (Gestión del riesgo) 2 | F14: ='Revisión de metas'!F12 -> Vivienda | G14: ='Riesgos y vulnerabilidades'!R26 -> 0 | H14: ='Riesgos y vulnerabilidades'!V26 -> 0
D15: ='Revisión de metas'!D13 -> 4 | E15: ='Revisión de metas'!E13 -> Vivienda (Tratamiento aguas residuales) 3 | F15: ='Revisión de metas'!F13 -> Residuos | G15: ='Riesgos y vulnerabilidades'!R27 -> 0 | H15: ='Riesgos y vulnerabilidades'!V27 -> 0
D16: ='Revisión de metas'!D14 -> 5 | E16: ='Revisión de metas'!E14 -> Vivienda (Reuso) 4 | F16: ='Revisión de metas'!F14 -> Vivienda | G16: ='Riesgos y vulnerabilidades'!R28 -> 0 | H16: ='Riesgos y vulnerabilidades'!V28 -> 0
D17: ='Revisión de metas'!D15 -> 6 | E17: ='Revisión de metas'!E15 -> Salud (prevención de enferemedades): 1 | F17: ='Revisión de metas'!F15 -> Salud | G17: ='Riesgos y vulnerabilidades'!R29 -> 0 | H17: ='Riesgos y vulnerabilidades'!V29 -> 0
D18: ='Revisión de metas'!D16 -> 7 | E18: ='Revisión de metas'!E16 -> Salud (adaptación en IPS): 2 | F18: ='Revisión de metas'!F16 -> Salud | G18: ='Riesgos y vulnerabilidades'!R30 -> 0 | H18: ='Riesgos y vulnerabilidades'!V30 -> 0
D19: ='Revisión de metas'!D17 -> 8 | E19: ='Revisión de metas'!E17 -> Energía (instrumento planificación): 1 | F19: ='Revisión de metas'!F17 -> Energía | G19: ='Riesgos y vulnerabilidades'!R31 -> 0 | H19: ='Riesgos y vulnerabilidades'!V31 -> 0
D20: ='Revisión de metas'!D18 -> 9 | E20: ='Revisión de metas'!E18 -> Energía (Análisis de riesgos): 2 | F20: ='Revisión de metas'!F18 -> Energía | G20: ='Riesgos y vulnerabilidades'!R32 -> 0 | H20: ='Riesgos y vulnerabilidades'!V32 -> 0
D21: ='Revisión de metas'!D19 -> 10 | E21: ='Revisión de metas'!E19 -> Energía (Proyecto AbE sector eléctrico): 3 | F21: ='Revisión de metas'!F19 -> Energía | G21: ='Riesgos y vulnerabilidades'!R33 -> 0 | H21: ='Riesgos y vulnerabilidades'!V33 -> 0
D22: ='Revisión de metas'!D20 -> 11 | E22: ='Revisión de metas'!E20 -> Industria: 1 | F22: ='Revisión de metas'!F20 -> Industria | G22: ='Riesgos y vulnerabilidades'!R34 -> 0 | H22: ='Riesgos y vulnerabilidades'!V34 -> 0
D23: ='Revisión de metas'!D21 -> 12 | E23: ='Revisión de metas'!E21 -> Transporte: Sistemas de información | F23: ='Revisión de metas'!F21 -> Transporte | G23: ='Riesgos y vulnerabilidades'!R35 -> 0 | H23: ='Riesgos y vulnerabilidades'!V35 -> 0
D24: ='Revisión de metas'!D22 -> 13 | E24: ='Revisión de metas'!E22 -> Transporte: 2 | F24: ='Revisión de metas'!F22 -> Transporte | G24: ='Riesgos y vulnerabilidades'!R36 -> 0 | H24: ='Riesgos y vulnerabilidades'!V36 -> 0
D25: ='Revisión de metas'!D23 -> 14 | E25: ='Revisión de metas'!E23 -> Transporte: 3 | F25: ='Revisión de metas'!F23 -> Transporte | G25: ='Riesgos y vulnerabilidades'!R37 -> 0 | H25: ='Riesgos y vulnerabilidades'!V37 -> 0
D26: ='Revisión de metas'!D24 -> 15 | E26: ='Revisión de metas'!E24 -> Transporte: 4 | F26: ='Revisión de metas'!F24 -> Transporte | G26: ='Riesgos y vulnerabilidades'!R38 -> 0 | H26: ='Riesgos y vulnerabilidades'!V38 -> 0
D27: ='Revisión de metas'!D25 -> 16 | E27: ='Revisión de metas'!E25 -> Transporte: 5 | F27: ='Revisión de metas'!F25 -> Transporte | G27: ='Riesgos y vulnerabilidades'!R39 -> 0 | H27: ='Riesgos y vulnerabilidades'!V39 -> 0
D28: ='Revisión de metas'!D26 -> 17 | E28: ='Revisión de metas'!E26 -> Agricultura : Planificacion 6 Sectores | F28: ='Revisión de metas'!F26 -> Agricultura | G28: ='Riesgos y vulnerabilidades'!R40 -> 0 | H28: ='Riesgos y vulnerabilidades'!V40 -> 0
D29: ='Revisión de metas'!D27 -> 18 | E29: ='Revisión de metas'!E27 -> Agropecuario (capacidades 10 subsectores): 1 | F29: ='Revisión de metas'!F27 -> Agropecuario | G29: ='Riesgos y vulnerabilidades'!R41 -> 0 | H29: ='Riesgos y vulnerabilidades'!V41 -> 0
D30: ='Revisión de metas'!D28 -> 19 | E30: ='Revisión de metas'!E28 -> Agricultura : Mesas Técnicas Agroclimáticas | F30: ='Revisión de metas'!F28 -> Agricultura | G30: ='Riesgos y vulnerabilidades'!R42 -> 0 | H30: ='Riesgos y vulnerabilidades'!V42 -> 0
D31: ='Revisión de metas'!D29 -> 20 | E31: ='Revisión de metas'!E29 -> Ambiente: SIIVRA | F31: ='Revisión de metas'!F29 -> Medio Ambiente y recursos naturales | G31: ='Riesgos y vulnerabilidades'!R43 -> 0 | H31: ='Riesgos y vulnerabilidades'!V43 -> 0
D32: ='Revisión de metas'!D30 -> 21 | E32: ='Revisión de metas'!E30 -> Ambiente: Cuencas Hidrográficas | F32: ='Revisión de metas'!F30 -> Medio Ambiente y recursos naturales | G32: ='Riesgos y vulnerabilidades'!R44 -> 0 | H32: ='Riesgos y vulnerabilidades'!V44 -> 0
D33: ='Revisión de metas'!D31 -> 22 | E33: ='Revisión de metas'!E31 -> Ambiente: Páramos | F33: ='Revisión de metas'!F31 -> Medio Ambiente y recursos naturales | G33: ='Riesgos y vulnerabilidades'!R45 -> 0 | H33: ='Riesgos y vulnerabilidades'!V45 -> 0
D34: ='Revisión de metas'!D32 -> 23 | E34: ='Revisión de metas'!E32 -> Ambiente: Representatividad PNN | F34: ='Revisión de metas'!F32 -> Medio Ambiente y recursos naturales | G34: ='Riesgos y vulnerabilidades'!R46 -> 0 | H34: ='Riesgos y vulnerabilidades'!V46 -> 0
D35: ='Revisión de metas'!D33 -> 24 | E35: ='Revisión de metas'!E33 -> Ambiente: Restauración PNN | F35: ='Revisión de metas'!F33 -> Medio Ambiente y recursos naturales | G35: ='Riesgos y vulnerabilidades'!R47 -> 0 | H35: ='Riesgos y vulnerabilidades'!V47 -> 0
D36: ='Revisión de metas'!D34 -> 25 | E36: ='Revisión de metas'!E34 -> Ambiente: Licencias Ambientales | F36: ='Revisión de metas'!F34 -> Medio Ambiente y recursos naturales | G36: ='Riesgos y vulnerabilidades'!R48 -> 0 | H36: ='Riesgos y vulnerabilidades'!V48 -> 0
D37: ='Revisión de metas'!D35 -> 26 | E37: ='Revisión de metas'!E35 -> Ambiente: Red de monitoreo | F37: ='Revisión de metas'!F35 -> Medio Ambiente y recursos naturales | G37: ='Riesgos y vulnerabilidades'!R49 -> 0 | H37: ='Riesgos y vulnerabilidades'!V49 -> 0
D38: ='Revisión de metas'!D36 -> 27 | E38: ='Revisión de metas'!E36 -> Ambiente: Programa Nacional - Manglares | F38: ='Revisión de metas'!F36 -> Medio Ambiente y recursos naturales | G38: ='Riesgos y vulnerabilidades'!R50 -> 0 | H38: ='Riesgos y vulnerabilidades'!V50 -> 0
D39: ='Revisión de metas'!D37 -> 28 | E39: ='Revisión de metas'!E37 -> Ambiente: POMIUAC | F39: ='Revisión de metas'!F37 -> Medio Ambiente y recursos naturales | G39: ='Riesgos y vulnerabilidades'!R51 -> 0 | H39: ='Riesgos y vulnerabilidades'!V51 -> 0
D40: ='Revisión de metas'!D38 -> 29 | E40: ='Revisión de metas'!E38 -> Ambiente: Carbono Azul | F40: ='Revisión de metas'!F38 -> Medio Ambiente y recursos naturales | G40: ='Riesgos y vulnerabilidades'!R52 -> 0 | H40: ='Riesgos y vulnerabilidades'!V52 -> 0
D41: ='Revisión de metas'!D39 -> 30 | E41: ='Revisión de metas'!E39 -> Ambiente: Gestión del Riesgo - Incendios Forestales | F41: ='Revisión de metas'!F39 -> Medio Ambiente y recursos naturales | G41: ='Riesgos y vulnerabilidades'!R53 -> 0 | H41: ='Riesgos y vulnerabilidades'!V53 -> 0
D44: 2. Factibilidad: Principales resultados
D46: Resultados del ejercicio de costeo
D48: Gráficas y tablas que presentan de forma completa y detallada los resultados obtenidos en el ejercicio de costeo (Paso 4.2 Factibilidad - Ejercicio de costeo)
D50: Figuras graficas
D99: Resultados del ejercicio de costeo: Tablas
F101: Sector | G101: Millones USD$ | K101: VPN Millones Pesos Constantes 2020 | O101: Millones Pesos 2020 - Requerimiento promedio
D102: Código Meta | E102: Nombre Meta | F102: ='Análisis Consolidado - Costes'!F40 -> Sector | G102: ='Análisis Consolidado - Costes'!G40 -> Promedio | H102: ='Análisis Consolidado - Costes'!H40 -> Límite Superior | I102: ='Análisis Consolidado - Costes'!I40 -> Límite inferior | K102: ='Análisis Consolidado - Costes'!K40 -> Promedio | L102: ='Análisis Consolidado - Costes'!L40 -> Límite Superior | M102: ='Análisis Consolidado - Costes'!M40 -> Límite inferior | O102: 2020 | P102: 2021 | Q102: 2022 | R102: 2023 | S102: 2024 | T102: 2025 | U102: 2026 | V102: 2027 | W102: 2028 | X102: 2029 | Y102: 2030
D103: =+'Análisis Consolidado - Costes'!D41 -> 1 | E103: =+'Análisis Consolidado - Costes'!E41 -> Vivienda (Instrumentos): 5 | F103: =+'Análisis Consolidado - Costes'!F41 -> Vivienda | G103: =+'Análisis Consolidado - Costes'!G41 -> 3.049814441 | H103: =+'Análisis Consolidado - Costes'!H41 -> 3.354795886 | I103: =+'Análisis Consolidado - Costes'!I41 -> 2.744832997 | K103: =+'Análisis Consolidado - Costes'!K41 -> 10006.72235 | L103: =+'Análisis Consolidado - Costes'!L41 -> 11007.39459 | M103: =+'Análisis Consolidado - Costes'!M41 -> 9006.050115 | O103: =+'Análisis Consolidado - Costes'!O41 -> 0 | P103: =+'Análisis Consolidado - Costes'!P41 -> 0 | Q103: =+'Análisis Consolidado - Costes'!Q41 -> 2032.31 | R103: =+'Análisis Consolidado - Costes'!R41 -> 2118.99 | S103: =+'Análisis Consolidado - Costes'!S41 -> 1589.235 | T103: =+'Análisis Consolidado - Costes'!T41 -> 1277.235 | U103: =+'Análisis Consolidado - Costes'!U41 -> 1277.235 | V103: =+'Análisis Consolidado - Costes'!V41 -> 1277.235 | W103: =+'Análisis Consolidado - Costes'!W41 -> 1277.235 | X103: =+'Análisis Consolidado - Costes'!X41 -> 1277.235 | Y103: =+'Análisis Consolidado - Costes'!Y41 -> 851.49
D104: =+'Análisis Consolidado - Costes'!D42 -> 2 | E104: =+'Análisis Consolidado - Costes'!E42 -> Vivienda (Cuencas) 1 | F104: =+'Análisis Consolidado - Costes'!F42 -> Vivienda | G104: =+'Análisis Consolidado - Costes'!G42 -> 15.00536553 | H104: =+'Análisis Consolidado - Costes'!H42 -> 22.9303138 | I104: =+'Análisis Consolidado - Costes'!I42 -> 9.650181953 | K104: =+'Análisis Consolidado - Costes'!K42 -> 49233.98768 | L104: =+'Análisis Consolidado - Costes'!L42 -> 75236.47355 | M104: =+'Análisis Consolidado - Costes'!M42 -> 31663.13666 | O104: =+'Análisis Consolidado - Costes'!O42 -> 0 | P104: =+'Análisis Consolidado - Costes'!P42 -> 0 | Q104: =+'Análisis Consolidado - Costes'!Q42 -> 1090.383141 | R104: =+'Análisis Consolidado - Costes'!R42 -> 1225.4109 | S104: =+'Análisis Consolidado - Costes'!S42 -> 2680.141314 | T104: =+'Análisis Consolidado - Costes'!T42 -> 1416.994641 | U104: =+'Análisis Consolidado - Costes'!U42 -> 14559.18095 | V104: =+'Análisis Consolidado - Costes'!V42 -> 14559.18095 | W104: =+'Análisis Consolidado - Costes'!W42 -> 14559.18095 | X104: =+'Análisis Consolidado - Costes'!X42 -> 14230.44574 | Y104: =+'Análisis Consolidado - Costes'!Y42 -> 14230.44574
D105: =+'Análisis Consolidado - Costes'!D43 -> 3 | E105: =+'Análisis Consolidado - Costes'!E43 -> Vivienda (Gestión del riesgo) 2 | F105: =+'Análisis Consolidado - Costes'!F43 -> Vivienda | G105: =+'Análisis Consolidado - Costes'!G43 -> 71.83072736 | H105: =+'Análisis Consolidado - Costes'!H43 -> 154.5395661 | I105: =+'Análisis Consolidado - Costes'!I43 -> 17.11393583 | K105: =+'Análisis Consolidado - Costes'!K43 -> 235683.2387 | L105: =+'Análisis Consolidado - Costes'!L43 -> 507058.5637 | M105: =+'Análisis Consolidado - Costes'!M43 -> 56152.40122 | O105: =+'Análisis Consolidado - Costes'!O43 -> 0 | P105: =+'Análisis Consolidado - Costes'!P43 -> 0 | Q105: =+'Análisis Consolidado - Costes'!Q43 -> 4051.628304 | R105: =+'Análisis Consolidado - Costes'!R43 -> 52096.11535 | S105: =+'Análisis Consolidado - Costes'!S43 -> 52394.82115 | T105: =+'Análisis Consolidado - Costes'!T43 -> 48696.37314 | U105: =+'Análisis Consolidado - Costes'!U43 -> 48660.07559 | V105: =+'Análisis Consolidado - Costes'!V43 -> 48882.60214 | W105: =+'Análisis Consolidado - Costes'!W43 -> 48763.69117 | X105: =+'Análisis Consolidado - Costes'!X43 -> 48763.69117 | Y105: =+'Análisis Consolidado - Costes'!Y43 -> 48763.69117
D106: =+'Análisis Consolidado - Costes'!D44 -> 4 | E106: =+'Análisis Consolidado - Costes'!E44 -> Vivienda (Tratamiento aguas residuales) 3 | F106: =+'Análisis Consolidado - Costes'!F44 -> Residuos | G106: =+'Análisis Consolidado - Costes'!G44 -> 804.7741812 | H106: =+'Análisis Consolidado - Costes'!H44 -> 1345.508713 | I106: =+'Análisis Consolidado - Costes'!I44 -> 522.2443117 | K106: =+'Análisis Consolidado - Costes'!K44 -> 2640538.282 | L106: =+'Análisis Consolidado - Costes'!L44 -> 4414738.132 | M106: =+'Análisis Consolidado - Costes'!M44 -> 1713531.733 | O106: =+'Análisis Consolidado - Costes'!O44 -> 0 | P106: =+'Análisis Consolidado - Costes'!P44 -> 347857.1421 | Q106: =+'Análisis Consolidado - Costes'!Q44 -> 347857.1421 | R106: =+'Análisis Consolidado - Costes'!R44 -> 382073.968 | S106: =+'Análisis Consolidado - Costes'!S44 -> 416290.7938 | T106: =+'Análisis Consolidado - Costes'!T44 -> 450507.6197 | U106: =+'Análisis Consolidado - Costes'!U44 -> 484724.4455 | V106: =+'Análisis Consolidado - Costes'!V44 -> 518941.2714 | W106: =+'Análisis Consolidado - Costes'!W44 -> 553158.0972 | X106: =+'Análisis Consolidado - Costes'!X44 -> 587374.9231 | Y106: =+'Análisis Consolidado - Costes'!Y44 -> 621591.7489
D107: =+'Análisis Consolidado - Costes'!D45 -> 5 | E107: =+'Análisis Consolidado - Costes'!E45 -> Vivienda (Reuso) 4 | F107: =+'Análisis Consolidado - Costes'!F45 -> Vivienda | G107: =+'Análisis Consolidado - Costes'!G45 -> 30.12889655 | H107: =+'Análisis Consolidado - Costes'!H45 -> 70.74431599 | I107: =+'Análisis Consolidado - Costes'!I45 -> 8.0782242 | K107: =+'Análisis Consolidado - Costes'!K45 -> 98855.68723 | L107: =+'Análisis Consolidado - Costes'!L45 -> 232118.6228 | M107: =+'Análisis Consolidado - Costes'!M45 -> 26505.39834 | O107: =+'Análisis Consolidado - Costes'!O45 -> 0 | P107: =+'Análisis Consolidado - Costes'!P45 -> 0 | Q107: =+'Análisis Consolidado - Costes'!Q45 -> 186.5901715 | R107: =+'Análisis Consolidado - Costes'!R45 -> 7969.673034 | S107: =+'Análisis Consolidado - Costes'!S45 -> 10151.88668 | T107: =+'Análisis Consolidado - Costes'!T45 -> 10539.6594 | U107: =+'Análisis Consolidado - Costes'!U45 -> 10162.4683 | V107: =+'Análisis Consolidado - Costes'!V45 -> 30354.5394 | W107: =+'Análisis Consolidado - Costes'!W45 -> 34430.27094 | X107: =+'Análisis Consolidado - Costes'!X45 -> 34430.27094 | Y107: =+'Análisis Consolidado - Costes'!Y45 -> 34430.27094
D108: =+'Análisis Consolidado - Costes'!D46 -> 6 | E108: =+'Análisis Consolidado - Costes'!E46 -> Salud (prevención de enferemedades): 1 | F108: =+'Análisis Consolidado - Costes'!F46 -> Salud | G108: =+'Análisis Consolidado - Costes'!G46 -> 12.14311563 | H108: =+'Análisis Consolidado - Costes'!H46 -> 13.35742719 | I108: =+'Análisis Consolidado - Costes'!I46 -> 10.92880407 | K108: =+'Análisis Consolidado - Costes'!K46 -> 39842.68188 | L108: =+'Análisis Consolidado - Costes'!L46 -> 43826.95007 | M108: =+'Análisis Consolidado - Costes'!M46 -> 35858.41369 | O108: =+'Análisis Consolidado - Costes'!O46 -> 16723.5375 | P108: =+'Análisis Consolidado - Costes'!P46 -> 2973.095688 | Q108: =+'Análisis Consolidado - Costes'!Q46 -> 3292.220688 | R108: =+'Análisis Consolidado - Costes'!R46 -> 3292.220688 | S108: =+'Análisis Consolidado - Costes'!S46 -> 2653.970688 | T108: =+'Análisis Consolidado - Costes'!T46 -> 3538.627583 | U108: =+'Análisis Consolidado - Costes'!U46 -> 3538.627583 | V108: =+'Análisis Consolidado - Costes'!V46 -> 3538.627583 | W108: =+'Análisis Consolidado - Costes'!W46 -> 1681.724 | X108: =+'Análisis Consolidado - Costes'!X46 -> 1681.724 | Y108: =+'Análisis Consolidado - Costes'!Y46 -> 1681.724
D109: =+'Análisis Consolidado - Costes'!D47 -> 7 | E109: =+'Análisis Consolidado - Costes'!E47 -> Salud (adaptación en IPS): 2 | F109: =+'Análisis Consolidado - Costes'!F47 -> Salud | G109: =+'Análisis Consolidado - Costes'!G47 -> 57.19922282 | H109: =+'Análisis Consolidado - Costes'!H47 -> 62.27177347 | I109: =+'Análisis Consolidado - Costes'!I47 -> 52.12667217 | K109: =+'Análisis Consolidado - Costes'!K47 -> 187675.9234 | L109: =+'Análisis Consolidado - Costes'!L47 -> 204319.4297 | M109: =+'Análisis Consolidado - Costes'!M47 -> 171032.417 | O109: =+'Análisis Consolidado - Costes'!O47 -> 762.4125322 | P109: =+'Análisis Consolidado - Costes'!P47 -> 2008.449772 | Q109: =+'Análisis Consolidado - Costes'!Q47 -> 34995.49884 | R109: =+'Análisis Consolidado - Costes'!R47 -> 34995.49884 | S109: =+'Análisis Consolidado - Costes'!S47 -> 34995.49884 | T109: =+'Análisis Consolidado - Costes'!T47 -> 17878.95568 | U109: =+'Análisis Consolidado - Costes'!U47 -> 17878.95568 | V109: =+'Análisis Consolidado - Costes'!V47 -> 17878.95568 | W109: =+'Análisis Consolidado - Costes'!W47 -> 69228.58514 | X109: =+'Análisis Consolidado - Costes'!X47 -> 69228.58514 | Y109: =+'Análisis Consolidado - Costes'!Y47 -> 52112.04199
D110: =+'Análisis Consolidado - Costes'!D48 -> 8 | E110: =+'Análisis Consolidado - Costes'!E48 -> Energía (instrumento planificación): 1 | F110: =+'Análisis Consolidado - Costes'!F48 -> Energía | G110: =+'Análisis Consolidado - Costes'!G48 -> 0.2461493343 | H110: =+'Análisis Consolidado - Costes'!H48 -> 0.2707642677 | I110: =+'Análisis Consolidado - Costes'!I48 -> 0.2215344008 | K110: =+'Análisis Consolidado - Costes'!K48 -> 807.6386586 | L110: =+'Análisis Consolidado - Costes'!L48 -> 888.4025245 | M110: =+'Análisis Consolidado - Costes'!M48 -> 726.8747928 | O110: =+'Análisis Consolidado - Costes'!O48 -> 0 | P110: =+'Análisis Consolidado - Costes'!P48 -> 419.375 | Q110: =+'Análisis Consolidado - Costes'!Q48 -> 286.375 | R110: =+'Análisis Consolidado - Costes'!R48 -> 90.25 | S110: =+'Análisis Consolidado - Costes'!S48 -> 20 | T110: =+'Análisis Consolidado - Costes'!T48 -> 0 | U110: =+'Análisis Consolidado - Costes'!U48 -> 0 | V110: =+'Análisis Consolidado - Costes'!V48 -> 0 | W110: =+'Análisis Consolidado - Costes'!W48 -> 0 | X110: =+'Análisis Consolidado - Costes'!X48 -> 0 | Y110: =+'Análisis Consolidado - Costes'!Y48 -> 0
D111: =+'Análisis Consolidado - Costes'!D49 -> 9 | E111: =+'Análisis Consolidado - Costes'!E49 -> Energía (Análisis de riesgos): 2 | F111: =+'Análisis Consolidado - Costes'!F49 -> Energía | G111: =+'Análisis Consolidado - Costes'!G49 -> 0.3768186314 | H111: =+'Análisis Consolidado - Costes'!H49 -> 0.4145004946 | I111: =+'Análisis Consolidado - Costes'!I49 -> 0.3391367683 | K111: =+'Análisis Consolidado - Costes'!K49 -> 1236.376669 | L111: =+'Análisis Consolidado - Costes'!L49 -> 1360.014336 | M111: =+'Análisis Consolidado - Costes'!M49 -> 1112.739002 | O111: =+'Análisis Consolidado - Costes'!O49 -> 0 | P111: =+'Análisis Consolidado - Costes'!P49 -> 41.33 | Q111: =+'Análisis Consolidado - Costes'!Q49 -> 764.12 | R111: =+'Análisis Consolidado - Costes'!R49 -> 172.65 | S111: =+'Análisis Consolidado - Costes'!S49 -> 96 | T111: =+'Análisis Consolidado - Costes'!T49 -> 313.6 | U111: =+'Análisis Consolidado - Costes'!U49 -> 0 | V111: =+'Análisis Consolidado - Costes'!V49 -> 0 | W111: =+'Análisis Consolidado - Costes'!W49 -> 0 | X111: =+'Análisis Consolidado - Costes'!X49 -> 0 | Y111: =+'Análisis Consolidado - Costes'!Y49 -> 0
D112: =+'Análisis Consolidado - Costes'!D50 -> 10 | E112: =+'Análisis Consolidado - Costes'!E50 -> Energía (Proyecto AbE sector eléctrico): 3 | F112: =+'Análisis Consolidado - Costes'!F50 -> Energía | G112: =+'Análisis Consolidado - Costes'!G50 -> 65.73012591 | H112: =+'Análisis Consolidado - Costes'!H50 -> 66.20691608 | I112: =+'Análisis Consolidado - Costes'!I50 -> 54.39881954 | K112: =+'Análisis Consolidado - Costes'!K50 -> 215666.6029 | L112: =+'Análisis Consolidado - Costes'!L50 -> 217230.9954 | M112: =+'Análisis Consolidado - Costes'!M50 -> 178487.542 | O112: =+'Análisis Consolidado - Costes'!O50 -> 0 | P112: =+'Análisis Consolidado - Costes'!P50 -> 510.1904236 | Q112: =+'Análisis Consolidado - Costes'!Q50 -> 6704.536055 | R112: =+'Análisis Consolidado - Costes'!R50 -> 560.9954236 | S112: =+'Análisis Consolidado - Costes'!S50 -> 551.7576407 | T112: =+'Análisis Consolidado - Costes'!T50 -> 306.9704236 | U112: =+'Análisis Consolidado - Costes'!U50 -> 51745.16179 | V112: =+'Análisis Consolidado - Costes'!V50 -> 70253.03331 | W112: =+'Análisis Consolidado - Costes'!W50 -> 88760.90483 | X112: =+'Análisis Consolidado - Costes'!X50 -> 107268.7763 | Y112: =+'Análisis Consolidado - Costes'!Y50 -> 107268.7763
D113: =+'Análisis Consolidado - Costes'!D51 -> 11 | E113: =+'Análisis Consolidado - Costes'!E51 -> Industria: 1 | F113: =+'Análisis Consolidado - Costes'!F51 -> Industria | G113: =+'Análisis Consolidado - Costes'!G51 -> 24.8185303 | H113: =+'Análisis Consolidado - Costes'!H51 -> 27.30038333 | I113: =+'Análisis Consolidado - Costes'!I51 -> 22.33667727 | K113: =+'Análisis Consolidado - Costes'!K51 -> 81431.88598 | L113: =+'Análisis Consolidado - Costes'!L51 -> 89575.07458 | M113: =+'Análisis Consolidado - Costes'!M51 -> 73288.69738 | O113: =+'Análisis Consolidado - Costes'!O51 -> 0 | P113: =+'Análisis Consolidado - Costes'!P51 -> 18592.73422 | Q113: =+'Análisis Consolidado - Costes'!Q51 -> 19079.44612 | R113: =+'Análisis Consolidado - Costes'!R51 -> 13162.69582 | S113: =+'Análisis Consolidado - Costes'!S51 -> 11702.56012 | T113: =+'Análisis Consolidado - Costes'!T51 -> 11702.56012 | U113: =+'Análisis Consolidado - Costes'!U51 -> 11702.56012 | V113: =+'Análisis Consolidado - Costes'!V51 -> 11702.56012 | W113: =+'Análisis Consolidado - Costes'!W51 -> 11702.56012 | X113: =+'Análisis Consolidado - Costes'!X51 -> 11702.56012 | Y113: =+'Análisis Consolidado - Costes'!Y51 -> 11702.56012
D114: =+'Análisis Consolidado - Costes'!D52 -> 12 | E114: =+'Análisis Consolidado - Costes'!E52 -> Transporte: Sistemas de información | F114: =+'Análisis Consolidado - Costes'!F52 -> Transporte | G114: =+'Análisis Consolidado - Costes'!G52 -> 0.6468456517 | H114: =+'Análisis Consolidado - Costes'!H52 -> 0.7115302168 | I114: =+'Análisis Consolidado - Costes'!I52 -> 0.5821610865 | K114: =+'Análisis Consolidado - Costes'!K52 -> 2122.360217 | L114: =+'Análisis Consolidado - Costes'!L52 -> 2334.596239 | M114: =+'Análisis Consolidado - Costes'!M52 -> 1910.124195 | O114: =+'Análisis Consolidado - Costes'!O52 -> 0 | P114: =+'Análisis Consolidado - Costes'!P52 -> 236.5291627 | Q114: =+'Análisis Consolidado - Costes'!Q52 -> 475.3126627 | R114: =+'Análisis Consolidado - Costes'!R52 -> 237.724293 | S114: =+'Análisis Consolidado - Costes'!S52 -> 501.910293 | T114: =+'Análisis Consolidado - Costes'!T52 -> 237.724293 | U114: =+'Análisis Consolidado - Costes'!U52 -> 501.910293 | V114: =+'Análisis Consolidado - Costes'!V52 -> 237.724293 | W114: =+'Análisis Consolidado - Costes'!W52 -> 501.910293 | X114: =+'Análisis Consolidado - Costes'!X52 -> 237.724293 | Y114: =+'Análisis Consolidado - Costes'!Y52 -> 501.910293
D115: =+'Análisis Consolidado - Costes'!D53 -> 13 | E115: =+'Análisis Consolidado - Costes'!E53 -> Transporte: 2 | F115: =+'Análisis Consolidado - Costes'!F53 -> Transporte | G115: =+'Análisis Consolidado - Costes'!G53 -> 0.5383087394 | H115: =+'Análisis Consolidado - Costes'!H53 -> 0.5836058695 | I115: =+'Análisis Consolidado - Costes'!I53 -> 0.4930116092 | K115: =+'Análisis Consolidado - Costes'!K53 -> 1766.240602 | L115: =+'Análisis Consolidado - Costes'!L53 -> 1914.864662 | M115: =+'Análisis Consolidado - Costes'!M53 -> 1617.616541 | O115: =+'Análisis Consolidado - Costes'!O53 -> 0 | P115: =+'Análisis Consolidado - Costes'!P53 -> 770 | Q115: =+'Análisis Consolidado - Costes'!Q53 -> 1060 | R115: =+'Análisis Consolidado - Costes'!R53 -> 0 | S115: =+'Análisis Consolidado - Costes'!S53 -> 0 | T115: =+'Análisis Consolidado - Costes'!T53 -> 0 | U115: =+'Análisis Consolidado - Costes'!U53 -> 0 | V115: =+'Análisis Consolidado - Costes'!V53 -> 0 | W115: =+'Análisis Consolidado - Costes'!W53 -> 0 | X115: =+'Análisis Consolidado - Costes'!X53 -> 0 | Y115: =+'Análisis Consolidado - Costes'!Y53 -> 0
D116: =+'Análisis Consolidado - Costes'!D54 -> 14 | E116: =+'Análisis Consolidado - Costes'!E54 -> Transporte: 3 | F116: =+'Análisis Consolidado - Costes'!F54 -> Transporte | G116: =+'Análisis Consolidado - Costes'!G54 -> 0.06436739224 | H116: =+'Análisis Consolidado - Costes'!H54 -> 0.07080413147 | I116: =+'Análisis Consolidado - Costes'!I54 -> 0.05793065302 | K116: =+'Análisis Consolidado - Costes'!K54 -> 211.1953481 | L116: =+'Análisis Consolidado - Costes'!L54 -> 232.3148829 | M116: =+'Análisis Consolidado - Costes'!M54 -> 190.0758133 | O116: =+'Análisis Consolidado - Costes'!O54 -> 0 | P116: =+'Análisis Consolidado - Costes'!P54 -> 0 | Q116: =+'Análisis Consolidado - Costes'!Q54 -> 0 | R116: =+'Análisis Consolidado - Costes'!R54 -> 0 | S116: =+'Análisis Consolidado - Costes'!S54 -> 0 | T116: =+'Análisis Consolidado - Costes'!T54 -> 0 | U116: =+'Análisis Consolidado - Costes'!U54 -> 288 | V116: =+'Análisis Consolidado - Costes'!V54 -> 0 | W116: =+'Análisis Consolidado - Costes'!W54 -> 0 | X116: =+'Análisis Consolidado - Costes'!X54 -> 0 | Y116: =+'Análisis Consolidado - Costes'!Y54 -> 0
D117: =+'Análisis Consolidado - Costes'!D55 -> 15 | E117: =+'Análisis Consolidado - Costes'!E55 -> Transporte: 4 | F117: =+'Análisis Consolidado - Costes'!F55 -> Transporte | G117: =+'Análisis Consolidado - Costes'!G55 -> 6.078311691 | H117: =+'Análisis Consolidado - Costes'!H55 -> 6.371613448 | I117: =+'Análisis Consolidado - Costes'!I55 -> 5.785009935 | K117: =+'Análisis Consolidado - Costes'!K55 -> 19943.50103 | L117: =+'Análisis Consolidado - Costes'!L55 -> 20905.85113 | M117: =+'Análisis Consolidado - Costes'!M55 -> 18981.15093 | O117: =+'Análisis Consolidado - Costes'!O55 -> 6032 | P117: =+'Análisis Consolidado - Costes'!P55 -> 5825.6 | Q117: =+'Análisis Consolidado - Costes'!Q55 -> 1857.6 | R117: =+'Análisis Consolidado - Costes'!R55 -> 1625.6 | S117: =+'Análisis Consolidado - Costes'!S55 -> 1832 | T117: =+'Análisis Consolidado - Costes'!T55 -> 825.6 | U117: =+'Análisis Consolidado - Costes'!U55 -> 1032 | V117: =+'Análisis Consolidado - Costes'!V55 -> 619.2 | W117: =+'Análisis Consolidado - Costes'!W55 -> 1052.8 | X117: =+'Análisis Consolidado - Costes'!X55 -> 412.8 | Y117: =+'Análisis Consolidado - Costes'!Y55 -> 412.8
D118: =+'Análisis Consolidado - Costes'!D56 -> 16 | E118: =+'Análisis Consolidado - Costes'!E56 -> Transporte: 5 | F118: =+'Análisis Consolidado - Costes'!F56 -> Transporte | G118: =+'Análisis Consolidado - Costes'!G56 -> 2.996525141 | H118: =+'Análisis Consolidado - Costes'!H56 -> 2.996525141 | I118: =+'Análisis Consolidado - Costes'!I56 -> 2.996525141 | K118: =+'Análisis Consolidado - Costes'!K56 -> 9831.875242 | L118: =+'Análisis Consolidado - Costes'!L56 -> 9831.875242 | M118: =+'Análisis Consolidado - Costes'!M56 -> 9831.875242 | O118: =+'Análisis Consolidado - Costes'!O56 -> 4603.725 | P118: =+'Análisis Consolidado - Costes'!P56 -> 2195.025 | Q118: =+'Análisis Consolidado - Costes'!Q56 -> 2913.75 | R118: =+'Análisis Consolidado - Costes'!R56 -> 0 | S118: =+'Análisis Consolidado - Costes'!S56 -> 0 | T118: =+'Análisis Consolidado - Costes'!T56 -> 0 | U118: =+'Análisis Consolidado - Costes'!U56 -> 0 | V118: =+'Análisis Consolidado - Costes'!V56 -> 0 | W118: =+'Análisis Consolidado - Costes'!W56 -> 0 | X118: =+'Análisis Consolidado - Costes'!X56 -> 0 | Y118: =+'Análisis Consolidado - Costes'!Y56 -> 0
D119: =+'Análisis Consolidado - Costes'!D57 -> 17 | E119: =+'Análisis Consolidado - Costes'!E57 -> Agricultura : Planificacion 6 Sectores | F119: =+'Análisis Consolidado - Costes'!F57 -> Agricultura | G119: =+'Análisis Consolidado - Costes'!G57 -> 211.1314316 | H119: =+'Análisis Consolidado - Costes'!H57 -> 232.2445747 | I119: =+'Análisis Consolidado - Costes'!I57 -> 190.0182884 | K119: =+'Análisis Consolidado - Costes'!K57 -> 692741.6916 | L119: =+'Análisis Consolidado - Costes'!L57 -> 762015.8607 | M119: =+'Análisis Consolidado - Costes'!M57 -> 623467.5224 | O119: =+'Análisis Consolidado - Costes'!O57 -> 0 | P119: =+'Análisis Consolidado - Costes'!P57 -> 11653.90027 | Q119: =+'Análisis Consolidado - Costes'!Q57 -> 119210.3839 | R119: =+'Análisis Consolidado - Costes'!R57 -> 119080.0864 | S119: =+'Análisis Consolidado - Costes'!S57 -> 111979.4509 | T119: =+'Análisis Consolidado - Costes'!T57 -> 111229.4509 | U119: =+'Análisis Consolidado - Costes'!U57 -> 111229.4509 | V119: =+'Análisis Consolidado - Costes'!V57 -> 111371.5941 | W119: =+'Análisis Consolidado - Costes'!W57 -> 111300.5225 | X119: =+'Análisis Consolidado - Costes'!X57 -> 111229.4509 | Y119: =+'Análisis Consolidado - Costes'!Y57 -> 110376.5919
D120: =+'Análisis Consolidado - Costes'!D58 -> 18 | E120: =+'Análisis Consolidado - Costes'!E58 -> Agropecuario (capacidades 10 subsectores): 1 | F120: =+'Análisis Consolidado - Costes'!F58 -> Agropecuario | G120: =+'Análisis Consolidado - Costes'!G58 -> 65.03165773 | H120: =+'Análisis Consolidado - Costes'!H58 -> 71.5348235 | I120: =+'Análisis Consolidado - Costes'!I58 -> 58.52849195 | K120: =+'Análisis Consolidado - Costes'!K58 -> 213374.8644 | L120: =+'Análisis Consolidado - Costes'!L58 -> 234712.3508 | M120: =+'Análisis Consolidado - Costes'!M58 -> 192037.3779 | O120: =+'Análisis Consolidado - Costes'!O58 -> 0 | P120: =+'Análisis Consolidado - Costes'!P58 -> 59794.20427 | Q120: =+'Análisis Consolidado - Costes'!Q58 -> 59794.20427 | R120: =+'Análisis Consolidado - Costes'!R58 -> 59794.20427 | S120: =+'Análisis Consolidado - Costes'!S58 -> 59794.20427 | T120: =+'Análisis Consolidado - Costes'!T58 -> 59794.20427 | U120: =+'Análisis Consolidado - Costes'!U58 -> 0 | V120: =+'Análisis Consolidado - Costes'!V58 -> 0 | W120: =+'Análisis Consolidado - Costes'!W58 -> 0 | X120: =+'Análisis Consolidado - Costes'!X58 -> 0 | Y120: =+'Análisis Consolidado - Costes'!Y58 -> 0
D121: =+'Análisis Consolidado - Costes'!D59 -> 19 | E121: =+'Análisis Consolidado - Costes'!E59 -> Agricultura : Mesas Técnicas Agroclimáticas | F121: =+'Análisis Consolidado - Costes'!F59 -> Agricultura | G121: =+'Análisis Consolidado - Costes'!G59 -> 5.637440726 | H121: =+'Análisis Consolidado - Costes'!H59 -> 6.201184799 | I121: =+'Análisis Consolidado - Costes'!I59 -> 5.073696654 | K121: =+'Análisis Consolidado - Costes'!K59 -> 18496.96275 | L121: =+'Análisis Consolidado - Costes'!L59 -> 20346.65902 | M121: =+'Análisis Consolidado - Costes'!M59 -> 16647.26647 | O121: =+'Análisis Consolidado - Costes'!O59 -> 2380.995014 | P121: =+'Análisis Consolidado - Costes'!P59 -> 2569.94375 | Q121: =+'Análisis Consolidado - Costes'!Q59 -> 2845.892486 | R121: =+'Análisis Consolidado - Costes'!R59 -> 3075.354038 | S121: =+'Análisis Consolidado - Costes'!S59 -> 3075.354038 | T121: =+'Análisis Consolidado - Costes'!T59 -> 3075.354038 | U121: =+'Análisis Consolidado - Costes'!U59 -> 3075.354038 | V121: =+'Análisis Consolidado - Costes'!V59 -> 3075.354038 | W121: =+'Análisis Consolidado - Costes'!W59 -> 3075.354038 | X121: =+'Análisis Consolidado - Costes'!X59 -> 3075.354038 | Y121: =+'Análisis Consolidado - Costes'!Y59 -> 29324.30951
D122: =+'Análisis Consolidado - Costes'!D60 -> 20 | E122: =+'Análisis Consolidado - Costes'!E60 -> Ambiente: SIIVRA | F122: =+'Análisis Consolidado - Costes'!F60 -> Medio Ambiente y recursos naturales | G122: =+'Análisis Consolidado - Costes'!G60 -> 1.165520791 | H122: =+'Análisis Consolidado - Costes'!H60 -> 1.28207287 | I122: =+'Análisis Consolidado - Costes'!I60 -> 1.048968712 | K122: =+'Análisis Consolidado - Costes'!K60 -> 3824.181166 | L122: =+'Análisis Consolidado - Costes'!L60 -> 4206.599282 | M122: =+'Análisis Consolidado - Costes'!M60 -> 3441.763049 | O122: =+'Análisis Consolidado - Costes'!O60 -> 0 | P122: =+'Análisis Consolidado - Costes'!P60 -> 493.3042533 | Q122: =+'Análisis Consolidado - Costes'!Q60 -> 505.4162043 | R122: =+'Análisis Consolidado - Costes'!R60 -> 684.892149 | S122: =+'Análisis Consolidado - Costes'!S60 -> 663.122149 | T122: =+'Análisis Consolidado - Costes'!T60 -> 438.5565534 | U122: =+'Análisis Consolidado - Costes'!U60 -> 438.5565534 | V122: =+'Análisis Consolidado - Costes'!V60 -> 438.5565534 | W122: =+'Análisis Consolidado - Costes'!W60 -> 431.7360234 | X122: =+'Análisis Consolidado - Costes'!X60 -> 431.7360234 | Y122: =+'Análisis Consolidado - Costes'!Y60 -> 335.2760234
D123: =+'Análisis Consolidado - Costes'!D61 -> 21 | E123: =+'Análisis Consolidado - Costes'!E61 -> Ambiente: Cuencas Hidrográficas | F123: =+'Análisis Consolidado - Costes'!F61 -> Medio Ambiente y recursos naturales | G123: =+'Análisis Consolidado - Costes'!G61 -> 53.64973174 | H123: =+'Análisis Consolidado - Costes'!H61 -> 59.34027402 | I123: =+'Análisis Consolidado - Costes'!I61 -> 47.95918946 | K123: =+'Análisis Consolidado - Costes'!K61 -> 176029.7159 | L123: =+'Análisis Consolidado - Costes'!L61 -> 194700.9098 | M123: =+'Análisis Consolidado - Costes'!M61 -> 157358.522 | O123: =+'Análisis Consolidado - Costes'!O61 -> 0 | P123: =+'Análisis Consolidado - Costes'!P61 -> 68045.69184 | Q123: =+'Análisis Consolidado - Costes'!Q61 -> 1280.146231 | R123: =+'Análisis Consolidado - Costes'!R61 -> 84737.07825 | S123: =+'Análisis Consolidado - Costes'!S61 -> 1280.146231 | T123: =+'Análisis Consolidado - Costes'!T61 -> 1280.146231 | U123: =+'Análisis Consolidado - Costes'!U61 -> 68045.69184 | V123: =+'Análisis Consolidado - Costes'!V61 -> 1280.146231 | W123: =+'Análisis Consolidado - Costes'!W61 -> 1280.146231 | X123: =+'Análisis Consolidado - Costes'!X61 -> 1280.146231 | Y123: =+'Análisis Consolidado - Costes'!Y61 -> 1280.146231
